Workbook

Sheet Liste nominative CMR
A1: Expositions aux Cancérogènes, Mutagènes et Reprotoxiques
C5: Raison sociale : | J5: Numéro Adhérent : | M5: Date de création :
M6: Date de mise à jour :
A8: Indice ligne | B8: NOM et Prénom du travailleur | C8: Date de naissance | D8: Statut intérimaire ? | E8: Indice agence | F8: Nom de l'agence d'interim | G8: Numéro CAS | H8: Numéro CE | I8: Numéro INDEX | J8: Nom du CMR | K8: Procédés | L8: Nature d'exposition (si connu) | M8: Durée d'exposition (si connu) | N8: Degré d'exposition ( si connue)
A9: =IF(COUNTIF(B$8:B8,B9)>0,"",MAX(A$8:A8)+1) -> 1 | E9: =IF(COUNTIF(F$8:F8,F9)>0,"",MAX(E$8:E8)+1) -> 1 | H9: =IFERROR(VLOOKUP(bd_expos[[#This Row],[Numéro CAS]],Tableau2[#All],2,FALSE),"") ->  | I9: =IFERROR(VLOOKUP(bd_expos[[#This Row],[Numéro CAS]],Tableau2[#All],3,FALSE),"") ->  | J9: =IFERROR(VLOOKUP(bd_expos[[#This Row],[Numéro CAS]],Tableau2[#All],4,FALSE),"") ->  | P9: =IF('Liste nominative CMR'!B9='Fiche individuelle CMR'!$C$8,MAX($P$8:P8)+1,"") -> 1
A10: =IF(COUNTIF(B$8:B9,B10)>0,"",MAX(A$8:A9)+1) -> 2 | E10: =IF(COUNTIF(F$8:F9,F10)>0,"",MAX(E$8:E9)+1) -> 2 | H10: =IFERROR(VLOOKUP(bd_expos[[#This Row],[Numéro CAS]],Tableau2[#All],2,FALSE),"") ->  | I10: =IFERROR(VLOOKUP(bd_expos[[#This Row],[Numéro CAS]],Tableau2[#All],3,FALSE),"") ->  | J10: =IFERROR(VLOOKUP(bd_expos[[#This Row],[Numéro CAS]],Tableau2[#All],4,FALSE),"") ->  | P10: =IF('Liste nominative CMR'!B10='Fiche individuelle CMR'!$C$8,MAX($P$8:P9)+1,"") -> 2
A11: =IF(COUNTIF(B$8:B10,B11)>0,"",MAX(A$8:A10)+1) -> 3 | E11: =IF(COUNTIF(F$8:F10,F11)>0,"",MAX(E$8:E10)+1) -> 3 | H11: =IFERROR(VLOOKUP(bd_expos[[#This Row],[Numéro CAS]],Tableau2[#All],2,FALSE),"") ->  | I11: =IFERROR(VLOOKUP(bd_expos[[#This Row],[Numéro CAS]],Tableau2[#All],3,FALSE),"") ->  | J11: =IFERROR(VLOOKUP(bd_expos[[#This Row],[Numéro CAS]],Tableau2[#All],4,FALSE),"") ->  | P11: =IF('Liste nominative CMR'!B11='Fiche individuelle CMR'!$C$8,MAX($P$8:P10)+1,"") -> 3
A12: =IF(COUNTIF(B$8:B11,B12)>0,"",MAX(A$8:A11)+1) -> 4 | E12: =IF(COUNTIF(F$8:F11,F12)>0,"",MAX(E$8:E11)+1) -> 4 | H12: =IFERROR(VLOOKUP(bd_expos[[#This Row],[Numéro CAS]],Tableau2[#All],2,FALSE),"") ->  | I12: =IFERROR(VLOOKUP(bd_expos[[#This Row],[Numéro CAS]],Tableau2[#All],3,FALSE),"") ->  | J12: =IFERROR(VLOOKUP(bd_expos[[#This Row],[Numéro CAS]],Tableau2[#All],4,FALSE),"") ->  | P12: =IF('Liste nominative CMR'!B12='Fiche individuelle CMR'!$C$8,MAX($P$8:P11)+1,"") -> 4
A13: =IF(COUNTIF(B$8:B12,B13)>0,"",MAX(A$8:A12)+1) -> 5 | E13: =IF(COUNTIF(F$8:F12,F13)>0,"",MAX(E$8:E12)+1) -> 5 | H13: =IFERROR(VLOOKUP(bd_expos[[#This Row],[Numéro CAS]],Tableau2[#All],2,FALSE),"") ->  | I13: =IFERROR(VLOOKUP(bd_expos[[#This Row],[Numéro CAS]],Tableau2[#All],3,FALSE),"") ->  | J13: =IFERROR(VLOOKUP(bd_expos[[#This Row],[Numéro CAS]],Tableau2[#All],4,FALSE),"") ->  | P13: =IF('Liste nominative CMR'!B13='Fiche individuelle CMR'!$C$8,MAX($P$8:P12)+1,"") -> 5
A14: =IF(COUNTIF(B$8:B13,B14)>0,"",MAX(A$8:A13)+1) -> 6 | E14: =IF(COUNTIF(F$8:F13,F14)>0,"",MAX(E$8:E13)+1) -> 6 | H14: =IFERROR(VLOOKUP(bd_expos[[#This Row],[Numéro CAS]],Tableau2[#All],2,FALSE),"") ->  | I14: =IFERROR(VLOOKUP(bd_expos[[#This Row],[Numéro CAS]],Tableau2[#All],3,FALSE),"") ->  | J14: =IFERROR(VLOOKUP(bd_expos[[#This Row],[Numéro CAS]],Tableau2[#All],4,FALSE),"") ->  | P14: =IF('Liste nominative CMR'!B14='Fiche individuelle CMR'!$C$8,MAX($P$8:P13)+1,"") -> 6
A15: =IF(COUNTIF(B$8:B14,B15)>0,"",MAX(A$8:A14)+1) -> 7 | E15: =IF(COUNTIF(F$8:F14,F15)>0,"",MAX(E$8:E14)+1) -> 7 | H15: =IFERROR(VLOOKUP(bd_expos[[#This Row],[Numéro CAS]],Tableau2[#All],2,FALSE),"") ->  | I15: =IFERROR(VLOOKUP(bd_expos[[#This Row],[Numéro CAS]],Tableau2[#All],3,FALSE),"") ->  | J15: =IFERROR(VLOOKUP(bd_expos[[#This Row],[Numéro CAS]],Tableau2[#All],4,FALSE),"") ->  | P15: =IF('Liste nominative CMR'!B15='Fiche individuelle CMR'!$C$8,MAX($P$8:P14)+1,"") -> 7
A16: =IF(COUNTIF(B$8:B15,B16)>0,"",MAX(A$8:A15)+1) -> 8 | E16: =IF(COUNTIF(F$8:F15,F16)>0,"",MAX(E$8:E15)+1) -> 8 | H16: =IFERROR(VLOOKUP(bd_expos[[#This Row],[Numéro CAS]],Tableau2[#All],2,FALSE),"") ->  | I16: =IFERROR(VLOOKUP(bd_expos[[#This Row],[Numéro CAS]],Tableau2[#All],3,FALSE),"") ->  | J16: =IFERROR(VLOOKUP(bd_expos[[#This Row],[Numéro CAS]],Tableau2[#All],4,FALSE),"") ->  | P16: =IF('Liste nominative CMR'!B16='Fiche individuelle CMR'!$C$8,MAX($P$8:P15)+1,"") -> 8
A17: =IF(COUNTIF(B$8:B16,B17)>0,"",MAX(A$8:A16)+1) -> 9 | E17: =IF(COUNTIF(F$8:F16,F17)>0,"",MAX(E$8:E16)+1) -> 9 | H17: =IFERROR(VLOOKUP(bd_expos[[#This Row],[Numéro CAS]],Tableau2[#All],2,FALSE),"") ->  | I17: =IFERROR(VLOOKUP(bd_expos[[#This Row],[Numéro CAS]],Tableau2[#All],3,FALSE),"") ->  | J17: =IFERROR(VLOOKUP(bd_expos[[#This Row],[Numéro CAS]],Tableau2[#All],4,FALSE),"") ->  | P17: =IF('Liste nominative CMR'!B17='Fiche individuelle CMR'!$C$8,MAX($P$8:P16)+1,"") -> 9
A18: =IF(COUNTIF(B$8:B17,B18)>0,"",MAX(A$8:A17)+1) -> 10 | E18: =IF(COUNTIF(F$8:F17,F18)>0,"",MAX(E$8:E17)+1) -> 10 | H18: =IFERROR(VLOOKUP(bd_expos[[#This Row],[Numéro CAS]],Tableau2[#All],2,FALSE),"") ->  | I18: =IFERROR(VLOOKUP(bd_expos[[#This Row],[Numéro CAS]],Tableau2[#All],3,FALSE),"") ->  | J18: =IFERROR(VLOOKUP(bd_expos[[#This Row],[Numéro CAS]],Tableau2[#All],4,FALSE),"") ->  | P18: =IF('Liste nominative CMR'!B18='Fiche individuelle CMR'!$C$8,MAX($P$8:P17)+1,"") -> 10
A19: =IF(COUNTIF(B$8:B18,B19)>0,"",MAX(A$8:A18)+1) -> 11 | E19: =IF(COUNTIF(F$8:F18,F19)>0,"",MAX(E$8:E18)+1) -> 11 | H19: =IFERROR(VLOOKUP(bd_expos[[#This Row],[Numéro CAS]],Tableau2[#All],2,FALSE),"") ->  | I19: =IFERROR(VLOOKUP(bd_expos[[#This Row],[Numéro CAS]],Tableau2[#All],3,FALSE),"") ->  | J19: =IFERROR(VLOOKUP(bd_expos[[#This Row],[Numéro CAS]],Tableau2[#All],4,FALSE),"") ->  | P19: =IF('Liste nominative CMR'!B19='Fiche individuelle CMR'!$C$8,MAX($P$8:P18)+1,"") -> 11
A20: =IF(COUNTIF(B$8:B19,B20)>0,"",MAX(A$8:A19)+1) -> 12 | E20: =IF(COUNTIF(F$8:F19,F20)>0,"",MAX(E$8:E19)+1) -> 12 | H20: =IFERROR(VLOOKUP(bd_expos[[#This Row],[Numéro CAS]],Tableau2[#All],2,FALSE),"") ->  | I20: =IFERROR(VLOOKUP(bd_expos[[#This Row],[Numéro CAS]],Tableau2[#All],3,FALSE),"") ->  | J20: =IFERROR(VLOOKUP(bd_expos[[#This Row],[Numéro CAS]],Tableau2[#All],4,FALSE),"") ->  | P20: =IF('Liste nominative CMR'!B20='Fiche individuelle CMR'!$C$8,MAX($P$8:P19)+1,"") -> 12
A21: =IF(COUNTIF(B$8:B20,B21)>0,"",MAX(A$8:A20)+1) -> 13 | E21: =IF(COUNTIF(F$8:F20,F21)>0,"",MAX(E$8:E20)+1) -> 13 | H21: =IFERROR(VLOOKUP(bd_expos[[#This Row],[Numéro CAS]],Tableau2[#All],2,FALSE),"") ->  | I21: =IFERROR(VLOOKUP(bd_expos[[#This Row],[Numéro CAS]],Tableau2[#All],3,FALSE),"") ->  | J21: =IFERROR(VLOOKUP(bd_expos[[#This Row],[Numéro CAS]],Tableau2[#All],4,FALSE),"") ->  | P21: =IF('Liste nominative CMR'!B21='Fiche individuelle CMR'!$C$8,MAX($P$8:P20)+1,"") -> 13
A22: =IF(COUNTIF(B$8:B21,B22)>0,"",MAX(A$8:A21)+1) -> 14 | E22: =IF(COUNTIF(F$8:F21,F22)>0,"",MAX(E$8:E21)+1) -> 14 | H22: =IFERROR(VLOOKUP(bd_expos[[#This Row],[Numéro CAS]],Tableau2[#All],2,FALSE),"") ->  | I22: =IFERROR(VLOOKUP(bd_expos[[#This Row],[Numéro CAS]],Tableau2[#All],3,FALSE),"") ->  | J22: =IFERROR(VLOOKUP(bd_expos[[#This Row],[Numéro CAS]],Tableau2[#All],4,FALSE),"") ->  | P22: =IF('Liste nominative CMR'!B22='Fiche individuelle CMR'!$C$8,MAX($P$8:P21)+1,"") -> 14
A23: =IF(COUNTIF(B$8:B22,B23)>0,"",MAX(A$8:A22)+1) -> 15 | E23: =IF(COUNTIF(F$8:F22,F23)>0,"",MAX(E$8:E22)+1) -> 15 | H23: =IFERROR(VLOOKUP(bd_expos[[#This Row],[Numéro CAS]],Tableau2[#All],2,FALSE),"") ->  | I23: =IFERROR(VLOOKUP(bd_expos[[#This Row],[Numéro CAS]],Tableau2[#All],3,FALSE),"") ->  | J23: =IFERROR(VLOOKUP(bd_expos[[#This Row],[Numéro CAS]],Tableau2[#All],4,FALSE),"") ->  | P23: =IF('Liste nominative CMR'!B23='Fiche individuelle CMR'!$C$8,MAX($P$8:P22)+1,"") -> 15
A24: =IF(COUNTIF(B$8:B23,B24)>0,"",MAX(A$8:A23)+1) -> 16 | E24: =IF(COUNTIF(F$8:F23,F24)>0,"",MAX(E$8:E23)+1) -> 16 | H24: =IFERROR(VLOOKUP(bd_expos[[#This Row],[Numéro CAS]],Tableau2[#All],2,FALSE),"") ->  | I24: =IFERROR(VLOOKUP(bd_expos[[#This Row],[Numéro CAS]],Tableau2[#All],3,FALSE),"") ->  | J24: =IFERROR(VLOOKUP(bd_expos[[#This Row],[Numéro CAS]],Tableau2[#All],4,FALSE),"") ->  | P24: =IF('Liste nominative CMR'!B24='Fiche individuelle CMR'!$C$8,MAX($P$8:P23)+1,"") -> 16
A25: =IF(COUNTIF(B$8:B24,B25)>0,"",MAX(A$8:A24)+1) -> 17 | E25: =IF(COUNTIF(F$8:F24,F25)>0,"",MAX(E$8:E24)+1) -> 17 | H25: =IFERROR(VLOOKUP(bd_expos[[#This Row],[Numéro CAS]],Tableau2[#All],2,FALSE),"") ->  | I25: =IFERROR(VLOOKUP(bd_expos[[#This Row],[Numéro CAS]],Tableau2[#All],3,FALSE),"") ->  | J25: =IFERROR(VLOOKUP(bd_expos[[#This Row],[Numéro CAS]],Tableau2[#All],4,FALSE),"") ->  | P25: =IF('Liste nominative CMR'!B25='Fiche individuelle CMR'!$C$8,MAX($P$8:P24)+1,"") -> 17
A26: =IF(COUNTIF(B$8:B25,B26)>0,"",MAX(A$8:A25)+1) -> 18 | E26: =IF(COUNTIF(F$8:F25,F26)>0,"",MAX(E$8:E25)+1) -> 18 | H26: =IFERROR(VLOOKUP(bd_expos[[#This Row],[Numéro CAS]],Tableau2[#All],2,FALSE),"") ->  | I26: =IFERROR(VLOOKUP(bd_expos[[#This Row],[Numéro CAS]],Tableau2[#All],3,FALSE),"") ->  | J26: =IFERROR(VLOOKUP(bd_expos[[#This Row],[Numéro CAS]],Tableau2[#All],4,FALSE),"") ->  | P26: =IF('Liste nominative CMR'!B26='Fiche individuelle CMR'!$C$8,MAX($P$8:P25)+1,"") -> 18
A27: =IF(COUNTIF(B$8:B26,B27)>0,"",MAX(A$8:A26)+1) -> 19 | E27: =IF(COUNTIF(F$8:F26,F27)>0,"",MAX(E$8:E26)+1) -> 19 | H27: =IFERROR(VLOOKUP(bd_expos[[#This Row],[Numéro CAS]],Tableau2[#All],2,FALSE),"") ->  | I27: =IFERROR(VLOOKUP(bd_expos[[#This Row],[Numéro CAS]],Tableau2[#All],3,FALSE),"") ->  | J27: =IFERROR(VLOOKUP(bd_expos[[#This Row],[Numéro CAS]],Tableau2[#All],4,FALSE),"") ->  | P27: =IF('Liste nominative CMR'!B27='Fiche individuelle CMR'!$C$8,MAX($P$8:P26)+1,"") -> 19
A28: =IF(COUNTIF(B$8:B27,B28)>0,"",MAX(A$8:A27)+1) -> 20 | E28: =IF(COUNTIF(F$8:F27,F28)>0,"",MAX(E$8:E27)+1) -> 20 | H28: =IFERROR(VLOOKUP(bd_expos[[#This Row],[Numéro CAS]],Tableau2[#All],2,FALSE),"") ->  | I28: =IFERROR(VLOOKUP(bd_expos[[#This Row],[Numéro CAS]],Tableau2[#All],3,FALSE),"") ->  | J28: =IFERROR(VLOOKUP(bd_expos[[#This Row],[Numéro CAS]],Tableau2[#All],4,FALSE),"") ->  | P28: =IF('Liste nominative CMR'!B28='Fiche individuelle CMR'!$C$8,MAX($P$8:P27)+1,"") -> 20
A29: =IF(COUNTIF(B$8:B28,B29)>0,"",MAX(A$8:A28)+1) -> 21 | E29: =IF(COUNTIF(F$8:F28,F29)>0,"",MAX(E$8:E28)+1) -> 21 | H29: =IFERROR(VLOOKUP(bd_expos[[#This Row],[Numéro CAS]],Tableau2[#All],2,FALSE),"") ->  | I29: =IFERROR(VLOOKUP(bd_expos[[#This Row],[Numéro CAS]],Tableau2[#All],3,FALSE),"") ->  | J29: =IFERROR(VLOOKUP(bd_expos[[#This Row],[Numéro CAS]],Tableau2[#All],4,FALSE),"") ->  | P29: =IF('Liste nominative CMR'!B29='Fiche individuelle CMR'!$C$8,MAX($P$8:P28)+1,"") -> 21
A30: =IF(COUNTIF(B$8:B29,B30)>0,"",MAX(A$8:A29)+1) -> 22 | E30: =IF(COUNTIF(F$8:F29,F30)>0,"",MAX(E$8:E29)+1) -> 22 | H30: =IFERROR(VLOOKUP(bd_expos[[#This Row],[Numéro CAS]],Tableau2[#All],2,FALSE),"") ->  | I30: =IFERROR(VLOOKUP(bd_expos[[#This Row],[Numéro CAS]],Tableau2[#All],3,FALSE),"") ->  | J30: =IFERROR(VLOOKUP(bd_expos[[#This Row],[Numéro CAS]],Tableau2[#All],4,FALSE),"") ->  | P30: =IF('Liste nominative CMR'!B30='Fiche individuelle CMR'!$C$8,MAX($P$8:P29)+1,"") -> 22
A31: =IF(COUNTIF(B$8:B30,B31)>0,"",MAX(A$8:A30)+1) -> 23 | E31: =IF(COUNTIF(F$8:F30,F31)>0,"",MAX(E$8:E30)+1) -> 23 | H31: =IFERROR(VLOOKUP(bd_expos[[#This Row],[Numéro CAS]],Tableau2[#All],2,FALSE),"") ->  | I31: =IFERROR(VLOOKUP(bd_expos[[#This Row],[Numéro CAS]],Tableau2[#All],3,FALSE),"") ->  | J31: =IFERROR(VLOOKUP(bd_expos[[#This Row],[Numéro CAS]],Tableau2[#All],4,FALSE),"") ->  | P31: =IF('Liste nominative CMR'!B31='Fiche individuelle CMR'!$C$8,MAX($P$8:P30)+1,"") -> 23
A32: =IF(COUNTIF(B$8:B31,B32)>0,"",MAX(A$8:A31)+1) -> 24 | E32: =IF(COUNTIF(F$8:F31,F32)>0,"",MAX(E$8:E31)+1) -> 24 | H32: =IFERROR(VLOOKUP(bd_expos[[#This Row],[Numéro CAS]],Tableau2[#All],2,FALSE),"") ->  | I32: =IFERROR(VLOOKUP(bd_expos[[#This Row],[Numéro CAS]],Tableau2[#All],3,FALSE),"") ->  | J32: =IFERROR(VLOOKUP(bd_expos[[#This Row],[Numéro CAS]],Tableau2[#All],4,FALSE),"") ->  | P32: =IF('Liste nominative CMR'!B32='Fiche individuelle CMR'!$C$8,MAX($P$8:P31)+1,"") -> 24
A33: =IF(COUNTIF(B$8:B32,B33)>0,"",MAX(A$8:A32)+1) -> 25 | E33: =IF(COUNTIF(F$8:F32,F33)>0,"",MAX(E$8:E32)+1) -> 25 | H33: =IFERROR(VLOOKUP(bd_expos[[#This Row],[Numéro CAS]],Tableau2[#All],2,FALSE),"") ->  | I33: =IFERROR(VLOOKUP(bd_expos[[#This Row],[Numéro CAS]],Tableau2[#All],3,FALSE),"") ->  | J33: =IFERROR(VLOOKUP(bd_expos[[#This Row],[Numéro CAS]],Tableau2[#All],4,FALSE),"") ->  | P33: =IF('Liste nominative CMR'!B33='Fiche individuelle CMR'!$C$8,MAX($P$8:P32)+1,"") -> 25
A34: =IF(COUNTIF(B$8:B33,B34)>0,"",MAX(A$8:A33)+1) -> 26 | E34: =IF(COUNTIF(F$8:F33,F34)>0,"",MAX(E$8:E33)+1) -> 26 | H34: =IFERROR(VLOOKUP(bd_expos[[#This Row],[Numéro CAS]],Tableau2[#All],2,FALSE),"") ->  | I34: =IFERROR(VLOOKUP(bd_expos[[#This Row],[Numéro CAS]],Tableau2[#All],3,FALSE),"") ->  | J34: =IFERROR(VLOOKUP(bd_expos[[#This Row],[Numéro CAS]],Tableau2[#All],4,FALSE),"") ->  | P34: =IF('Liste nominative CMR'!B34='Fiche individuelle CMR'!$C$8,MAX($P$8:P33)+1,"") -> 26
A35: =IF(COUNTIF(B$8:B34,B35)>0,"",MAX(A$8:A34)+1) -> 27 | E35: =IF(COUNTIF(F$8:F34,F35)>0,"",MAX(E$8:E34)+1) -> 27 | H35: =IFERROR(VLOOKUP(bd_expos[[#This Row],[Numéro CAS]],Tableau2[#All],2,FALSE),"") ->  | I35: =IFERROR(VLOOKUP(bd_expos[[#This Row],[Numéro CAS]],Tableau2[#All],3,FALSE),"") ->  | J35: =IFERROR(VLOOKUP(bd_expos[[#This Row],[Numéro CAS]],Tableau2[#All],4,FALSE),"") ->  | P35: =IF('Liste nominative CMR'!B35='Fiche individuelle CMR'!$C$8,MAX($P$8:P34)+1,"") -> 27
A36: =IF(COUNTIF(B$8:B35,B36)>0,"",MAX(A$8:A35)+1) -> 28 | E36: =IF(COUNTIF(F$8:F35,F36)>0,"",MAX(E$8:E35)+1) -> 28 | H36: =IFERROR(VLOOKUP(bd_expos[[#This Row],[Numéro CAS]],Tableau2[#All],2,FALSE),"") ->  | I36: =IFERROR(VLOOKUP(bd_expos[[#This Row],[Numéro CAS]],Tableau2[#All],3,FALSE),"") ->  | J36: =IFERROR(VLOOKUP(bd_expos[[#This Row],[Numéro CAS]],Tableau2[#All],4,FALSE),"") ->  | P36: =IF('Liste nominative CMR'!B36='Fiche individuelle CMR'!$C$8,MAX($P$8:P35)+1,"") -> 28
A37: =IF(COUNTIF(B$8:B36,B37)>0,"",MAX(A$8:A36)+1) -> 29 | E37: =IF(COUNTIF(F$8:F36,F37)>0,"",MAX(E$8:E36)+1) -> 29 | H37: =IFERROR(VLOOKUP(bd_expos[[#This Row],[Numéro CAS]],Tableau2[#All],2,FALSE),"") ->  | I37: =IFERROR(VLOOKUP(bd_expos[[#This Row],[Numéro CAS]],Tableau2[#All],3,FALSE),"") ->  | J37: =IFERROR(VLOOKUP(bd_expos[[#This Row],[Numéro CAS]],Tableau2[#All],4,FALSE),"") ->  | P37: =IF('Liste nominative CMR'!B37='Fiche individuelle CMR'!$C$8,MAX($P$8:P36)+1,"") -> 29
A38: =IF(COUNTIF(B$8:B37,B38)>0,"",MAX(A$8:A37)+1) -> 30 | E38: =IF(COUNTIF(F$8:F37,F38)>0,"",MAX(E$8:E37)+1) -> 30 | H38: =IFERROR(VLOOKUP(bd_expos[[#This Row],[Numéro CAS]],Tableau2[#All],2,FALSE),"") ->  | I38: =IFERROR(VLOOKUP(bd_expos[[#This Row],[Numéro CAS]],Tableau2[#All],3,FALSE),"") ->  | J38: =IFERROR(VLOOKUP(bd_expos[[#This Row],[Numéro CAS]],Tableau2[#All],4,FALSE),"") ->  | P38: =IF('Liste nominative CMR'!B38='Fiche individuelle CMR'!$C$8,MAX($P$8:P37)+1,"") -> 30
A39: =IF(COUNTIF(B$8:B38,B39)>0,"",MAX(A$8:A38)+1) -> 31 | E39: =IF(COUNTIF(F$8:F38,F39)>0,"",MAX(E$8:E38)+1) -> 31 | H39: =IFERROR(VLOOKUP(bd_expos[[#This Row],[Numéro CAS]],Tableau2[#All],2,FALSE),"") ->  | I39: =IFERROR(VLOOKUP(bd_expos[[#This Row],[Numéro CAS]],Tableau2[#All],3,FALSE),"") ->  | J39: =IFERROR(VLOOKUP(bd_expos[[#This Row],[Numéro CAS]],Tableau2[#All],4,FALSE),"") ->  | P39: =IF('Liste nominative CMR'!B39='Fiche individuelle CMR'!$C$8,MAX($P$8:P38)+1,"") -> 31
A40: =IF(COUNTIF(B$8:B39,B40)>0,"",MAX(A$8:A39)+1) -> 32 | E40: =IF(COUNTIF(F$8:F39,F40)>0,"",MAX(E$8:E39)+1) -> 32 | H40: =IFERROR(VLOOKUP(bd_expos[[#This Row],[Numéro CAS]],Tableau2[#All],2,FALSE),"") ->  | I40: =IFERROR(VLOOKUP(bd_expos[[#This Row],[Numéro CAS]],Tableau2[#All],3,FALSE),"") ->  | J40: =IFERROR(VLOOKUP(bd_expos[[#This Row],[Numéro CAS]],Tableau2[#All],4,FALSE),"") ->  | P40: =IF('Liste nominative CMR'!B40='Fiche individuelle CMR'!$C$8,MAX($P$8:P39)+1,"") -> 32
A41: =IF(COUNTIF(B$8:B40,B41)>0,"",MAX(A$8:A40)+1) -> 33 | E41: =IF(COUNTIF(F$8:F40,F41)>0,"",MAX(E$8:E40)+1) -> 33 | H41: =IFERROR(VLOOKUP(bd_expos[[#This Row],[Numéro CAS]],Tableau2[#All],2,FALSE),"") ->  | I41: =IFERROR(VLOOKUP(bd_expos[[#This Row],[Numéro CAS]],Tableau2[#All],3,FALSE),"") ->  | J41: =IFERROR(VLOOKUP(bd_expos[[#This Row],[Numéro CAS]],Tableau2[#All],4,FALSE),"") ->  | P41: =IF('Liste nominative CMR'!B41='Fiche individuelle CMR'!$C$8,MAX($P$8:P40)+1,"") -> 33
A42: =IF(COUNTIF(B$8:B41,B42)>0,"",MAX(A$8:A41)+1) -> 34 | E42: =IF(COUNTIF(F$8:F41,F42)>0,"",MAX(E$8:E41)+1) -> 34 | H42: =IFERROR(VLOOKUP(bd_expos[[#This Row],[Numéro CAS]],Tableau2[#All],2,FALSE),"") ->  | I42: =IFERROR(VLOOKUP(bd_expos[[#This Row],[Numéro CAS]],Tableau2[#All],3,FALSE),"") ->  | J42: =IFERROR(VLOOKUP(bd_expos[[#This Row],[Numéro CAS]],Tableau2[#All],4,FALSE),"") ->  | P42: =IF('Liste nominative CMR'!B42='Fiche individuelle CMR'!$C$8,MAX($P$8:P41)+1,"") -> 34
A43: =IF(COUNTIF(B$8:B42,B43)>0,"",MAX(A$8:A42)+1) -> 35 | E43: =IF(COUNTIF(F$8:F42,F43)>0,"",MAX(E$8:E42)+1) -> 35 | H43: =IFERROR(VLOOKUP(bd_expos[[#This Row],[Numéro CAS]],Tableau2[#All],2,FALSE),"") ->  | I43: =IFERROR(VLOOKUP(bd_expos[[#This Row],[Numéro CAS]],Tableau2[#All],3,FALSE),"") ->  | J43: =IFERROR(VLOOKUP(bd_expos[[#This Row],[Numéro CAS]],Tableau2[#All],4,FALSE),"") ->  | P43: =IF('Liste nominative CMR'!B43='Fiche individuelle CMR'!$C$8,MAX($P$8:P42)+1,"") -> 35
A44: =IF(COUNTIF(B$8:B43,B44)>0,"",MAX(A$8:A43)+1) -> 36 | E44: =IF(COUNTIF(F$8:F43,F44)>0,"",MAX(E$8:E43)+1) -> 36 | H44: =IFERROR(VLOOKUP(bd_expos[[#This Row],[Numéro CAS]],Tableau2[#All],2,FALSE),"") ->  | I44: =IFERROR(VLOOKUP(bd_expos[[#This Row],[Numéro CAS]],Tableau2[#All],3,FALSE),"") ->  | J44: =IFERROR(VLOOKUP(bd_expos[[#This Row],[Numéro CAS]],Tableau2[#All],4,FALSE),"") ->  | P44: =IF('Liste nominative CMR'!B44='Fiche individuelle CMR'!$C$8,MAX($P$8:P43)+1,"") -> 36
A45: =IF(COUNTIF(B$8:B44,B45)>0,"",MAX(A$8:A44)+1) -> 37 | E45: =IF(COUNTIF(F$8:F44,F45)>0,"",MAX(E$8:E44)+1) -> 37 | H45: =IFERROR(VLOOKUP(bd_expos[[#This Row],[Numéro CAS]],Tableau2[#All],2,FALSE),"") ->  | I45: =IFERROR(VLOOKUP(bd_expos[[#This Row],[Numéro CAS]],Tableau2[#All],3,FALSE),"") ->  | J45: =IFERROR(VLOOKUP(bd_expos[[#This Row],[Numéro CAS]],Tableau2[#All],4,FALSE),"") ->  | P45: =IF('Liste nominative CMR'!B45='Fiche individuelle CMR'!$C$8,MAX($P$8:P44)+1,"") -> 37
A46: =IF(COUNTIF(B$8:B45,B46)>0,"",MAX(A$8:A45)+1) -> 38 | E46: =IF(COUNTIF(F$8:F45,F46)>0,"",MAX(E$8:E45)+1) -> 38 | H46: =IFERROR(VLOOKUP(bd_expos[[#This Row],[Numéro CAS]],Tableau2[#All],2,FALSE),"") ->  | I46: =IFERROR(VLOOKUP(bd_expos[[#This Row],[Numéro CAS]],Tableau2[#All],3,FALSE),"") ->  | J46: =IFERROR(VLOOKUP(bd_expos[[#This Row],[Numéro CAS]],Tableau2[#All],4,FALSE),"") ->  | P46: =IF('Liste nominative CMR'!B46='Fiche individuelle CMR'!$C$8,MAX($P$8:P45)+1,"") -> 38
A47: =IF(COUNTIF(B$8:B46,B47)>0,"",MAX(A$8:A46)+1) -> 39 | E47: =IF(COUNTIF(F$8:F46,F47)>0,"",MAX(E$8:E46)+1) -> 39 | H47: =IFERROR(VLOOKUP(bd_expos[[#This Row],[Numéro CAS]],Tableau2[#All],2,FALSE),"") ->  | I47: =IFERROR(VLOOKUP(bd_expos[[#This Row],[Numéro CAS]],Tableau2[#All],3,FALSE),"") ->  | J47: =IFERROR(VLOOKUP(bd_expos[[#This Row],[Numéro CAS]],Tableau2[#All],4,FALSE),"") ->  | P47: =IF('Liste nominative CMR'!B47='Fiche individuelle CMR'!$C$8,MAX($P$8:P46)+1,"") -> 39
A48: =IF(COUNTIF(B$8:B47,B48)>0,"",MAX(A$8:A47)+1) -> 40 | E48: =IF(COUNTIF(F$8:F47,F48)>0,"",MAX(E$8:E47)+1) -> 40 | H48: =IFERROR(VLOOKUP(bd_expos[[#This Row],[Numéro CAS]],Tableau2[#All],2,FALSE),"") ->  | I48: =IFERROR(VLOOKUP(bd_expos[[#This Row],[Numéro CAS]],Tableau2[#All],3,FALSE),"") ->  | J48: =IFERROR(VLOOKUP(bd_expos[[#This Row],[Numéro CAS]],Tableau2[#All],4,FALSE),"") ->  | P48: =IF('Liste nominative CMR'!B48='Fiche individuelle CMR'!$C$8,MAX($P$8:P47)+1,"") -> 40
A49: =IF(COUNTIF(B$8:B48,B49)>0,"",MAX(A$8:A48)+1) -> 41 | E49: =IF(COUNTIF(F$8:F48,F49)>0,"",MAX(E$8:E48)+1) -> 41 | H49: =IFERROR(VLOOKUP(bd_expos[[#This Row],[Numéro CAS]],Tableau2[#All],2,FALSE),"") ->  | I49: =IFERROR(VLOOKUP(bd_expos[[#This Row],[Numéro CAS]],Tableau2[#All],3,FALSE),"") ->  | J49: =IFERROR(VLOOKUP(bd_expos[[#This Row],[Numéro CAS]],Tableau2[#All],4,FALSE),"") ->  | P49: =IF('Liste nominative CMR'!B49='Fiche individuelle CMR'!$C$8,MAX($P$8:P48)+1,"") -> 41
A50: =IF(COUNTIF(B$8:B49,B50)>0,"",MAX(A$8:A49)+1) -> 42 | E50: =IF(COUNTIF(F$8:F49,F50)>0,"",MAX(E$8:E49)+1) -> 42 | H50: =IFERROR(VLOOKUP(bd_expos[[#This Row],[Numéro CAS]],Tableau2[#All],2,FALSE),"") ->  | I50: =IFERROR(VLOOKUP(bd_expos[[#This Row],[Numéro CAS]],Tableau2[#All],3,FALSE),"") ->  | J50: =IFERROR(VLOOKUP(bd_expos[[#This Row],[Numéro CAS]],Tableau2[#All],4,FALSE),"") ->  | P50: =IF('Liste nominative CMR'!B50='Fiche individuelle CMR'!$C$8,MAX($P$8:P49)+1,"") -> 42
A51: =IF(COUNTIF(B$8:B50,B51)>0,"",MAX(A$8:A50)+1) -> 43 | E51: =IF(COUNTIF(F$8:F50,F51)>0,"",MAX(E$8:E50)+1) -> 43 | H51: =IFERROR(VLOOKUP(bd_expos[[#This Row],[Numéro CAS]],Tableau2[#All],2,FALSE),"") ->  | I51: =IFERROR(VLOOKUP(bd_expos[[#This Row],[Numéro CAS]],Tableau2[#All],3,FALSE),"") ->  | J51: =IFERROR(VLOOKUP(bd_expos[[#This Row],[Numéro CAS]],Tableau2[#All],4,FALSE),"") ->  | P51: =IF('Liste nominative CMR'!B51='Fiche individuelle CMR'!$C$8,MAX($P$8:P50)+1,"") -> 43
A52: =IF(COUNTIF(B$8:B51,B52)>0,"",MAX(A$8:A51)+1) -> 44 | E52: =IF(COUNTIF(F$8:F51,F52)>0,"",MAX(E$8:E51)+1) -> 44 | H52: =IFERROR(VLOOKUP(bd_expos[[#This Row],[Numéro CAS]],Tableau2[#All],2,FALSE),"") ->  | I52: =IFERROR(VLOOKUP(bd_expos[[#This Row],[Numéro CAS]],Tableau2[#All],3,FALSE),"") ->  | J52: =IFERROR(VLOOKUP(bd_expos[[#This Row],[Numéro CAS]],Tableau2[#All],4,FALSE),"") ->  | P52: =IF('Liste nominative CMR'!B52='Fiche individuelle CMR'!$C$8,MAX($P$8:P51)+1,"") -> 44
A53: =IF(COUNTIF(B$8:B52,B53)>0,"",MAX(A$8:A52)+1) -> 45 | E53: =IF(COUNTIF(F$8:F52,F53)>0,"",MAX(E$8:E52)+1) -> 45 | H53: =IFERROR(VLOOKUP(bd_expos[[#This Row],[Numéro CAS]],Tableau2[#All],2,FALSE),"") ->  | I53: =IFERROR(VLOOKUP(bd_expos[[#This Row],[Numéro CAS]],Tableau2[#All],3,FALSE),"") ->  | J53: =IFERROR(VLOOKUP(bd_expos[[#This Row],[Numéro CAS]],Tableau2[#All],4,FALSE),"") ->  | P53: =IF('Liste nominative CMR'!B53='Fiche individuelle CMR'!$C$8,MAX($P$8:P52)+1,"") -> 45
A54: =IF(COUNTIF(B$8:B53,B54)>0,"",MAX(A$8:A53)+1) -> 46 | E54: =IF(COUNTIF(F$8:F53,F54)>0,"",MAX(E$8:E53)+1) -> 46 | H54: =IFERROR(VLOOKUP(bd_expos[[#This Row],[Numéro CAS]],Tableau2[#All],2,FALSE),"") ->  | I54: =IFERROR(VLOOKUP(bd_expos[[#This Row],[Numéro CAS]],Tableau2[#All],3,FALSE),"") ->  | J54: =IFERROR(VLOOKUP(bd_expos[[#This Row],[Numéro CAS]],Tableau2[#All],4,FALSE),"") ->  | P54: =IF('Liste nominative CMR'!B54='Fiche individuelle CMR'!$C$8,MAX($P$8:P53)+1,"") -> 46
A55: =IF(COUNTIF(B$8:B54,B55)>0,"",MAX(A$8:A54)+1) -> 47 | E55: =IF(COUNTIF(F$8:F54,F55)>0,"",MAX(E$8:E54)+1) -> 47 | H55: =IFERROR(VLOOKUP(bd_expos[[#This Row],[Numéro CAS]],Tableau2[#All],2,FALSE),"") ->  | I55: =IFERROR(VLOOKUP(bd_expos[[#This Row],[Numéro CAS]],Tableau2[#All],3,FALSE),"") ->  | J55: =IFERROR(VLOOKUP(bd_expos[[#This Row],[Numéro CAS]],Tableau2[#All],4,FALSE),"") ->  | P55: =IF('Liste nominative CMR'!B55='Fiche individuelle CMR'!$C$8,MAX($P$8:P54)+1,"") -> 47
A56: =IF(COUNTIF(B$8:B55,B56)>0,"",MAX(A$8:A55)+1) -> 48 | E56: =IF(COUNTIF(F$8:F55,F56)>0,"",MAX(E$8:E55)+1) -> 48 | H56: =IFERROR(VLOOKUP(bd_expos[[#This Row],[Numéro CAS]],Tableau2[#All],2,FALSE),"") ->  | I56: =IFERROR(VLOOKUP(bd_expos[[#This Row],[Numéro CAS]],Tableau2[#All],3,FALSE),"") ->  | J56: =IFERROR(VLOOKUP(bd_expos[[#This Row],[Numéro CAS]],Tableau2[#All],4,FALSE),"") ->  | P56: =IF('Liste nominative CMR'!B56='Fiche individuelle CMR'!$C$8,MAX($P$8:P55)+1,"") -> 48
A57: =IF(COUNTIF(B$8:B56,B57)>0,"",MAX(A$8:A56)+1) -> 49 | E57: =IF(COUNTIF(F$8:F56,F57)>0,"",MAX(E$8:E56)+1) -> 49 | H57: =IFERROR(VLOOKUP(bd_expos[[#This Row],[Numéro CAS]],Tableau2[#All],2,FALSE),"") ->  | I57: =IFERROR(VLOOKUP(bd_expos[[#This Row],[Numéro CAS]],Tableau2[#All],3,FALSE),"") ->  | J57: =IFERROR(VLOOKUP(bd_expos[[#This Row],[Numéro CAS]],Tableau2[#All],4,FALSE),"") ->  | P57: =IF('Liste nominative CMR'!B57='Fiche individuelle CMR'!$C$8,MAX($P$8:P56)+1,"") -> 49
A58: =IF(COUNTIF(B$8:B57,B58)>0,"",MAX(A$8:A57)+1) -> 50 | E58: =IF(COUNTIF(F$8:F57,F58)>0,"",MAX(E$8:E57)+1) -> 50 | H58: =IFERROR(VLOOKUP(bd_expos[[#This Row],[Numéro CAS]],Tableau2[#All],2,FALSE),"") ->  | I58: =IFERROR(VLOOKUP(bd_expos[[#This Row],[Numéro CAS]],Tableau2[#All],3,FALSE),"") ->  | J58: =IFERROR(VLOOKUP(bd_expos[[#This Row],[Numéro CAS]],Tableau2[#All],4,FALSE),"") ->  | P58: =IF('Liste nominative CMR'!B58='Fiche individuelle CMR'!$C$8,MAX($P$8:P57)+1,"") -> 50
A59: =IF(COUNTIF(B$8:B58,B59)>0,"",MAX(A$8:A58)+1) -> 51 | E59: =IF(COUNTIF(F$8:F58,F59)>0,"",MAX(E$8:E58)+1) -> 51 | H59: =IFERROR(VLOOKUP(bd_expos[[#This Row],[Numéro CAS]],Tableau2[#All],2,FALSE),"") ->  | I59: =IFERROR(VLOOKUP(bd_expos[[#This Row],[Numéro CAS]],Tableau2[#All],3,FALSE),"") ->  | J59: =IFERROR(VLOOKUP(bd_expos[[#This Row],[Numéro CAS]],Tableau2[#All],4,FALSE),"") ->  | P59: =IF('Liste nominative CMR'!B59='Fiche individuelle CMR'!$C$8,MAX($P$8:P58)+1,"") -> 51
A60: =IF(COUNTIF(B$8:B59,B60)>0,"",MAX(A$8:A59)+1) -> 52 | E60: =IF(COUNTIF(F$8:F59,F60)>0,"",MAX(E$8:E59)+1) -> 52 | H60: =IFERROR(VLOOKUP(bd_expos[[#This Row],[Numéro CAS]],Tableau2[#All],2,FALSE),"") ->  | I60: =IFERROR(VLOOKUP(bd_expos[[#This Row],[Numéro CAS]],Tableau2[#All],3,FALSE),"") ->  | J60: =IFERROR(VLOOKUP(bd_expos[[#This Row],[Numéro CAS]],Tableau2[#All],4,FALSE),"") ->  | P60: =IF('Liste nominative CMR'!B60='Fiche individuelle CMR'!$C$8,MAX($P$8:P59)+1,"") -> 52
A61: =IF(COUNTIF(B$8:B60,B61)>0,"",MAX(A$8:A60)+1) -> 53 | E61: =IF(COUNTIF(F$8:F60,F61)>0,"",MAX(E$8:E60)+1) -> 53 | H61: =IFERROR(VLOOKUP(bd_expos[[#This Row],[Numéro CAS]],Tableau2[#All],2,FALSE),"") ->  | I61: =IFERROR(VLOOKUP(bd_expos[[#This Row],[Numéro CAS]],Tableau2[#All],3,FALSE),"") ->  | J61: =IFERROR(VLOOKUP(bd_expos[[#This Row],[Numéro CAS]],Tableau2[#All],4,FALSE),"") ->  | P61: =IF('Liste nominative CMR'!B61='Fiche individuelle CMR'!$C$8,MAX($P$8:P60)+1,"") -> 53
A62: =IF(COUNTIF(B$8:B61,B62)>0,"",MAX(A$8:A61)+1) -> 54 | E62: =IF(COUNTIF(F$8:F61,F62)>0,"",MAX(E$8:E61)+1) -> 54 | H62: =IFERROR(VLOOKUP(bd_expos[[#This Row],[Numéro CAS]],Tableau2[#All],2,FALSE),"") ->  | I62: =IFERROR(VLOOKUP(bd_expos[[#This Row],[Numéro CAS]],Tableau2[#All],3,FALSE),"") ->  | J62: =IFERROR(VLOOKUP(bd_expos[[#This Row],[Numéro CAS]],Tableau2[#All],4,FALSE),"") ->  | P62: =IF('Liste nominative CMR'!B62='Fiche individuelle CMR'!$C$8,MAX($P$8:P61)+1,"") -> 54
A63: =IF(COUNTIF(B$8:B62,B63)>0,"",MAX(A$8:A62)+1) -> 55 | E63: =IF(COUNTIF(F$8:F62,F63)>0,"",MAX(E$8:E62)+1) -> 55 | H63: =IFERROR(VLOOKUP(bd_expos[[#This Row],[Numéro CAS]],Tableau2[#All],2,FALSE),"") ->  | I63: =IFERROR(VLOOKUP(bd_expos[[#This Row],[Numéro CAS]],Tableau2[#All],3,FALSE),"") ->  | J63: =IFERROR(VLOOKUP(bd_expos[[#This Row],[Numéro CAS]],Tableau2[#All],4,FALSE),"") ->  | P63: =IF('Liste nominative CMR'!B63='Fiche individuelle CMR'!$C$8,MAX($P$8:P62)+1,"") -> 55
A64: =IF(COUNTIF(B$8:B63,B64)>0,"",MAX(A$8:A63)+1) -> 56 | E64: =IF(COUNTIF(F$8:F63,F64)>0,"",MAX(E$8:E63)+1) -> 56 | H64: =IFERROR(VLOOKUP(bd_expos[[#This Row],[Numéro CAS]],Tableau2[#All],2,FALSE),"") ->  | I64: =IFERROR(VLOOKUP(bd_expos[[#This Row],[Numéro CAS]],Tableau2[#All],3,FALSE),"") ->  | J64: =IFERROR(VLOOKUP(bd_expos[[#This Row],[Numéro CAS]],Tableau2[#All],4,FALSE),"") ->  | P64: =IF('Liste nominative CMR'!B64='Fiche individuelle CMR'!$C$8,MAX($P$8:P63)+1,"") -> 56
A65: =IF(COUNTIF(B$8:B64,B65)>0,"",MAX(A$8:A64)+1) -> 57 | E65: =IF(COUNTIF(F$8:F64,F65)>0,"",MAX(E$8:E64)+1) -> 57 | H65: =IFERROR(VLOOKUP(bd_expos[[#This Row],[Numéro CAS]],Tableau2[#All],2,FALSE),"") ->  | I65: =IFERROR(VLOOKUP(bd_expos[[#This Row],[Numéro CAS]],Tableau2[#All],3,FALSE),"") ->  | J65: =IFERROR(VLOOKUP(bd_expos[[#This Row],[Numéro CAS]],Tableau2[#All],4,FALSE),"") ->  | P65: =IF('Liste nominative CMR'!B65='Fiche individuelle CMR'!$C$8,MAX($P$8:P64)+1,"") -> 57
A66: =IF(COUNTIF(B$8:B65,B66)>0,"",MAX(A$8:A65)+1) -> 58 | E66: =IF(COUNTIF(F$8:F65,F66)>0,"",MAX(E$8:E65)+1) -> 58 | H66: =IFERROR(VLOOKUP(bd_expos[[#This Row],[Numéro CAS]],Tableau2[#All],2,FALSE),"") ->  | I66: =IFERROR(VLOOKUP(bd_expos[[#This Row],[Numéro CAS]],Tableau2[#All],3,FALSE),"") ->  | J66: =IFERROR(VLOOKUP(bd_expos[[#This Row],[Numéro CAS]],Tableau2[#All],4,FALSE),"") ->  | P66: =IF('Liste nominative CMR'!B66='Fiche individuelle CMR'!$C$8,MAX($P$8:P65)+1,"") -> 58
A67: =IF(COUNTIF(B$8:B66,B67)>0,"",MAX(A$8:A66)+1) -> 59 | E67: =IF(COUNTIF(F$8:F66,F67)>0,"",MAX(E$8:E66)+1) -> 59 | H67: =IFERROR(VLOOKUP(bd_expos[[#This Row],[Numéro CAS]],Tableau2[#All],2,FALSE),"") ->  | I67: =IFERROR(VLOOKUP(bd_expos[[#This Row],[Numéro CAS]],Tableau2[#All],3,FALSE),"") ->  | J67: =IFERROR(VLOOKUP(bd_expos[[#This Row],[Numéro CAS]],Tableau2[#All],4,FALSE),"") ->  | P67: =IF('Liste nominative CMR'!B67='Fiche individuelle CMR'!$C$8,MAX($P$8:P66)+1,"") -> 59
A68: =IF(COUNTIF(B$8:B67,B68)>0,"",MAX(A$8:A67)+1) -> 60 | E68: =IF(COUNTIF(F$8:F67,F68)>0,"",MAX(E$8:E67)+1) -> 60 | H68: =IFERROR(VLOOKUP(bd_expos[[#This Row],[Numéro CAS]],Tableau2[#All],2,FALSE),"") ->  | I68: =IFERROR(VLOOKUP(bd_expos[[#This Row],[Numéro CAS]],Tableau2[#All],3,FALSE),"") ->  | J68: =IFERROR(VLOOKUP(bd_expos[[#This Row],[Numéro CAS]],Tableau2[#All],4,FALSE),"") ->  | P68: =IF('Liste nominative CMR'!B68='Fiche individuelle CMR'!$C$8,MAX($P$8:P67)+1,"") -> 60
A69: =IF(COUNTIF(B$8:B68,B69)>0,"",MAX(A$8:A68)+1) -> 61 | E69: =IF(COUNTIF(F$8:F68,F69)>0,"",MAX(E$8:E68)+1) -> 61 | H69: =IFERROR(VLOOKUP(bd_expos[[#This Row],[Numéro CAS]],Tableau2[#All],2,FALSE),"") ->  | I69: =IFERROR(VLOOKUP(bd_expos[[#This Row],[Numéro CAS]],Tableau2[#All],3,FALSE),"") ->  | J69: =IFERROR(VLOOKUP(bd_expos[[#This Row],[Numéro CAS]],Tableau2[#All],4,FALSE),"") ->  | P69: =IF('Liste nominative CMR'!B69='Fiche individuelle CMR'!$C$8,MAX($P$8:P68)+1,"") -> 61
A70: =IF(COUNTIF(B$8:B69,B70)>0,"",MAX(A$8:A69)+1) -> 62 | E70: =IF(COUNTIF(F$8:F69,F70)>0,"",MAX(E$8:E69)+1) -> 62 | H70: =IFERROR(VLOOKUP(bd_expos[[#This Row],[Numéro CAS]],Tableau2[#All],2,FALSE),"") ->  | I70: =IFERROR(VLOOKUP(bd_expos[[#This Row],[Numéro CAS]],Tableau2[#All],3,FALSE),"") ->  | J70: =IFERROR(VLOOKUP(bd_expos[[#This Row],[Numéro CAS]],Tableau2[#All],4,FALSE),"") ->  | P70: =IF('Liste nominative CMR'!B70='Fiche individuelle CMR'!$C$8,MAX($P$8:P69)+1,"") -> 62
A71: =IF(COUNTIF(B$8:B70,B71)>0,"",MAX(A$8:A70)+1) -> 63 | E71: =IF(COUNTIF(F$8:F70,F71)>0,"",MAX(E$8:E70)+1) -> 63 | H71: =IFERROR(VLOOKUP(bd_expos[[#This Row],[Numéro CAS]],Tableau2[#All],2,FALSE),"") ->  | I71: =IFERROR(VLOOKUP(bd_expos[[#This Row],[Numéro CAS]],Tableau2[#All],3,FALSE),"") ->  | J71: =IFERROR(VLOOKUP(bd_expos[[#This Row],[Numéro CAS]],Tableau2[#All],4,FALSE),"") ->  | P71: =IF('Liste nominative CMR'!B71='Fiche individuelle CMR'!$C$8,MAX($P$8:P70)+1,"") -> 63
A72: =IF(COUNTIF(B$8:B71,B72)>0,"",MAX(A$8:A71)+1) -> 64 | E72: =IF(COUNTIF(F$8:F71,F72)>0,"",MAX(E$8:E71)+1) -> 64 | H72: =IFERROR(VLOOKUP(bd_expos[[#This Row],[Numéro CAS]],Tableau2[#All],2,FALSE),"") ->  | I72: =IFERROR(VLOOKUP(bd_expos[[#This Row],[Numéro CAS]],Tableau2[#All],3,FALSE),"") ->  | J72: =IFERROR(VLOOKUP(bd_expos[[#This Row],[Numéro CAS]],Tableau2[#All],4,FALSE),"") ->  | P72: =IF('Liste nominative CMR'!B72='Fiche individuelle CMR'!$C$8,MAX($P$8:P71)+1,"") -> 64
A73: =IF(COUNTIF(B$8:B72,B73)>0,"",MAX(A$8:A72)+1) -> 65 | E73: =IF(COUNTIF(F$8:F72,F73)>0,"",MAX(E$8:E72)+1) -> 65 | H73: =IFERROR(VLOOKUP(bd_expos[[#This Row],[Numéro CAS]],Tableau2[#All],2,FALSE),"") ->  | I73: =IFERROR(VLOOKUP(bd_expos[[#This Row],[Numéro CAS]],Tableau2[#All],3,FALSE),"") ->  | J73: =IFERROR(VLOOKUP(bd_expos[[#This Row],[Numéro CAS]],Tableau2[#All],4,FALSE),"") ->  | P73: =IF('Liste nominative CMR'!B73='Fiche individuelle CMR'!$C$8,MAX($P$8:P72)+1,"") -> 65
A74: =IF(COUNTIF(B$8:B73,B74)>0,"",MAX(A$8:A73)+1) -> 66 | E74: =IF(COUNTIF(F$8:F73,F74)>0,"",MAX(E$8:E73)+1) -> 66 | H74: =IFERROR(VLOOKUP(bd_expos[[#This Row],[Numéro CAS]],Tableau2[#All],2,FALSE),"") ->  | I74: =IFERROR(VLOOKUP(bd_expos[[#This Row],[Numéro CAS]],Tableau2[#All],3,FALSE),"") ->  | J74: =IFERROR(VLOOKUP(bd_expos[[#This Row],[Numéro CAS]],Tableau2[#All],4,FALSE),"") ->  | P74: =IF('Liste nominative CMR'!B74='Fiche individuelle CMR'!$C$8,MAX($P$8:P73)+1,"") -> 66
A75: =IF(COUNTIF(B$8:B74,B75)>0,"",MAX(A$8:A74)+1) -> 67 | E75: =IF(COUNTIF(F$8:F74,F75)>0,"",MAX(E$8:E74)+1) -> 67 | H75: =IFERROR(VLOOKUP(bd_expos[[#This Row],[Numéro CAS]],Tableau2[#All],2,FALSE),"") ->  | I75: =IFERROR(VLOOKUP(bd_expos[[#This Row],[Numéro CAS]],Tableau2[#All],3,FALSE),"") ->  | J75: =IFERROR(VLOOKUP(bd_expos[[#This Row],[Numéro CAS]],Tableau2[#All],4,FALSE),"") ->  | P75: =IF('Liste nominative CMR'!B75='Fiche individuelle CMR'!$C$8,MAX($P$8:P74)+1,"") -> 67
A76: =IF(COUNTIF(B$8:B75,B76)>0,"",MAX(A$8:A75)+1) -> 68 | E76: =IF(COUNTIF(F$8:F75,F76)>0,"",MAX(E$8:E75)+1) -> 68 | H76: =IFERROR(VLOOKUP(bd_expos[[#This Row],[Numéro CAS]],Tableau2[#All],2,FALSE),"") ->  | I76: =IFERROR(VLOOKUP(bd_expos[[#This Row],[Numéro CAS]],Tableau2[#All],3,FALSE),"") ->  | J76: =IFERROR(VLOOKUP(bd_expos[[#This Row],[Numéro CAS]],Tableau2[#All],4,FALSE),"") ->  | P76: =IF('Liste nominative CMR'!B76='Fiche individuelle CMR'!$C$8,MAX($P$8:P75)+1,"") -> 68
A77: =IF(COUNTIF(B$8:B76,B77)>0,"",MAX(A$8:A76)+1) -> 69 | E77: =IF(COUNTIF(F$8:F76,F77)>0,"",MAX(E$8:E76)+1) -> 69 | H77: =IFERROR(VLOOKUP(bd_expos[[#This Row],[Numéro CAS]],Tableau2[#All],2,FALSE),"") ->  | I77: =IFERROR(VLOOKUP(bd_expos[[#This Row],[Numéro CAS]],Tableau2[#All],3,FALSE),"") ->  | J77: =IFERROR(VLOOKUP(bd_expos[[#This Row],[Numéro CAS]],Tableau2[#All],4,FALSE),"") ->  | P77: =IF('Liste nominative CMR'!B77='Fiche individuelle CMR'!$C$8,MAX($P$8:P76)+1,"") -> 69
A78: =IF(COUNTIF(B$8:B77,B78)>0,"",MAX(A$8:A77)+1) -> 70 | E78: =IF(COUNTIF(F$8:F77,F78)>0,"",MAX(E$8:E77)+1) -> 70 | H78: =IFERROR(VLOOKUP(bd_expos[[#This Row],[Numéro CAS]],Tableau2[#All],2,FALSE),"") ->  | I78: =IFERROR(VLOOKUP(bd_expos[[#This Row],[Numéro CAS]],Tableau2[#All],3,FALSE),"") ->  | J78: =IFERROR(VLOOKUP(bd_expos[[#This Row],[Numéro CAS]],Tableau2[#All],4,FALSE),"") ->  | P78: =IF('Liste nominative CMR'!B78='Fiche individuelle CMR'!$C$8,MAX($P$8:P77)+1,"") -> 70
A79: =IF(COUNTIF(B$8:B78,B79)>0,"",MAX(A$8:A78)+1) -> 71 | E79: =IF(COUNTIF(F$8:F78,F79)>0,"",MAX(E$8:E78)+1) -> 71 | H79: =IFERROR(VLOOKUP(bd_expos[[#This Row],[Numéro CAS]],Tableau2[#All],2,FALSE),"") ->  | I79: =IFERROR(VLOOKUP(bd_expos[[#This Row],[Numéro CAS]],Tableau2[#All],3,FALSE),"") ->  | J79: =IFERROR(VLOOKUP(bd_expos[[#This Row],[Numéro CAS]],Tableau2[#All],4,FALSE),"") ->  | P79: =IF('Liste nominative CMR'!B79='Fiche individuelle CMR'!$C$8,MAX($P$8:P78)+1,"") -> 71
A80: =IF(COUNTIF(B$8:B79,B80)>0,"",MAX(A$8:A79)+1) -> 72 | E80: =IF(COUNTIF(F$8:F79,F80)>0,"",MAX(E$8:E79)+1) -> 72 | H80: =IFERROR(VLOOKUP(bd_expos[[#This Row],[Numéro CAS]],Tableau2[#All],2,FALSE),"") ->  | I80: =IFERROR(VLOOKUP(bd_expos[[#This Row],[Numéro CAS]],Tableau2[#All],3,FALSE),"") ->  | J80: =IFERROR(VLOOKUP(bd_expos[[#This Row],[Numéro CAS]],Tableau2[#All],4,FALSE),"") ->  | P80: =IF('Liste nominative CMR'!B80='Fiche individuelle CMR'!$C$8,MAX($P$8:P79)+1,"") -> 72
A81: =IF(COUNTIF(B$8:B80,B81)>0,"",MAX(A$8:A80)+1) -> 73 | E81: =IF(COUNTIF(F$8:F80,F81)>0,"",MAX(E$8:E80)+1) -> 73 | H81: =IFERROR(VLOOKUP(bd_expos[[#This Row],[Numéro CAS]],Tableau2[#All],2,FALSE),"") ->  | I81: =IFERROR(VLOOKUP(bd_expos[[#This Row],[Numéro CAS]],Tableau2[#All],3,FALSE),"") ->  | J81: =IFERROR(VLOOKUP(bd_expos[[#This Row],[Numéro CAS]],Tableau2[#All],4,FALSE),"") ->  | P81: =IF('Liste nominative CMR'!B81='Fiche individuelle CMR'!$C$8,MAX($P$8:P80)+1,"") -> 73
A82: =IF(COUNTIF(B$8:B81,B82)>0,"",MAX(A$8:A81)+1) -> 74 | E82: =IF(COUNTIF(F$8:F81,F82)>0,"",MAX(E$8:E81)+1) -> 74 | H82: =IFERROR(VLOOKUP(bd_expos[[#This Row],[Numéro CAS]],Tableau2[#All],2,FALSE),"") ->  | I82: =IFERROR(VLOOKUP(bd_expos[[#This Row],[Numéro CAS]],Tableau2[#All],3,FALSE),"") ->  | J82: =IFERROR(VLOOKUP(bd_expos[[#This Row],[Numéro CAS]],Tableau2[#All],4,FALSE),"") ->  | P82: =IF('Liste nominative CMR'!B82='Fiche individuelle CMR'!$C$8,MAX($P$8:P81)+1,"") -> 74
A83: =IF(COUNTIF(B$8:B82,B83)>0,"",MAX(A$8:A82)+1) -> 75 | E83: =IF(COUNTIF(F$8:F82,F83)>0,"",MAX(E$8:E82)+1) -> 75 | H83: =IFERROR(VLOOKUP(bd_expos[[#This Row],[Numéro CAS]],Tableau2[#All],2,FALSE),"") ->  | I83: =IFERROR(VLOOKUP(bd_expos[[#This Row],[Numéro CAS]],Tableau2[#All],3,FALSE),"") ->  | J83: =IFERROR(VLOOKUP(bd_expos[[#This Row],[Numéro CAS]],Tableau2[#All],4,FALSE),"") ->  | P83: =IF('Liste nominative CMR'!B83='Fiche individuelle CMR'!$C$8,MAX($P$8:P82)+1,"") -> 75
A84: =IF(COUNTIF(B$8:B83,B84)>0,"",MAX(A$8:A83)+1) -> 76 | E84: =IF(COUNTIF(F$8:F83,F84)>0,"",MAX(E$8:E83)+1) -> 76 | H84: =IFERROR(VLOOKUP(bd_expos[[#This Row],[Numéro CAS]],Tableau2[#All],2,FALSE),"") ->  | I84: =IFERROR(VLOOKUP(bd_expos[[#This Row],[Numéro CAS]],Tableau2[#All],3,FALSE),"") ->  | J84: =IFERROR(VLOOKUP(bd_expos[[#This Row],[Numéro CAS]],Tableau2[#All],4,FALSE),"") ->  | P84: =IF('Liste nominative CMR'!B84='Fiche individuelle CMR'!$C$8,MAX($P$8:P83)+1,"") -> 76
A85: =IF(COUNTIF(B$8:B84,B85)>0,"",MAX(A$8:A84)+1) -> 77 | E85: =IF(COUNTIF(F$8:F84,F85)>0,"",MAX(E$8:E84)+1) -> 77 | H85: =IFERROR(VLOOKUP(bd_expos[[#This Row],[Numéro CAS]],Tableau2[#All],2,FALSE),"") ->  | I85: =IFERROR(VLOOKUP(bd_expos[[#This Row],[Numéro CAS]],Tableau2[#All],3,FALSE),"") ->  | J85: =IFERROR(VLOOKUP(bd_expos[[#This Row],[Numéro CAS]],Tableau2[#All],4,FALSE),"") ->  | P85: =IF('Liste nominative CMR'!B85='Fiche individuelle CMR'!$C$8,MAX($P$8:P84)+1,"") -> 77
A86: =IF(COUNTIF(B$8:B85,B86)>0,"",MAX(A$8:A85)+1) -> 78 | E86: =IF(COUNTIF(F$8:F85,F86)>0,"",MAX(E$8:E85)+1) -> 78 | H86: =IFERROR(VLOOKUP(bd_expos[[#This Row],[Numéro CAS]],Tableau2[#All],2,FALSE),"") ->  | I86: =IFERROR(VLOOKUP(bd_expos[[#This Row],[Numéro CAS]],Tableau2[#All],3,FALSE),"") ->  | J86: =IFERROR(VLOOKUP(bd_expos[[#This Row],[Numéro CAS]],Tableau2[#All],4,FALSE),"") ->  | P86: =IF('Liste nominative CMR'!B86='Fiche individuelle CMR'!$C$8,MAX($P$8:P85)+1,"") -> 78
A87: =IF(COUNTIF(B$8:B86,B87)>0,"",MAX(A$8:A86)+1) -> 79 | E87: =IF(COUNTIF(F$8:F86,F87)>0,"",MAX(E$8:E86)+1) -> 79 | H87: =IFERROR(VLOOKUP(bd_expos[[#This Row],[Numéro CAS]],Tableau2[#All],2,FALSE),"") ->  | I87: =IFERROR(VLOOKUP(bd_expos[[#This Row],[Numéro CAS]],Tableau2[#All],3,FALSE),"") ->  | J87: =IFERROR(VLOOKUP(bd_expos[[#This Row],[Numéro CAS]],Tableau2[#All],4,FALSE),"") ->  | P87: =IF('Liste nominative CMR'!B87='Fiche individuelle CMR'!$C$8,MAX($P$8:P86)+1,"") -> 79
A88: =IF(COUNTIF(B$8:B87,B88)>0,"",MAX(A$8:A87)+1) -> 80 | E88: =IF(COUNTIF(F$8:F87,F88)>0,"",MAX(E$8:E87)+1) -> 80 | H88: =IFERROR(VLOOKUP(bd_expos[[#This Row],[Numéro CAS]],Tableau2[#All],2,FALSE),"") ->  | I88: =IFERROR(VLOOKUP(bd_expos[[#This Row],[Numéro CAS]],Tableau2[#All],3,FALSE),"") ->  | J88: =IFERROR(VLOOKUP(bd_expos[[#This Row],[Numéro CAS]],Tableau2[#All],4,FALSE),"") ->  | P88: =IF('Liste nominative CMR'!B88='Fiche individuelle CMR'!$C$8,MAX($P$8:P87)+1,"") -> 80
A89: =IF(COUNTIF(B$8:B88,B89)>0,"",MAX(A$8:A88)+1) -> 81 | E89: =IF(COUNTIF(F$8:F88,F89)>0,"",MAX(E$8:E88)+1) -> 81 | H89: =IFERROR(VLOOKUP(bd_expos[[#This Row],[Numéro CAS]],Tableau2[#All],2,FALSE),"") ->  | I89: =IFERROR(VLOOKUP(bd_expos[[#This Row],[Numéro CAS]],Tableau2[#All],3,FALSE),"") ->  | J89: =IFERROR(VLOOKUP(bd_expos[[#This Row],[Numéro CAS]],Tableau2[#All],4,FALSE),"") ->  | P89: =IF('Liste nominative CMR'!B89='Fiche individuelle CMR'!$C$8,MAX($P$8:P88)+1,"") -> 81
A90: =IF(COUNTIF(B$8:B89,B90)>0,"",MAX(A$8:A89)+1) -> 82 | E90: =IF(COUNTIF(F$8:F89,F90)>0,"",MAX(E$8:E89)+1) -> 82 | H90: =IFERROR(VLOOKUP(bd_expos[[#This Row],[Numéro CAS]],Tableau2[#All],2,FALSE),"") ->  | I90: =IFERROR(VLOOKUP(bd_expos[[#This Row],[Numéro CAS]],Tableau2[#All],3,FALSE),"") ->  | J90: =IFERROR(VLOOKUP(bd_expos[[#This Row],[Numéro CAS]],Tableau2[#All],4,FALSE),"") ->  | P90: =IF('Liste nominative CMR'!B90='Fiche individuelle CMR'!$C$8,MAX($P$8:P89)+1,"") -> 82
A91: =IF(COUNTIF(B$8:B90,B91)>0,"",MAX(A$8:A90)+1) -> 83 | E91: =IF(COUNTIF(F$8:F90,F91)>0,"",MAX(E$8:E90)+1) -> 83 | H91: =IFERROR(VLOOKUP(bd_expos[[#This Row],[Numéro CAS]],Tableau2[#All],2,FALSE),"") ->  | I91: =IFERROR(VLOOKUP(bd_expos[[#This Row],[Numéro CAS]],Tableau2[#All],3,FALSE),"") ->  | J91: =IFERROR(VLOOKUP(bd_expos[[#This Row],[Numéro CAS]],Tableau2[#All],4,FALSE),"") ->  | P91: =IF('Liste nominative CMR'!B91='Fiche individuelle CMR'!$C$8,MAX($P$8:P90)+1,"") -> 83
A92: =IF(COUNTIF(B$8:B91,B92)>0,"",MAX(A$8:A91)+1) -> 84 | E92: =IF(COUNTIF(F$8:F91,F92)>0,"",MAX(E$8:E91)+1) -> 84 | H92: =IFERROR(VLOOKUP(bd_expos[[#This Row],[Numéro CAS]],Tableau2[#All],2,FALSE),"") ->  | I92: =IFERROR(VLOOKUP(bd_expos[[#This Row],[Numéro CAS]],Tableau2[#All],3,FALSE),"") ->  | J92: =IFERROR(VLOOKUP(bd_expos[[#This Row],[Numéro CAS]],Tableau2[#All],4,FALSE),"") ->  | P92: =IF('Liste nominative CMR'!B92='Fiche individuelle CMR'!$C$8,MAX($P$8:P91)+1,"") -> 84
A93: =IF(COUNTIF(B$8:B92,B93)>0,"",MAX(A$8:A92)+1) -> 85 | E93: =IF(COUNTIF(F$8:F92,F93)>0,"",MAX(E$8:E92)+1) -> 85 | H93: =IFERROR(VLOOKUP(bd_expos[[#This Row],[Numéro CAS]],Tableau2[#All],2,FALSE),"") ->  | I93: =IFERROR(VLOOKUP(bd_expos[[#This Row],[Numéro CAS]],Tableau2[#All],3,FALSE),"") ->  | J93: =IFERROR(VLOOKUP(bd_expos[[#This Row],[Numéro CAS]],Tableau2[#All],4,FALSE),"") ->  | P93: =IF('Liste nominative CMR'!B93='Fiche individuelle CMR'!$C$8,MAX($P$8:P92)+1,"") -> 85
A94: =IF(COUNTIF(B$8:B93,B94)>0,"",MAX(A$8:A93)+1) -> 86 | E94: =IF(COUNTIF(F$8:F93,F94)>0,"",MAX(E$8:E93)+1) -> 86 | H94: =IFERROR(VLOOKUP(bd_expos[[#This Row],[Numéro CAS]],Tableau2[#All],2,FALSE),"") ->  | I94: =IFERROR(VLOOKUP(bd_expos[[#This Row],[Numéro CAS]],Tableau2[#All],3,FALSE),"") ->  | J94: =IFERROR(VLOOKUP(bd_expos[[#This Row],[Numéro CAS]],Tableau2[#All],4,FALSE),"") ->  | P94: =IF('Liste nominative CMR'!B94='Fiche individuelle CMR'!$C$8,MAX($P$8:P93)+1,"") -> 86
A95: =IF(COUNTIF(B$8:B94,B95)>0,"",MAX(A$8:A94)+1) -> 87 | E95: =IF(COUNTIF(F$8:F94,F95)>0,"",MAX(E$8:E94)+1) -> 87 | H95: =IFERROR(VLOOKUP(bd_expos[[#This Row],[Numéro CAS]],Tableau2[#All],2,FALSE),"") ->  | I95: =IFERROR(VLOOKUP(bd_expos[[#This Row],[Numéro CAS]],Tableau2[#All],3,FALSE),"") ->  | J95: =IFERROR(VLOOKUP(bd_expos[[#This Row],[Numéro CAS]],Tableau2[#All],4,FALSE),"") ->  | P95: =IF('Liste nominative CMR'!B95='Fiche individuelle CMR'!$C$8,MAX($P$8:P94)+1,"") -> 87
A96: =IF(COUNTIF(B$8:B95,B96)>0,"",MAX(A$8:A95)+1) -> 88 | E96: =IF(COUNTIF(F$8:F95,F96)>0,"",MAX(E$8:E95)+1) -> 88 | H96: =IFERROR(VLOOKUP(bd_expos[[#This Row],[Numéro CAS]],Tableau2[#All],2,FALSE),"") ->  | I96: =IFERROR(VLOOKUP(bd_expos[[#This Row],[Numéro CAS]],Tableau2[#All],3,FALSE),"") ->  | J96: =IFERROR(VLOOKUP(bd_expos[[#This Row],[Numéro CAS]],Tableau2[#All],4,FALSE),"") ->  | P96: =IF('Liste nominative CMR'!B96='Fiche individuelle CMR'!$C$8,MAX($P$8:P95)+1,"") -> 88
A97: =IF(COUNTIF(B$8:B96,B97)>0,"",MAX(A$8:A96)+1) -> 89 | E97: =IF(COUNTIF(F$8:F96,F97)>0,"",MAX(E$8:E96)+1) -> 89 | H97: =IFERROR(VLOOKUP(bd_expos[[#This Row],[Numéro CAS]],Tableau2[#All],2,FALSE),"") ->  | I97: =IFERROR(VLOOKUP(bd_expos[[#This Row],[Numéro CAS]],Tableau2[#All],3,FALSE),"") ->  | J97: =IFERROR(VLOOKUP(bd_expos[[#This Row],[Numéro CAS]],Tableau2[#All],4,FALSE),"") ->  | P97: =IF('Liste nominative CMR'!B97='Fiche individuelle CMR'!$C$8,MAX($P$8:P96)+1,"") -> 89
A98: =IF(COUNTIF(B$8:B97,B98)>0,"",MAX(A$8:A97)+1) -> 90 | E98: =IF(COUNTIF(F$8:F97,F98)>0,"",MAX(E$8:E97)+1) -> 90 | H98: =IFERROR(VLOOKUP(bd_expos[[#This Row],[Numéro CAS]],Tableau2[#All],2,FALSE),"") ->  | I98: =IFERROR(VLOOKUP(bd_expos[[#This Row],[Numéro CAS]],Tableau2[#All],3,FALSE),"") ->  | J98: =IFERROR(VLOOKUP(bd_expos[[#This Row],[Numéro CAS]],Tableau2[#All],4,FALSE),"") ->  | P98: =IF('Liste nominative CMR'!B98='Fiche individuelle CMR'!$C$8,MAX($P$8:P97)+1,"") -> 90
A99: =IF(COUNTIF(B$8:B98,B99)>0,"",MAX(A$8:A98)+1) -> 91 | E99: =IF(COUNTIF(F$8:F98,F99)>0,"",MAX(E$8:E98)+1) -> 91 | H99: =IFERROR(VLOOKUP(bd_expos[[#This Row],[Numéro CAS]],Tableau2[#All],2,FALSE),"") ->  | I99: =IFERROR(VLOOKUP(bd_expos[[#This Row],[Numéro CAS]],Tableau2[#All],3,FALSE),"") ->  | J99: =IFERROR(VLOOKUP(bd_expos[[#This Row],[Numéro CAS]],Tableau2[#All],4,FALSE),"") ->  | P99: =IF('Liste nominative CMR'!B99='Fiche individuelle CMR'!$C$8,MAX($P$8:P98)+1,"") -> 91
A100: =IF(COUNTIF(B$8:B99,B100)>0,"",MAX(A$8:A99)+1) -> 92 | E100: =IF(COUNTIF(F$8:F99,F100)>0,"",MAX(E$8:E99)+1) -> 92 | H100: =IFERROR(VLOOKUP(bd_expos[[#This Row],[Numéro CAS]],Tableau2[#All],2,FALSE),"") ->  | I100: =IFERROR(VLOOKUP(bd_expos[[#This Row],[Numéro CAS]],Tableau2[#All],3,FALSE),"") ->  | J100: =IFERROR(VLOOKUP(bd_expos[[#This Row],[Numéro CAS]],Tableau2[#All],4,FALSE),"") ->  | P100: =IF('Liste nominative CMR'!B100='Fiche individuelle CMR'!$C$8,MAX($P$8:P99)+1,"") -> 92
A101: =IF(COUNTIF(B$8:B100,B101)>0,"",MAX(A$8:A100)+1) -> 93 | E101: =IF(COUNTIF(F$8:F100,F101)>0,"",MAX(E$8:E100)+1) -> 93 | H101: =IFERROR(VLOOKUP(bd_expos[[#This Row],[Numéro CAS]],Tableau2[#All],2,FALSE),"") ->  | I101: =IFERROR(VLOOKUP(bd_expos[[#This Row],[Numéro CAS]],Tableau2[#All],3,FALSE),"") ->  | J101: =IFERROR(VLOOKUP(bd_expos[[#This Row],[Numéro CAS]],Tableau2[#All],4,FALSE),"") ->  | P101: =IF('Liste nominative CMR'!B101='Fiche individuelle CMR'!$C$8,MAX($P$8:P100)+1,"") -> 93
A102: =IF(COUNTIF(B$8:B101,B102)>0,"",MAX(A$8:A101)+1) -> 94 | E102: =IF(COUNTIF(F$8:F101,F102)>0,"",MAX(E$8:E101)+1) -> 94 | H102: =IFERROR(VLOOKUP(bd_expos[[#This Row],[Numéro CAS]],Tableau2[#All],2,FALSE),"") ->  | I102: =IFERROR(VLOOKUP(bd_expos[[#This Row],[Numéro CAS]],Tableau2[#All],3,FALSE),"") ->  | J102: =IFERROR(VLOOKUP(bd_expos[[#This Row],[Numéro CAS]],Tableau2[#All],4,FALSE),"") ->  | P102: =IF('Liste nominative CMR'!B102='Fiche individuelle CMR'!$C$8,MAX($P$8:P101)+1,"") -> 94
A103: =IF(COUNTIF(B$8:B102,B103)>0,"",MAX(A$8:A102)+1) -> 95 | E103: =IF(COUNTIF(F$8:F102,F103)>0,"",MAX(E$8:E102)+1) -> 95 | H103: =IFERROR(VLOOKUP(bd_expos[[#This Row],[Numéro CAS]],Tableau2[#All],2,FALSE),"") ->  | I103: =IFERROR(VLOOKUP(bd_expos[[#This Row],[Numéro CAS]],Tableau2[#All],3,FALSE),"") ->  | J103: =IFERROR(VLOOKUP(bd_expos[[#This Row],[Numéro CAS]],Tableau2[#All],4,FALSE),"") ->  | P103: =IF('Liste nominative CMR'!B103='Fiche individuelle CMR'!$C$8,MAX($P$8:P102)+1,"") -> 95
A104: =IF(COUNTIF(B$8:B103,B104)>0,"",MAX(A$8:A103)+1) -> 96 | E104: =IF(COUNTIF(F$8:F103,F104)>0,"",MAX(E$8:E103)+1) -> 96 | H104: =IFERROR(VLOOKUP(bd_expos[[#This Row],[Numéro CAS]],Tableau2[#All],2,FALSE),"") ->  | I104: =IFERROR(VLOOKUP(bd_expos[[#This Row],[Numéro CAS]],Tableau2[#All],3,FALSE),"") ->  | J104: =IFERROR(VLOOKUP(bd_expos[[#This Row],[Numéro CAS]],Tableau2[#All],4,FALSE),"") ->  | P104: =IF('Liste nominative CMR'!B104='Fiche individuelle CMR'!$C$8,MAX($P$8:P103)+1,"") -> 96
A105: =IF(COUNTIF(B$8:B104,B105)>0,"",MAX(A$8:A104)+1) -> 97 | E105: =IF(COUNTIF(F$8:F104,F105)>0,"",MAX(E$8:E104)+1) -> 97 | H105: =IFERROR(VLOOKUP(bd_expos[[#This Row],[Numéro CAS]],Tableau2[#All],2,FALSE),"") ->  | I105: =IFERROR(VLOOKUP(bd_expos[[#This Row],[Numéro CAS]],Tableau2[#All],3,FALSE),"") ->  | J105: =IFERROR(VLOOKUP(bd_expos[[#This Row],[Numéro CAS]],Tableau2[#All],4,FALSE),"") ->  | P105: =IF('Liste nominative CMR'!B105='Fiche individuelle CMR'!$C$8,MAX($P$8:P104)+1,"") -> 97
A106: =IF(COUNTIF(B$8:B105,B106)>0,"",MAX(A$8:A105)+1) -> 98 | E106: =IF(COUNTIF(F$8:F105,F106)>0,"",MAX(E$8:E105)+1) -> 98 | H106: =IFERROR(VLOOKUP(bd_expos[[#This Row],[Numéro CAS]],Tableau2[#All],2,FALSE),"") ->  | I106: =IFERROR(VLOOKUP(bd_expos[[#This Row],[Numéro CAS]],Tableau2[#All],3,FALSE),"") ->  | J106: =IFERROR(VLOOKUP(bd_expos[[#This Row],[Numéro CAS]],Tableau2[#All],4,FALSE),"") ->  | P106: =IF('Liste nominative CMR'!B106='Fiche individuelle CMR'!$C$8,MAX($P$8:P105)+1,"") -> 98
A107: =IF(COUNTIF(B$8:B106,B107)>0,"",MAX(A$8:A106)+1) -> 99 | E107: =IF(COUNTIF(F$8:F106,F107)>0,"",MAX(E$8:E106)+1) -> 99 | H107: =IFERROR(VLOOKUP(bd_expos[[#This Row],[Numéro CAS]],Tableau2[#All],2,FALSE),"") ->  | I107: =IFERROR(VLOOKUP(bd_expos[[#This Row],[Numéro CAS]],Tableau2[#All],3,FALSE),"") ->  | J107: =IFERROR(VLOOKUP(bd_expos[[#This Row],[Numéro CAS]],Tableau2[#All],4,FALSE),"") ->  | P107: =IF('Liste nominative CMR'!B107='Fiche individuelle CMR'!$C$8,MAX($P$8:P106)+1,"") -> 99
A108: =IF(COUNTIF(B$8:B107,B108)>0,"",MAX(A$8:A107)+1) -> 100 | E108: =IF(COUNTIF(F$8:F107,F108)>0,"",MAX(E$8:E107)+1) -> 100 | H108: =IFERROR(VLOOKUP(bd_expos[[#This Row],[Numéro CAS]],Tableau2[#All],2,FALSE),"") ->  | I108: =IFERROR(VLOOKUP(bd_expos[[#This Row],[Numéro CAS]],Tableau2[#All],3,FALSE),"") ->  | J108: =IFERROR(VLOOKUP(bd_expos[[#This Row],[Numéro CAS]],Tableau2[#All],4,FALSE),"") ->  | P108: =IF('Liste nominative CMR'!B108='Fiche individuelle CMR'!$C$8,MAX($P$8:P107)+1,"") -> 100
A109: =IF(COUNTIF(B$8:B108,B109)>0,"",MAX(A$8:A108)+1) -> 101 | E109: =IF(COUNTIF(F$8:F108,F109)>0,"",MAX(E$8:E108)+1) -> 101 | H109: =IFERROR(VLOOKUP(bd_expos[[#This Row],[Numéro CAS]],Tableau2[#All],2,FALSE),"") ->  | I109: =IFERROR(VLOOKUP(bd_expos[[#This Row],[Numéro CAS]],Tableau2[#All],3,FALSE),"") ->  | J109: =IFERROR(VLOOKUP(bd_expos[[#This Row],[Numéro CAS]],Tableau2[#All],4,FALSE),"") ->  | P109: =IF('Liste nominative CMR'!B109='Fiche individuelle CMR'!$C$8,MAX($P$8:P108)+1,"") -> 101
A110: =IF(COUNTIF(B$8:B109,B110)>0,"",MAX(A$8:A109)+1) -> 102 | E110: =IF(COUNTIF(F$8:F109,F110)>0,"",MAX(E$8:E109)+1) -> 102 | H110: =IFERROR(VLOOKUP(bd_expos[[#This Row],[Numéro CAS]],Tableau2[#All],2,FALSE),"") ->  | I110: =IFERROR(VLOOKUP(bd_expos[[#This Row],[Numéro CAS]],Tableau2[#All],3,FALSE),"") ->  | J110: =IFERROR(VLOOKUP(bd_expos[[#This Row],[Numéro CAS]],Tableau2[#All],4,FALSE),"") ->  | P110: =IF('Liste nominative CMR'!B110='Fiche individuelle CMR'!$C$8,MAX($P$8:P109)+1,"") -> 102
A111: =IF(COUNTIF(B$8:B110,B111)>0,"",MAX(A$8:A110)+1) -> 103 | E111: =IF(COUNTIF(F$8:F110,F111)>0,"",MAX(E$8:E110)+1) -> 103 | H111: =IFERROR(VLOOKUP(bd_expos[[#This Row],[Numéro CAS]],Tableau2[#All],2,FALSE),"") ->  | I111: =IFERROR(VLOOKUP(bd_expos[[#This Row],[Numéro CAS]],Tableau2[#All],3,FALSE),"") ->  | J111: =IFERROR(VLOOKUP(bd_expos[[#This Row],[Numéro CAS]],Tableau2[#All],4,FALSE),"") ->  | P111: =IF('Liste nominative CMR'!B111='Fiche individuelle CMR'!$C$8,MAX($P$8:P110)+1,"") -> 103
A112: =IF(COUNTIF(B$8:B111,B112)>0,"",MAX(A$8:A111)+1) -> 104 | E112: =IF(COUNTIF(F$8:F111,F112)>0,"",MAX(E$8:E111)+1) -> 104 | H112: =IFERROR(VLOOKUP(bd_expos[[#This Row],[Numéro CAS]],Tableau2[#All],2,FALSE),"") ->  | I112: =IFERROR(VLOOKUP(bd_expos[[#This Row],[Numéro CAS]],Tableau2[#All],3,FALSE),"") ->  | J112: =IFERROR(VLOOKUP(bd_expos[[#This Row],[Numéro CAS]],Tableau2[#All],4,FALSE),"") ->  | P112: =IF('Liste nominative CMR'!B112='Fiche individuelle CMR'!$C$8,MAX($P$8:P111)+1,"") -> 104
A113: =IF(COUNTIF(B$8:B112,B113)>0,"",MAX(A$8:A112)+1) -> 105 | E113: =IF(COUNTIF(F$8:F112,F113)>0,"",MAX(E$8:E112)+1) -> 105 | H113: =IFERROR(VLOOKUP(bd_expos[[#This Row],[Numéro CAS]],Tableau2[#All],2,FALSE),"") ->  | I113: =IFERROR(VLOOKUP(bd_expos[[#This Row],[Numéro CAS]],Tableau2[#All],3,FALSE),"") ->  | J113: =IFERROR(VLOOKUP(bd_expos[[#This Row],[Numéro CAS]],Tableau2[#All],4,FALSE),"") ->  | P113: =IF('Liste nominative CMR'!B113='Fiche individuelle CMR'!$C$8,MAX($P$8:P112)+1,"") -> 105
A114: =IF(COUNTIF(B$8:B113,B114)>0,"",MAX(A$8:A113)+1) -> 106 | E114: =IF(COUNTIF(F$8:F113,F114)>0,"",MAX(E$8:E113)+1) -> 106 | H114: =IFERROR(VLOOKUP(bd_expos[[#This Row],[Numéro CAS]],Tableau2[#All],2,FALSE),"") ->  | I114: =IFERROR(VLOOKUP(bd_expos[[#This Row],[Numéro CAS]],Tableau2[#All],3,FALSE),"") ->  | J114: =IFERROR(VLOOKUP(bd_expos[[#This Row],[Numéro CAS]],Tableau2[#All],4,FALSE),"") ->  | P114: =IF('Liste nominative CMR'!B114='Fiche individuelle CMR'!$C$8,MAX($P$8:P113)+1,"") -> 106
A115: =IF(COUNTIF(B$8:B114,B115)>0,"",MAX(A$8:A114)+1) -> 107 | E115: =IF(COUNTIF(F$8:F114,F115)>0,"",MAX(E$8:E114)+1) -> 107 | H115: =IFERROR(VLOOKUP(bd_expos[[#This Row],[Numéro CAS]],Tableau2[#All],2,FALSE),"") ->  | I115: =IFERROR(VLOOKUP(bd_expos[[#This Row],[Numéro CAS]],Tableau2[#All],3,FALSE),"") ->  | J115: =IFERROR(VLOOKUP(bd_expos[[#This Row],[Numéro CAS]],Tableau2[#All],4,FALSE),"") ->  | P115: =IF('Liste nominative CMR'!B115='Fiche individuelle CMR'!$C$8,MAX($P$8:P114)+1,"") -> 107
A116: =IF(COUNTIF(B$8:B115,B116)>0,"",MAX(A$8:A115)+1) -> 108 | E116: =IF(COUNTIF(F$8:F115,F116)>0,"",MAX(E$8:E115)+1) -> 108 | H116: =IFERROR(VLOOKUP(bd_expos[[#This Row],[Numéro CAS]],Tableau2[#All],2,FALSE),"") ->  | I116: =IFERROR(VLOOKUP(bd_expos[[#This Row],[Numéro CAS]],Tableau2[#All],3,FALSE),"") ->  | J116: =IFERROR(VLOOKUP(bd_expos[[#This Row],[Numéro CAS]],Tableau2[#All],4,FALSE),"") ->  | P116: =IF('Liste nominative CMR'!B116='Fiche individuelle CMR'!$C$8,MAX($P$8:P115)+1,"") -> 108
A117: =IF(COUNTIF(B$8:B116,B117)>0,"",MAX(A$8:A116)+1) -> 109 | E117: =IF(COUNTIF(F$8:F116,F117)>0,"",MAX(E$8:E116)+1) -> 109 | H117: =IFERROR(VLOOKUP(bd_expos[[#This Row],[Numéro CAS]],Tableau2[#All],2,FALSE),"") ->  | I117: =IFERROR(VLOOKUP(bd_expos[[#This Row],[Numéro CAS]],Tableau2[#All],3,FALSE),"") ->  | J117: =IFERROR(VLOOKUP(bd_expos[[#This Row],[Numéro CAS]],Tableau2[#All],4,FALSE),"") ->  | P117: =IF('Liste nominative CMR'!B117='Fiche individuelle CMR'!$C$8,MAX($P$8:P116)+1,"") -> 109
A118: =IF(COUNTIF(B$8:B117,B118)>0,"",MAX(A$8:A117)+1) -> 110 | E118: =IF(COUNTIF(F$8:F117,F118)>0,"",MAX(E$8:E117)+1) -> 110 | H118: =IFERROR(VLOOKUP(bd_expos[[#This Row],[Numéro CAS]],Tableau2[#All],2,FALSE),"") ->  | I118: =IFERROR(VLOOKUP(bd_expos[[#This Row],[Numéro CAS]],Tableau2[#All],3,FALSE),"") ->  | J118: =IFERROR(VLOOKUP(bd_expos[[#This Row],[Numéro CAS]],Tableau2[#All],4,FALSE),"") ->  | P118: =IF('Liste nominative CMR'!B118='Fiche individuelle CMR'!$C$8,MAX($P$8:P117)+1,"") -> 110
A119: =IF(COUNTIF(B$8:B118,B119)>0,"",MAX(A$8:A118)+1) -> 111 | E119: =IF(COUNTIF(F$8:F118,F119)>0,"",MAX(E$8:E118)+1) -> 111 | H119: =IFERROR(VLOOKUP(bd_expos[[#This Row],[Numéro CAS]],Tableau2[#All],2,FALSE),"") ->  | I119: =IFERROR(VLOOKUP(bd_expos[[#This Row],[Numéro CAS]],Tableau2[#All],3,FALSE),"") ->  | J119: =IFERROR(VLOOKUP(bd_expos[[#This Row],[Numéro CAS]],Tableau2[#All],4,FALSE),"") ->  | P119: =IF('Liste nominative CMR'!B119='Fiche individuelle CMR'!$C$8,MAX($P$8:P118)+1,"") -> 111
A120: =IF(COUNTIF(B$8:B119,B120)>0,"",MAX(A$8:A119)+1) -> 112 | E120: =IF(COUNTIF(F$8:F119,F120)>0,"",MAX(E$8:E119)+1) -> 112 | H120: =IFERROR(VLOOKUP(bd_expos[[#This Row],[Numéro CAS]],Tableau2[#All],2,FALSE),"") ->  | I120: =IFERROR(VLOOKUP(bd_expos[[#This Row],[Numéro CAS]],Tableau2[#All],3,FALSE),"") ->  | J120: =IFERROR(VLOOKUP(bd_expos[[#This Row],[Numéro CAS]],Tableau2[#All],4,FALSE),"") ->  | P120: =IF('Liste nominative CMR'!B120='Fiche individuelle CMR'!$C$8,MAX($P$8:P119)+1,"") -> 112
A121: =IF(COUNTIF(B$8:B120,B121)>0,"",MAX(A$8:A120)+1) -> 113 | E121: =IF(COUNTIF(F$8:F120,F121)>0,"",MAX(E$8:E120)+1) -> 113 | H121: =IFERROR(VLOOKUP(bd_expos[[#This Row],[Numéro CAS]],Tableau2[#All],2,FALSE),"") ->  | I121: =IFERROR(VLOOKUP(bd_expos[[#This Row],[Numéro CAS]],Tableau2[#All],3,FALSE),"") ->  | J121: =IFERROR(VLOOKUP(bd_expos[[#This Row],[Numéro CAS]],Tableau2[#All],4,FALSE),"") ->  | P121: =IF('Liste nominative CMR'!B121='Fiche individuelle CMR'!$C$8,MAX($P$8:P120)+1,"") -> 113
A122: =IF(COUNTIF(B$8:B121,B122)>0,"",MAX(A$8:A121)+1) -> 114 | E122: =IF(COUNTIF(F$8:F121,F122)>0,"",MAX(E$8:E121)+1) -> 114 | H122: =IFERROR(VLOOKUP(bd_expos[[#This Row],[Numéro CAS]],Tableau2[#All],2,FALSE),"") ->  | I122: =IFERROR(VLOOKUP(bd_expos[[#This Row],[Numéro CAS]],Tableau2[#All],3,FALSE),"") ->  | J122: =IFERROR(VLOOKUP(bd_expos[[#This Row],[Numéro CAS]],Tableau2[#All],4,FALSE),"") ->  | P122: =IF('Liste nominative CMR'!B122='Fiche individuelle CMR'!$C$8,MAX($P$8:P121)+1,"") -> 114
A123: =IF(COUNTIF(B$8:B122,B123)>0,"",MAX(A$8:A122)+1) -> 115 | E123: =IF(COUNTIF(F$8:F122,F123)>0,"",MAX(E$8:E122)+1) -> 115 | H123: =IFERROR(VLOOKUP(bd_expos[[#This Row],[Numéro CAS]],Tableau2[#All],2,FALSE),"") ->  | I123: =IFERROR(VLOOKUP(bd_expos[[#This Row],[Numéro CAS]],Tableau2[#All],3,FALSE),"") ->  | J123: =IFERROR(VLOOKUP(bd_expos[[#This Row],[Numéro CAS]],Tableau2[#All],4,FALSE),"") ->  | P123: =IF('Liste nominative CMR'!B123='Fiche individuelle CMR'!$C$8,MAX($P$8:P122)+1,"") -> 115
A124: =IF(COUNTIF(B$8:B123,B124)>0,"",MAX(A$8:A123)+1) -> 116 | E124: =IF(COUNTIF(F$8:F123,F124)>0,"",MAX(E$8:E123)+1) -> 116 | H124: =IFERROR(VLOOKUP(bd_expos[[#This Row],[Numéro CAS]],Tableau2[#All],2,FALSE),"") ->  | I124: =IFERROR(VLOOKUP(bd_expos[[#This Row],[Numéro CAS]],Tableau2[#All],3,FALSE),"") ->  | J124: =IFERROR(VLOOKUP(bd_expos[[#This Row],[Numéro CAS]],Tableau2[#All],4,FALSE),"") ->  | P124: =IF('Liste nominative CMR'!B124='Fiche individuelle CMR'!$C$8,MAX($P$8:P123)+1,"") -> 116
A125: =IF(COUNTIF(B$8:B124,B125)>0,"",MAX(A$8:A124)+1) -> 117 | E125: =IF(COUNTIF(F$8:F124,F125)>0,"",MAX(E$8:E124)+1) -> 117 | H125: =IFERROR(VLOOKUP(bd_expos[[#This Row],[Numéro CAS]],Tableau2[#All],2,FALSE),"") ->  | I125: =IFERROR(VLOOKUP(bd_expos[[#This Row],[Numéro CAS]],Tableau2[#All],3,FALSE),"") ->  | J125: =IFERROR(VLOOKUP(bd_expos[[#This Row],[Numéro CAS]],Tableau2[#All],4,FALSE),"") ->  | P125: =IF('Liste nominative CMR'!B125='Fiche individuelle CMR'!$C$8,MAX($P$8:P124)+1,"") -> 117
A126: =IF(COUNTIF(B$8:B125,B126)>0,"",MAX(A$8:A125)+1) -> 118 | E126: =IF(COUNTIF(F$8:F125,F126)>0,"",MAX(E$8:E125)+1) -> 118 | H126: =IFERROR(VLOOKUP(bd_expos[[#This Row],[Numéro CAS]],Tableau2[#All],2,FALSE),"") ->  | I126: =IFERROR(VLOOKUP(bd_expos[[#This Row],[Numéro CAS]],Tableau2[#All],3,FALSE),"") ->  | J126: =IFERROR(VLOOKUP(bd_expos[[#This Row],[Numéro CAS]],Tableau2[#All],4,FALSE),"") ->  | P126: =IF('Liste nominative CMR'!B126='Fiche individuelle CMR'!$C$8,MAX($P$8:P125)+1,"") -> 118
A127: =IF(COUNTIF(B$8:B126,B127)>0,"",MAX(A$8:A126)+1) -> 119 | E127: =IF(COUNTIF(F$8:F126,F127)>0,"",MAX(E$8:E126)+1) -> 119 | H127: =IFERROR(VLOOKUP(bd_expos[[#This Row],[Numéro CAS]],Tableau2[#All],2,FALSE),"") ->  | I127: =IFERROR(VLOOKUP(bd_expos[[#This Row],[Numéro CAS]],Tableau2[#All],3,FALSE),"") ->  | J127: =IFERROR(VLOOKUP(bd_expos[[#This Row],[Numéro CAS]],Tableau2[#All],4,FALSE),"") ->  | P127: =IF('Liste nominative CMR'!B127='Fiche individuelle CMR'!$C$8,MAX($P$8:P126)+1,"") -> 119
A128: =IF(COUNTIF(B$8:B127,B128)>0,"",MAX(A$8:A127)+1) -> 120 | E128: =IF(COUNTIF(F$8:F127,F128)>0,"",MAX(E$8:E127)+1) -> 120 | H128: =IFERROR(VLOOKUP(bd_expos[[#This Row],[Numéro CAS]],Tableau2[#All],2,FALSE),"") ->  | I128: =IFERROR(VLOOKUP(bd_expos[[#This Row],[Numéro CAS]],Tableau2[#All],3,FALSE),"") ->  | J128: =IFERROR(VLOOKUP(bd_expos[[#This Row],[Numéro CAS]],Tableau2[#All],4,FALSE),"") ->  | P128: =IF('Liste nominative CMR'!B128='Fiche individuelle CMR'!$C$8,MAX($P$8:P127)+1,"") -> 120
A129: =IF(COUNTIF(B$8:B128,B129)>0,"",MAX(A$8:A128)+1) -> 121 | E129: =IF(COUNTIF(F$8:F128,F129)>0,"",MAX(E$8:E128)+1) -> 121 | H129: =IFERROR(VLOOKUP(bd_expos[[#This Row],[Numéro CAS]],Tableau2[#All],2,FALSE),"") ->  | I129: =IFERROR(VLOOKUP(bd_expos[[#This Row],[Numéro CAS]],Tableau2[#All],3,FALSE),"") ->  | J129: =IFERROR(VLOOKUP(bd_expos[[#This Row],[Numéro CAS]],Tableau2[#All],4,FALSE),"") ->  | P129: =IF('Liste nominative CMR'!B129='Fiche individuelle CMR'!$C$8,MAX($P$8:P128)+1,"") -> 121
A130: =IF(COUNTIF(B$8:B129,B130)>0,"",MAX(A$8:A129)+1) -> 122 | E130: =IF(COUNTIF(F$8:F129,F130)>0,"",MAX(E$8:E129)+1) -> 122 | H130: =IFERROR(VLOOKUP(bd_expos[[#This Row],[Numéro CAS]],Tableau2[#All],2,FALSE),"") ->  | I130: =IFERROR(VLOOKUP(bd_expos[[#This Row],[Numéro CAS]],Tableau2[#All],3,FALSE),"") ->  | J130: =IFERROR(VLOOKUP(bd_expos[[#This Row],[Numéro CAS]],Tableau2[#All],4,FALSE),"") ->  | P130: =IF('Liste nominative CMR'!B130='Fiche individuelle CMR'!$C$8,MAX($P$8:P129)+1,"") -> 122
A131: =IF(COUNTIF(B$8:B130,B131)>0,"",MAX(A$8:A130)+1) -> 123 | E131: =IF(COUNTIF(F$8:F130,F131)>0,"",MAX(E$8:E130)+1) -> 123 | H131: =IFERROR(VLOOKUP(bd_expos[[#This Row],[Numéro CAS]],Tableau2[#All],2,FALSE),"") ->  | I131: =IFERROR(VLOOKUP(bd_expos[[#This Row],[Numéro CAS]],Tableau2[#All],3,FALSE),"") ->  | J131: =IFERROR(VLOOKUP(bd_expos[[#This Row],[Numéro CAS]],Tableau2[#All],4,FALSE),"") ->  | P131: =IF('Liste nominative CMR'!B131='Fiche individuelle CMR'!$C$8,MAX($P$8:P130)+1,"") -> 123
A132: =IF(COUNTIF(B$8:B131,B132)>0,"",MAX(A$8:A131)+1) -> 124 | E132: =IF(COUNTIF(F$8:F131,F132)>0,"",MAX(E$8:E131)+1) -> 124 | H132: =IFERROR(VLOOKUP(bd_expos[[#This Row],[Numéro CAS]],Tableau2[#All],2,FALSE),"") ->  | I132: =IFERROR(VLOOKUP(bd_expos[[#This Row],[Numéro CAS]],Tableau2[#All],3,FALSE),"") ->  | J132: =IFERROR(VLOOKUP(bd_expos[[#This Row],[Numéro CAS]],Tableau2[#All],4,FALSE),"") ->  | P132: =IF('Liste nominative CMR'!B132='Fiche individuelle CMR'!$C$8,MAX($P$8:P131)+1,"") -> 124
A133: =IF(COUNTIF(B$8:B132,B133)>0,"",MAX(A$8:A132)+1) -> 125 | E133: =IF(COUNTIF(F$8:F132,F133)>0,"",MAX(E$8:E132)+1) -> 125 | H133: =IFERROR(VLOOKUP(bd_expos[[#This Row],[Numéro CAS]],Tableau2[#All],2,FALSE),"") ->  | I133: =IFERROR(VLOOKUP(bd_expos[[#This Row],[Numéro CAS]],Tableau2[#All],3,FALSE),"") ->  | J133: =IFERROR(VLOOKUP(bd_expos[[#This Row],[Numéro CAS]],Tableau2[#All],4,FALSE),"") ->  | P133: =IF('Liste nominative CMR'!B133='Fiche individuelle CMR'!$C$8,MAX($P$8:P132)+1,"") -> 125
A134: =IF(COUNTIF(B$8:B133,B134)>0,"",MAX(A$8:A133)+1) -> 126 | E134: =IF(COUNTIF(F$8:F133,F134)>0,"",MAX(E$8:E133)+1) -> 126 | H134: =IFERROR(VLOOKUP(bd_expos[[#This Row],[Numéro CAS]],Tableau2[#All],2,FALSE),"") ->  | I134: =IFERROR(VLOOKUP(bd_expos[[#This Row],[Numéro CAS]],Tableau2[#All],3,FALSE),"") ->  | J134: =IFERROR(VLOOKUP(bd_expos[[#This Row],[Numéro CAS]],Tableau2[#All],4,FALSE),"") ->  | P134: =IF('Liste nominative CMR'!B134='Fiche individuelle CMR'!$C$8,MAX($P$8:P133)+1,"") -> 126
A135: =IF(COUNTIF(B$8:B134,B135)>0,"",MAX(A$8:A134)+1) -> 127 | E135: =IF(COUNTIF(F$8:F134,F135)>0,"",MAX(E$8:E134)+1) -> 127 | H135: =IFERROR(VLOOKUP(bd_expos[[#This Row],[Numéro CAS]],Tableau2[#All],2,FALSE),"") ->  | I135: =IFERROR(VLOOKUP(bd_expos[[#This Row],[Numéro CAS]],Tableau2[#All],3,FALSE),"") ->  | J135: =IFERROR(VLOOKUP(bd_expos[[#This Row],[Numéro CAS]],Tableau2[#All],4,FALSE),"") ->  | P135: =IF('Liste nominative CMR'!B135='Fiche individuelle CMR'!$C$8,MAX($P$8:P134)+1,"") -> 127
A136: =IF(COUNTIF(B$8:B135,B136)>0,"",MAX(A$8:A135)+1) -> 128 | E136: =IF(COUNTIF(F$8:F135,F136)>0,"",MAX(E$8:E135)+1) -> 128 | H136: =IFERROR(VLOOKUP(bd_expos[[#This Row],[Numéro CAS]],Tableau2[#All],2,FALSE),"") ->  | I136: =IFERROR(VLOOKUP(bd_expos[[#This Row],[Numéro CAS]],Tableau2[#All],3,FALSE),"") ->  | J136: =IFERROR(VLOOKUP(bd_expos[[#This Row],[Numéro CAS]],Tableau2[#All],4,FALSE),"") ->  | P136: =IF('Liste nominative CMR'!B136='Fiche individuelle CMR'!$C$8,MAX($P$8:P135)+1,"") -> 128
A137: =IF(COUNTIF(B$8:B136,B137)>0,"",MAX(A$8:A136)+1) -> 129 | E137: =IF(COUNTIF(F$8:F136,F137)>0,"",MAX(E$8:E136)+1) -> 129 | H137: =IFERROR(VLOOKUP(bd_expos[[#This Row],[Numéro CAS]],Tableau2[#All],2,FALSE),"") ->  | I137: =IFERROR(VLOOKUP(bd_expos[[#This Row],[Numéro CAS]],Tableau2[#All],3,FALSE),"") ->  | J137: =IFERROR(VLOOKUP(bd_expos[[#This Row],[Numéro CAS]],Tableau2[#All],4,FALSE),"") ->  | P137: =IF('Liste nominative CMR'!B137='Fiche individuelle CMR'!$C$8,MAX($P$8:P136)+1,"") -> 129
A138: =IF(COUNTIF(B$8:B137,B138)>0,"",MAX(A$8:A137)+1) -> 130 | E138: =IF(COUNTIF(F$8:F137,F138)>0,"",MAX(E$8:E137)+1) -> 130 | H138: =IFERROR(VLOOKUP(bd_expos[[#This Row],[Numéro CAS]],Tableau2[#All],2,FALSE),"") ->  | I138: =IFERROR(VLOOKUP(bd_expos[[#This Row],[Numéro CAS]],Tableau2[#All],3,FALSE),"") ->  | J138: =IFERROR(VLOOKUP(bd_expos[[#This Row],[Numéro CAS]],Tableau2[#All],4,FALSE),"") ->  | P138: =IF('Liste nominative CMR'!B138='Fiche individuelle CMR'!$C$8,MAX($P$8:P137)+1,"") -> 130
A139: =IF(COUNTIF(B$8:B138,B139)>0,"",MAX(A$8:A138)+1) -> 131 | E139: =IF(COUNTIF(F$8:F138,F139)>0,"",MAX(E$8:E138)+1) -> 131 | H139: =IFERROR(VLOOKUP(bd_expos[[#This Row],[Numéro CAS]],Tableau2[#All],2,FALSE),"") ->  | I139: =IFERROR(VLOOKUP(bd_expos[[#This Row],[Numéro CAS]],Tableau2[#All],3,FALSE),"") ->  | J139: =IFERROR(VLOOKUP(bd_expos[[#This Row],[Numéro CAS]],Tableau2[#All],4,FALSE),"") ->  | P139: =IF('Liste nominative CMR'!B139='Fiche individuelle CMR'!$C$8,MAX($P$8:P138)+1,"") -> 131
A140: =IF(COUNTIF(B$8:B139,B140)>0,"",MAX(A$8:A139)+1) -> 132 | E140: =IF(COUNTIF(F$8:F139,F140)>0,"",MAX(E$8:E139)+1) -> 132 | H140: =IFERROR(VLOOKUP(bd_expos[[#This Row],[Numéro CAS]],Tableau2[#All],2,FALSE),"") ->  | I140: =IFERROR(VLOOKUP(bd_expos[[#This Row],[Numéro CAS]],Tableau2[#All],3,FALSE),"") ->  | J140: =IFERROR(VLOOKUP(bd_expos[[#This Row],[Numéro CAS]],Tableau2[#All],4,FALSE),"") ->  | P140: =IF('Liste nominative CMR'!B140='Fiche individuelle CMR'!$C$8,MAX($P$8:P139)+1,"") -> 132
A141: =IF(COUNTIF(B$8:B140,B141)>0,"",MAX(A$8:A140)+1) -> 133 | E141: =IF(COUNTIF(F$8:F140,F141)>0,"",MAX(E$8:E140)+1) -> 133 | H141: =IFERROR(VLOOKUP(bd_expos[[#This Row],[Numéro CAS]],Tableau2[#All],2,FALSE),"") ->  | I141: =IFERROR(VLOOKUP(bd_expos[[#This Row],[Numéro CAS]],Tableau2[#All],3,FALSE),"") ->  | J141: =IFERROR(VLOOKUP(bd_expos[[#This Row],[Numéro CAS]],Tableau2[#All],4,FALSE),"") ->  | P141: =IF('Liste nominative CMR'!B141='Fiche individuelle CMR'!$C$8,MAX($P$8:P140)+1,"") -> 133
A142: =IF(COUNTIF(B$8:B141,B142)>0,"",MAX(A$8:A141)+1) -> 134 | E142: =IF(COUNTIF(F$8:F141,F142)>0,"",MAX(E$8:E141)+1) -> 134 | H142: =IFERROR(VLOOKUP(bd_expos[[#This Row],[Numéro CAS]],Tableau2[#All],2,FALSE),"") ->  | I142: =IFERROR(VLOOKUP(bd_expos[[#This Row],[Numéro CAS]],Tableau2[#All],3,FALSE),"") ->  | J142: =IFERROR(VLOOKUP(bd_expos[[#This Row],[Numéro CAS]],Tableau2[#All],4,FALSE),"") ->  | P142: =IF('Liste nominative CMR'!B142='Fiche individuelle CMR'!$C$8,MAX($P$8:P141)+1,"") -> 134
A143: =IF(COUNTIF(B$8:B142,B143)>0,"",MAX(A$8:A142)+1) -> 135 | E143: =IF(COUNTIF(F$8:F142,F143)>0,"",MAX(E$8:E142)+1) -> 135 | H143: =IFERROR(VLOOKUP(bd_expos[[#This Row],[Numéro CAS]],Tableau2[#All],2,FALSE),"") ->  | I143: =IFERROR(VLOOKUP(bd_expos[[#This Row],[Numéro CAS]],Tableau2[#All],3,FALSE),"") ->  | J143: =IFERROR(VLOOKUP(bd_expos[[#This Row],[Numéro CAS]],Tableau2[#All],4,FALSE),"") ->  | P143: =IF('Liste nominative CMR'!B143='Fiche individuelle CMR'!$C$8,MAX($P$8:P142)+1,"") -> 135
A144: =IF(COUNTIF(B$8:B143,B144)>0,"",MAX(A$8:A143)+1) -> 136 | E144: =IF(COUNTIF(F$8:F143,F144)>0,"",MAX(E$8:E143)+1) -> 136 | H144: =IFERROR(VLOOKUP(bd_expos[[#This Row],[Numéro CAS]],Tableau2[#All],2,FALSE),"") ->  | I144: =IFERROR(VLOOKUP(bd_expos[[#This Row],[Numéro CAS]],Tableau2[#All],3,FALSE),"") ->  | J144: =IFERROR(VLOOKUP(bd_expos[[#This Row],[Numéro CAS]],Tableau2[#All],4,FALSE),"") ->  | P144: =IF('Liste nominative CMR'!B144='Fiche individuelle CMR'!$C$8,MAX($P$8:P143)+1,"") -> 136
A145: =IF(COUNTIF(B$8:B144,B145)>0,"",MAX(A$8:A144)+1) -> 137 | E145: =IF(COUNTIF(F$8:F144,F145)>0,"",MAX(E$8:E144)+1) -> 137 | H145: =IFERROR(VLOOKUP(bd_expos[[#This Row],[Numéro CAS]],Tableau2[#All],2,FALSE),"") ->  | I145: =IFERROR(VLOOKUP(bd_expos[[#This Row],[Numéro CAS]],Tableau2[#All],3,FALSE),"") ->  | J145: =IFERROR(VLOOKUP(bd_expos[[#This Row],[Numéro CAS]],Tableau2[#All],4,FALSE),"") ->  | P145: =IF('Liste nominative CMR'!B145='Fiche individuelle CMR'!$C$8,MAX($P$8:P144)+1,"") -> 137
A146: =IF(COUNTIF(B$8:B145,B146)>0,"",MAX(A$8:A145)+1) -> 138 | E146: =IF(COUNTIF(F$8:F145,F146)>0,"",MAX(E$8:E145)+1) -> 138 | H146: =IFERROR(VLOOKUP(bd_expos[[#This Row],[Numéro CAS]],Tableau2[#All],2,FALSE),"") ->  | I146: =IFERROR(VLOOKUP(bd_expos[[#This Row],[Numéro CAS]],Tableau2[#All],3,FALSE),"") ->  | J146: =IFERROR(VLOOKUP(bd_expos[[#This Row],[Numéro CAS]],Tableau2[#All],4,FALSE),"") ->  | P146: =IF('Liste nominative CMR'!B146='Fiche individuelle CMR'!$C$8,MAX($P$8:P145)+1,"") -> 138
A147: =IF(COUNTIF(B$8:B146,B147)>0,"",MAX(A$8:A146)+1) -> 139 | E147: =IF(COUNTIF(F$8:F146,F147)>0,"",MAX(E$8:E146)+1) -> 139 | H147: =IFERROR(VLOOKUP(bd_expos[[#This Row],[Numéro CAS]],Tableau2[#All],2,FALSE),"") ->  | I147: =IFERROR(VLOOKUP(bd_expos[[#This Row],[Numéro CAS]],Tableau2[#All],3,FALSE),"") ->  | J147: =IFERROR(VLOOKUP(bd_expos[[#This Row],[Numéro CAS]],Tableau2[#All],4,FALSE),"") ->  | P147: =IF('Liste nominative CMR'!B147='Fiche individuelle CMR'!$C$8,MAX($P$8:P146)+1,"") -> 139
A148: =IF(COUNTIF(B$8:B147,B148)>0,"",MAX(A$8:A147)+1) -> 140 | E148: =IF(COUNTIF(F$8:F147,F148)>0,"",MAX(E$8:E147)+1) -> 140 | H148: =IFERROR(VLOOKUP(bd_expos[[#This Row],[Numéro CAS]],Tableau2[#All],2,FALSE),"") ->  | I148: =IFERROR(VLOOKUP(bd_expos[[#This Row],[Numéro CAS]],Tableau2[#All],3,FALSE),"") ->  | J148: =IFERROR(VLOOKUP(bd_expos[[#This Row],[Numéro CAS]],Tableau2[#All],4,FALSE),"") ->  | P148: =IF('Liste nominative CMR'!B148='Fiche individuelle CMR'!$C$8,MAX($P$8:P147)+1,"") -> 140
A149: =IF(COUNTIF(B$8:B148,B149)>0,"",MAX(A$8:A148)+1) -> 141 | E149: =IF(COUNTIF(F$8:F148,F149)>0,"",MAX(E$8:E148)+1) -> 141 | H149: =IFERROR(VLOOKUP(bd_expos[[#This Row],[Numéro CAS]],Tableau2[#All],2,FALSE),"") ->  | I149: =IFERROR(VLOOKUP(bd_expos[[#This Row],[Numéro CAS]],Tableau2[#All],3,FALSE),"") ->  | J149: =IFERROR(VLOOKUP(bd_expos[[#This Row],[Numéro CAS]],Tableau2[#All],4,FALSE),"") ->  | P149: =IF('Liste nominative CMR'!B149='Fiche individuelle CMR'!$C$8,MAX($P$8:P148)+1,"") -> 141
A150: =IF(COUNTIF(B$8:B149,B150)>0,"",MAX(A$8:A149)+1) -> 142 | E150: =IF(COUNTIF(F$8:F149,F150)>0,"",MAX(E$8:E149)+1) -> 142 | H150: =IFERROR(VLOOKUP(bd_expos[[#This Row],[Numéro CAS]],Tableau2[#All],2,FALSE),"") ->  | I150: =IFERROR(VLOOKUP(bd_expos[[#This Row],[Numéro CAS]],Tableau2[#All],3,FALSE),"") ->  | J150: =IFERROR(VLOOKUP(bd_expos[[#This Row],[Numéro CAS]],Tableau2[#All],4,FALSE),"") ->  | P150: =IF('Liste nominative CMR'!B150='Fiche individuelle CMR'!$C$8,MAX($P$8:P149)+1,"") -> 142
A151: =IF(COUNTIF(B$8:B150,B151)>0,"",MAX(A$8:A150)+1) -> 143 | E151: =IF(COUNTIF(F$8:F150,F151)>0,"",MAX(E$8:E150)+1) -> 143 | H151: =IFERROR(VLOOKUP(bd_expos[[#This Row],[Numéro CAS]],Tableau2[#All],2,FALSE),"") ->  | I151: =IFERROR(VLOOKUP(bd_expos[[#This Row],[Numéro CAS]],Tableau2[#All],3,FALSE),"") ->  | J151: =IFERROR(VLOOKUP(bd_expos[[#This Row],[Numéro CAS]],Tableau2[#All],4,FALSE),"") ->  | P151: =IF('Liste nominative CMR'!B151='Fiche individuelle CMR'!$C$8,MAX($P$8:P150)+1,"") -> 143
A152: =IF(COUNTIF(B$8:B151,B152)>0,"",MAX(A$8:A151)+1) -> 144 | E152: =IF(COUNTIF(F$8:F151,F152)>0,"",MAX(E$8:E151)+1) -> 144 | H152: =IFERROR(VLOOKUP(bd_expos[[#This Row],[Numéro CAS]],Tableau2[#All],2,FALSE),"") ->  | I152: =IFERROR(VLOOKUP(bd_expos[[#This Row],[Numéro CAS]],Tableau2[#All],3,FALSE),"") ->  | J152: =IFERROR(VLOOKUP(bd_expos[[#This Row],[Numéro CAS]],Tableau2[#All],4,FALSE),"") ->  | P152: =IF('Liste nominative CMR'!B152='Fiche individuelle CMR'!$C$8,MAX($P$8:P151)+1,"") -> 144
A153: =IF(COUNTIF(B$8:B152,B153)>0,"",MAX(A$8:A152)+1) -> 145 | E153: =IF(COUNTIF(F$8:F152,F153)>0,"",MAX(E$8:E152)+1) -> 145 | H153: =IFERROR(VLOOKUP(bd_expos[[#This Row],[Numéro CAS]],Tableau2[#All],2,FALSE),"") ->  | I153: =IFERROR(VLOOKUP(bd_expos[[#This Row],[Numéro CAS]],Tableau2[#All],3,FALSE),"") ->  | J153: =IFERROR(VLOOKUP(bd_expos[[#This Row],[Numéro CAS]],Tableau2[#All],4,FALSE),"") ->  | P153: =IF('Liste nominative CMR'!B153='Fiche individuelle CMR'!$C$8,MAX($P$8:P152)+1,"") -> 145
A154: =IF(COUNTIF(B$8:B153,B154)>0,"",MAX(A$8:A153)+1) -> 146 | E154: =IF(COUNTIF(F$8:F153,F154)>0,"",MAX(E$8:E153)+1) -> 146 | H154: =IFERROR(VLOOKUP(bd_expos[[#This Row],[Numéro CAS]],Tableau2[#All],2,FALSE),"") ->  | I154: =IFERROR(VLOOKUP(bd_expos[[#This Row],[Numéro CAS]],Tableau2[#All],3,FALSE),"") ->  | J154: =IFERROR(VLOOKUP(bd_expos[[#This Row],[Numéro CAS]],Tableau2[#All],4,FALSE),"") ->  | P154: =IF('Liste nominative CMR'!B154='Fiche individuelle CMR'!$C$8,MAX($P$8:P153)+1,"") -> 146
A155: =IF(COUNTIF(B$8:B154,B155)>0,"",MAX(A$8:A154)+1) -> 147 | E155: =IF(COUNTIF(F$8:F154,F155)>0,"",MAX(E$8:E154)+1) -> 147 | H155: =IFERROR(VLOOKUP(bd_expos[[#This Row],[Numéro CAS]],Tableau2[#All],2,FALSE),"") ->  | I155: =IFERROR(VLOOKUP(bd_expos[[#This Row],[Numéro CAS]],Tableau2[#All],3,FALSE),"") ->  | J155: =IFERROR(VLOOKUP(bd_expos[[#This Row],[Numéro CAS]],Tableau2[#All],4,FALSE),"") ->  | P155: =IF('Liste nominative CMR'!B155='Fiche individuelle CMR'!$C$8,MAX($P$8:P154)+1,"") -> 147
A156: =IF(COUNTIF(B$8:B155,B156)>0,"",MAX(A$8:A155)+1) -> 148 | E156: =IF(COUNTIF(F$8:F155,F156)>0,"",MAX(E$8:E155)+1) -> 148 | H156: =IFERROR(VLOOKUP(bd_expos[[#This Row],[Numéro CAS]],Tableau2[#All],2,FALSE),"") ->  | I156: =IFERROR(VLOOKUP(bd_expos[[#This Row],[Numéro CAS]],Tableau2[#All],3,FALSE),"") ->  | J156: =IFERROR(VLOOKUP(bd_expos[[#This Row],[Numéro CAS]],Tableau2[#All],4,FALSE),"") ->  | P156: =IF('Liste nominative CMR'!B156='Fiche individuelle CMR'!$C$8,MAX($P$8:P155)+1,"") -> 148
A157: =IF(COUNTIF(B$8:B156,B157)>0,"",MAX(A$8:A156)+1) -> 149 | E157: =IF(COUNTIF(F$8:F156,F157)>0,"",MAX(E$8:E156)+1) -> 149 | H157: =IFERROR(VLOOKUP(bd_expos[[#This Row],[Numéro CAS]],Tableau2[#All],2,FALSE),"") ->  | I157: =IFERROR(VLOOKUP(bd_expos[[#This Row],[Numéro CAS]],Tableau2[#All],3,FALSE),"") ->  | J157: =IFERROR(VLOOKUP(bd_expos[[#This Row],[Numéro CAS]],Tableau2[#All],4,FALSE),"") ->  | P157: =IF('Liste nominative CMR'!B157='Fiche individuelle CMR'!$C$8,MAX($P$8:P156)+1,"") -> 149
A158: =IF(COUNTIF(B$8:B157,B158)>0,"",MAX(A$8:A157)+1) -> 150 | E158: =IF(COUNTIF(F$8:F157,F158)>0,"",MAX(E$8:E157)+1) -> 150 | H158: =IFERROR(VLOOKUP(bd_expos[[#This Row],[Numéro CAS]],Tableau2[#All],2,FALSE),"") ->  | I158: =IFERROR(VLOOKUP(bd_expos[[#This Row],[Numéro CAS]],Tableau2[#All],3,FALSE),"") ->  | J158: =IFERROR(VLOOKUP(bd_expos[[#This Row],[Numéro CAS]],Tableau2[#All],4,FALSE),"") ->  | P158: =IF('Liste nominative CMR'!B158='Fiche individuelle CMR'!$C$8,MAX($P$8:P157)+1,"") -> 150
A159: =IF(COUNTIF(B$8:B158,B159)>0,"",MAX(A$8:A158)+1) -> 151 | E159: =IF(COUNTIF(F$8:F158,F159)>0,"",MAX(E$8:E158)+1) -> 151 | H159: =IFERROR(VLOOKUP(bd_expos[[#This Row],[Numéro CAS]],Tableau2[#All],2,FALSE),"") ->  | I159: =IFERROR(VLOOKUP(bd_expos[[#This Row],[Numéro CAS]],Tableau2[#All],3,FALSE),"") ->  | J159: =IFERROR(VLOOKUP(bd_expos[[#This Row],[Numéro CAS]],Tableau2[#All],4,FALSE),"") ->  | P159: =IF('Liste nominative CMR'!B159='Fiche individuelle CMR'!$C$8,MAX($P$8:P158)+1,"") -> 151
A160: =IF(COUNTIF(B$8:B159,B160)>0,"",MAX(A$8:A159)+1) -> 152 | E160: =IF(COUNTIF(F$8:F159,F160)>0,"",MAX(E$8:E159)+1) -> 152 | H160: =IFERROR(VLOOKUP(bd_expos[[#This Row],[Numéro CAS]],Tableau2[#All],2,FALSE),"") ->  | I160: =IFERROR(VLOOKUP(bd_expos[[#This Row],[Numéro CAS]],Tableau2[#All],3,FALSE),"") ->  | J160: =IFERROR(VLOOKUP(bd_expos[[#This Row],[Numéro CAS]],Tableau2[#All],4,FALSE),"") ->  | P160: =IF('Liste nominative CMR'!B160='Fiche individuelle CMR'!$C$8,MAX($P$8:P159)+1,"") -> 152
A161: =IF(COUNTIF(B$8:B160,B161)>0,"",MAX(A$8:A160)+1) -> 153 | E161: =IF(COUNTIF(F$8:F160,F161)>0,"",MAX(E$8:E160)+1) -> 153 | H161: =IFERROR(VLOOKUP(bd_expos[[#This Row],[Numéro CAS]],Tableau2[#All],2,FALSE),"") ->  | I161: =IFERROR(VLOOKUP(bd_expos[[#This Row],[Numéro CAS]],Tableau2[#All],3,FALSE),"") ->  | J161: =IFERROR(VLOOKUP(bd_expos[[#This Row],[Numéro CAS]],Tableau2[#All],4,FALSE),"") ->  | P161: =IF('Liste nominative CMR'!B161='Fiche individuelle CMR'!$C$8,MAX($P$8:P160)+1,"") -> 153
A162: =IF(COUNTIF(B$8:B161,B162)>0,"",MAX(A$8:A161)+1) -> 154 | E162: =IF(COUNTIF(F$8:F161,F162)>0,"",MAX(E$8:E161)+1) -> 154 | H162: =IFERROR(VLOOKUP(bd_expos[[#This Row],[Numéro CAS]],Tableau2[#All],2,FALSE),"") ->  | I162: =IFERROR(VLOOKUP(bd_expos[[#This Row],[Numéro CAS]],Tableau2[#All],3,FALSE),"") ->  | J162: =IFERROR(VLOOKUP(bd_expos[[#This Row],[Numéro CAS]],Tableau2[#All],4,FALSE),"") ->  | P162: =IF('Liste nominative CMR'!B162='Fiche individuelle CMR'!$C$8,MAX($P$8:P161)+1,"") -> 154
A163: =IF(COUNTIF(B$8:B162,B163)>0,"",MAX(A$8:A162)+1) -> 155 | E163: =IF(COUNTIF(F$8:F162,F163)>0,"",MAX(E$8:E162)+1) -> 155 | H163: =IFERROR(VLOOKUP(bd_expos[[#This Row],[Numéro CAS]],Tableau2[#All],2,FALSE),"") ->  | I163: =IFERROR(VLOOKUP(bd_expos[[#This Row],[Numéro CAS]],Tableau2[#All],3,FALSE),"") ->  | J163: =IFERROR(VLOOKUP(bd_expos[[#This Row],[Numéro CAS]],Tableau2[#All],4,FALSE),"") ->  | P163: =IF('Liste nominative CMR'!B163='Fiche individuelle CMR'!$C$8,MAX($P$8:P162)+1,"") -> 155
A164: =IF(COUNTIF(B$8:B163,B164)>0,"",MAX(A$8:A163)+1) -> 156 | E164: =IF(COUNTIF(F$8:F163,F164)>0,"",MAX(E$8:E163)+1) -> 156 | H164: =IFERROR(VLOOKUP(bd_expos[[#This Row],[Numéro CAS]],Tableau2[#All],2,FALSE),"") ->  | I164: =IFERROR(VLOOKUP(bd_expos[[#This Row],[Numéro CAS]],Tableau2[#All],3,FALSE),"") ->  | J164: =IFERROR(VLOOKUP(bd_expos[[#This Row],[Numéro CAS]],Tableau2[#All],4,FALSE),"") ->  | P164: =IF('Liste nominative CMR'!B164='Fiche individuelle CMR'!$C$8,MAX($P$8:P163)+1,"") -> 156
A165: =IF(COUNTIF(B$8:B164,B165)>0,"",MAX(A$8:A164)+1) -> 157 | E165: =IF(COUNTIF(F$8:F164,F165)>0,"",MAX(E$8:E164)+1) -> 157 | H165: =IFERROR(VLOOKUP(bd_expos[[#This Row],[Numéro CAS]],Tableau2[#All],2,FALSE),"") ->  | I165: =IFERROR(VLOOKUP(bd_expos[[#This Row],[Numéro CAS]],Tableau2[#All],3,FALSE),"") ->  | J165: =IFERROR(VLOOKUP(bd_expos[[#This Row],[Numéro CAS]],Tableau2[#All],4,FALSE),"") ->  | P165: =IF('Liste nominative CMR'!B165='Fiche individuelle CMR'!$C$8,MAX($P$8:P164)+1,"") -> 157
A166: =IF(COUNTIF(B$8:B165,B166)>0,"",MAX(A$8:A165)+1) -> 158 | E166: =IF(COUNTIF(F$8:F165,F166)>0,"",MAX(E$8:E165)+1) -> 158 | H166: =IFERROR(VLOOKUP(bd_expos[[#This Row],[Numéro CAS]],Tableau2[#All],2,FALSE),"") ->  | I166: =IFERROR(VLOOKUP(bd_expos[[#This Row],[Numéro CAS]],Tableau2[#All],3,FALSE),"") ->  | J166: =IFERROR(VLOOKUP(bd_expos[[#This Row],[Numéro CAS]],Tableau2[#All],4,FALSE),"") ->  | P166: =IF('Liste nominative CMR'!B166='Fiche individuelle CMR'!$C$8,MAX($P$8:P165)+1,"") -> 158
A167: =IF(COUNTIF(B$8:B166,B167)>0,"",MAX(A$8:A166)+1) -> 159 | E167: =IF(COUNTIF(F$8:F166,F167)>0,"",MAX(E$8:E166)+1) -> 159 | H167: =IFERROR(VLOOKUP(bd_expos[[#This Row],[Numéro CAS]],Tableau2[#All],2,FALSE),"") ->  | I167: =IFERROR(VLOOKUP(bd_expos[[#This Row],[Numéro CAS]],Tableau2[#All],3,FALSE),"") ->  | J167: =IFERROR(VLOOKUP(bd_expos[[#This Row],[Numéro CAS]],Tableau2[#All],4,FALSE),"") ->  | P167: =IF('Liste nominative CMR'!B167='Fiche individuelle CMR'!$C$8,MAX($P$8:P166)+1,"") -> 159
A168: =IF(COUNTIF(B$8:B167,B168)>0,"",MAX(A$8:A167)+1) -> 160 | E168: =IF(COUNTIF(F$8:F167,F168)>0,"",MAX(E$8:E167)+1) -> 160 | H168: =IFERROR(VLOOKUP(bd_expos[[#This Row],[Numéro CAS]],Tableau2[#All],2,FALSE),"") ->  | I168: =IFERROR(VLOOKUP(bd_expos[[#This Row],[Numéro CAS]],Tableau2[#All],3,FALSE),"") ->  | J168: =IFERROR(VLOOKUP(bd_expos[[#This Row],[Numéro CAS]],Tableau2[#All],4,FALSE),"") ->  | P168: =IF('Liste nominative CMR'!B168='Fiche individuelle CMR'!$C$8,MAX($P$8:P167)+1,"") -> 160
A169: =IF(COUNTIF(B$8:B168,B169)>0,"",MAX(A$8:A168)+1) -> 161 | E169: =IF(COUNTIF(F$8:F168,F169)>0,"",MAX(E$8:E168)+1) -> 161 | H169: =IFERROR(VLOOKUP(bd_expos[[#This Row],[Numéro CAS]],Tableau2[#All],2,FALSE),"") ->  | I169: =IFERROR(VLOOKUP(bd_expos[[#This Row],[Numéro CAS]],Tableau2[#All],3,FALSE),"") ->  | J169: =IFERROR(VLOOKUP(bd_expos[[#This Row],[Numéro CAS]],Tableau2[#All],4,FALSE),"") ->  | P169: =IF('Liste nominative CMR'!B169='Fiche individuelle CMR'!$C$8,MAX($P$8:P168)+1,"") -> 161
A170: =IF(COUNTIF(B$8:B169,B170)>0,"",MAX(A$8:A169)+1) -> 162 | E170: =IF(COUNTIF(F$8:F169,F170)>0,"",MAX(E$8:E169)+1) -> 162 | H170: =IFERROR(VLOOKUP(bd_expos[[#This Row],[Numéro CAS]],Tableau2[#All],2,FALSE),"") ->  | I170: =IFERROR(VLOOKUP(bd_expos[[#This Row],[Numéro CAS]],Tableau2[#All],3,FALSE),"") ->  | J170: =IFERROR(VLOOKUP(bd_expos[[#This Row],[Numéro CAS]],Tableau2[#All],4,FALSE),"") ->  | P170: =IF('Liste nominative CMR'!B170='Fiche individuelle CMR'!$C$8,MAX($P$8:P169)+1,"") -> 162
A171: =IF(COUNTIF(B$8:B170,B171)>0,"",MAX(A$8:A170)+1) -> 163 | E171: =IF(COUNTIF(F$8:F170,F171)>0,"",MAX(E$8:E170)+1) -> 163 | H171: =IFERROR(VLOOKUP(bd_expos[[#This Row],[Numéro CAS]],Tableau2[#All],2,FALSE),"") ->  | I171: =IFERROR(VLOOKUP(bd_expos[[#This Row],[Numéro CAS]],Tableau2[#All],3,FALSE),"") ->  | J171: =IFERROR(VLOOKUP(bd_expos[[#This Row],[Numéro CAS]],Tableau2[#All],4,FALSE),"") ->  | P171: =IF('Liste nominative CMR'!B171='Fiche individuelle CMR'!$C$8,MAX($P$8:P170)+1,"") -> 163
A172: =IF(COUNTIF(B$8:B171,B172)>0,"",MAX(A$8:A171)+1) -> 164 | E172: =IF(COUNTIF(F$8:F171,F172)>0,"",MAX(E$8:E171)+1) -> 164 | H172: =IFERROR(VLOOKUP(bd_expos[[#This Row],[Numéro CAS]],Tableau2[#All],2,FALSE),"") ->  | I172: =IFERROR(VLOOKUP(bd_expos[[#This Row],[Numéro CAS]],Tableau2[#All],3,FALSE),"") ->  | J172: =IFERROR(VLOOKUP(bd_expos[[#This Row],[Numéro CAS]],Tableau2[#All],4,FALSE),"") ->  | P172: =IF('Liste nominative CMR'!B172='Fiche individuelle CMR'!$C$8,MAX($P$8:P171)+1,"") -> 164
A173: =IF(COUNTIF(B$8:B172,B173)>0,"",MAX(A$8:A172)+1) -> 165 | E173: =IF(COUNTIF(F$8:F172,F173)>0,"",MAX(E$8:E172)+1) -> 165 | H173: =IFERROR(VLOOKUP(bd_expos[[#This Row],[Numéro CAS]],Tableau2[#All],2,FALSE),"") ->  | I173: =IFERROR(VLOOKUP(bd_expos[[#This Row],[Numéro CAS]],Tableau2[#All],3,FALSE),"") ->  | J173: =IFERROR(VLOOKUP(bd_expos[[#This Row],[Numéro CAS]],Tableau2[#All],4,FALSE),"") ->  | P173: =IF('Liste nominative CMR'!B173='Fiche individuelle CMR'!$C$8,MAX($P$8:P172)+1,"") -> 165
A174: =IF(COUNTIF(B$8:B173,B174)>0,"",MAX(A$8:A173)+1) -> 166 | E174: =IF(COUNTIF(F$8:F173,F174)>0,"",MAX(E$8:E173)+1) -> 166 | H174: =IFERROR(VLOOKUP(bd_expos[[#This Row],[Numéro CAS]],Tableau2[#All],2,FALSE),"") ->  | I174: =IFERROR(VLOOKUP(bd_expos[[#This Row],[Numéro CAS]],Tableau2[#All],3,FALSE),"") ->  | J174: =IFERROR(VLOOKUP(bd_expos[[#This Row],[Numéro CAS]],Tableau2[#All],4,FALSE),"") ->  | P174: =IF('Liste nominative CMR'!B174='Fiche individuelle CMR'!$C$8,MAX($P$8:P173)+1,"") -> 166
A175: =IF(COUNTIF(B$8:B174,B175)>0,"",MAX(A$8:A174)+1) -> 167 | E175: =IF(COUNTIF(F$8:F174,F175)>0,"",MAX(E$8:E174)+1) -> 167 | H175: =IFERROR(VLOOKUP(bd_expos[[#This Row],[Numéro CAS]],Tableau2[#All],2,FALSE),"") ->  | I175: =IFERROR(VLOOKUP(bd_expos[[#This Row],[Numéro CAS]],Tableau2[#All],3,FALSE),"") ->  | J175: =IFERROR(VLOOKUP(bd_expos[[#This Row],[Numéro CAS]],Tableau2[#All],4,FALSE),"") ->  | P175: =IF('Liste nominative CMR'!B175='Fiche individuelle CMR'!$C$8,MAX($P$8:P174)+1,"") -> 167
A176: =IF(COUNTIF(B$8:B175,B176)>0,"",MAX(A$8:A175)+1) -> 168 | E176: =IF(COUNTIF(F$8:F175,F176)>0,"",MAX(E$8:E175)+1) -> 168 | H176: =IFERROR(VLOOKUP(bd_expos[[#This Row],[Numéro CAS]],Tableau2[#All],2,FALSE),"") ->  | I176: =IFERROR(VLOOKUP(bd_expos[[#This Row],[Numéro CAS]],Tableau2[#All],3,FALSE),"") ->  | J176: =IFERROR(VLOOKUP(bd_expos[[#This Row],[Numéro CAS]],Tableau2[#All],4,FALSE),"") ->  | P176: =IF('Liste nominative CMR'!B176='Fiche individuelle CMR'!$C$8,MAX($P$8:P175)+1,"") -> 168
A177: =IF(COUNTIF(B$8:B176,B177)>0,"",MAX(A$8:A176)+1) -> 169 | E177: =IF(COUNTIF(F$8:F176,F177)>0,"",MAX(E$8:E176)+1) -> 169 | H177: =IFERROR(VLOOKUP(bd_expos[[#This Row],[Numéro CAS]],Tableau2[#All],2,FALSE),"") ->  | I177: =IFERROR(VLOOKUP(bd_expos[[#This Row],[Numéro CAS]],Tableau2[#All],3,FALSE),"") ->  | J177: =IFERROR(VLOOKUP(bd_expos[[#This Row],[Numéro CAS]],Tableau2[#All],4,FALSE),"") ->  | P177: =IF('Liste nominative CMR'!B177='Fiche individuelle CMR'!$C$8,MAX($P$8:P176)+1,"") -> 169
A178: =IF(COUNTIF(B$8:B177,B178)>0,"",MAX(A$8:A177)+1) -> 170 | E178: =IF(COUNTIF(F$8:F177,F178)>0,"",MAX(E$8:E177)+1) -> 170 | H178: =IFERROR(VLOOKUP(bd_expos[[#This Row],[Numéro CAS]],Tableau2[#All],2,FALSE),"") ->  | I178: =IFERROR(VLOOKUP(bd_expos[[#This Row],[Numéro CAS]],Tableau2[#All],3,FALSE),"") ->  | J178: =IFERROR(VLOOKUP(bd_expos[[#This Row],[Numéro CAS]],Tableau2[#All],4,FALSE),"") ->  | P178: =IF('Liste nominative CMR'!B178='Fiche individuelle CMR'!$C$8,MAX($P$8:P177)+1,"") -> 170
A179: =IF(COUNTIF(B$8:B178,B179)>0,"",MAX(A$8:A178)+1) -> 171 | E179: =IF(COUNTIF(F$8:F178,F179)>0,"",MAX(E$8:E178)+1) -> 171 | H179: =IFERROR(VLOOKUP(bd_expos[[#This Row],[Numéro CAS]],Tableau2[#All],2,FALSE),"") ->  | I179: =IFERROR(VLOOKUP(bd_expos[[#This Row],[Numéro CAS]],Tableau2[#All],3,FALSE),"") ->  | J179: =IFERROR(VLOOKUP(bd_expos[[#This Row],[Numéro CAS]],Tableau2[#All],4,FALSE),"") ->  | P179: =IF('Liste nominative CMR'!B179='Fiche individuelle CMR'!$C$8,MAX($P$8:P178)+1,"") -> 171
A180: =IF(COUNTIF(B$8:B179,B180)>0,"",MAX(A$8:A179)+1) -> 172 | E180: =IF(COUNTIF(F$8:F179,F180)>0,"",MAX(E$8:E179)+1) -> 172 | H180: =IFERROR(VLOOKUP(bd_expos[[#This Row],[Numéro CAS]],Tableau2[#All],2,FALSE),"") ->  | I180: =IFERROR(VLOOKUP(bd_expos[[#This Row],[Numéro CAS]],Tableau2[#All],3,FALSE),"") ->  | J180: =IFERROR(VLOOKUP(bd_expos[[#This Row],[Numéro CAS]],Tableau2[#All],4,FALSE),"") ->  | P180: =IF('Liste nominative CMR'!B180='Fiche individuelle CMR'!$C$8,MAX($P$8:P179)+1,"") -> 172
A181: =IF(COUNTIF(B$8:B180,B181)>0,"",MAX(A$8:A180)+1) -> 173 | E181: =IF(COUNTIF(F$8:F180,F181)>0,"",MAX(E$8:E180)+1) -> 173 | H181: =IFERROR(VLOOKUP(bd_expos[[#This Row],[Numéro CAS]],Tableau2[#All],2,FALSE),"") ->  | I181: =IFERROR(VLOOKUP(bd_expos[[#This Row],[Numéro CAS]],Tableau2[#All],3,FALSE),"") ->  | J181: =IFERROR(VLOOKUP(bd_expos[[#This Row],[Numéro CAS]],Tableau2[#All],4,FALSE),"") ->  | P181: =IF('Liste nominative CMR'!B181='Fiche individuelle CMR'!$C$8,MAX($P$8:P180)+1,"") -> 173
A182: =IF(COUNTIF(B$8:B181,B182)>0,"",MAX(A$8:A181)+1) -> 174 | E182: =IF(COUNTIF(F$8:F181,F182)>0,"",MAX(E$8:E181)+1) -> 174 | H182: =IFERROR(VLOOKUP(bd_expos[[#This Row],[Numéro CAS]],Tableau2[#All],2,FALSE),"") ->  | I182: =IFERROR(VLOOKUP(bd_expos[[#This Row],[Numéro CAS]],Tableau2[#All],3,FALSE),"") ->  | J182: =IFERROR(VLOOKUP(bd_expos[[#This Row],[Numéro CAS]],Tableau2[#All],4,FALSE),"") ->  | P182: =IF('Liste nominative CMR'!B182='Fiche individuelle CMR'!$C$8,MAX($P$8:P181)+1,"") -> 174
A183: =IF(COUNTIF(B$8:B182,B183)>0,"",MAX(A$8:A182)+1) -> 175 | E183: =IF(COUNTIF(F$8:F182,F183)>0,"",MAX(E$8:E182)+1) -> 175 | H183: =IFERROR(VLOOKUP(bd_expos[[#This Row],[Numéro CAS]],Tableau2[#All],2,FALSE),"") ->  | I183: =IFERROR(VLOOKUP(bd_expos[[#This Row],[Numéro CAS]],Tableau2[#All],3,FALSE),"") ->  | J183: =IFERROR(VLOOKUP(bd_expos[[#This Row],[Numéro CAS]],Tableau2[#All],4,FALSE),"") ->  | P183: =IF('Liste nominative CMR'!B183='Fiche individuelle CMR'!$C$8,MAX($P$8:P182)+1,"") -> 175
A184: =IF(COUNTIF(B$8:B183,B184)>0,"",MAX(A$8:A183)+1) -> 176 | E184: =IF(COUNTIF(F$8:F183,F184)>0,"",MAX(E$8:E183)+1) -> 176 | H184: =IFERROR(VLOOKUP(bd_expos[[#This Row],[Numéro CAS]],Tableau2[#All],2,FALSE),"") ->  | I184: =IFERROR(VLOOKUP(bd_expos[[#This Row],[Numéro CAS]],Tableau2[#All],3,FALSE),"") ->  | J184: =IFERROR(VLOOKUP(bd_expos[[#This Row],[Numéro CAS]],Tableau2[#All],4,FALSE),"") ->  | P184: =IF('Liste nominative CMR'!B184='Fiche individuelle CMR'!$C$8,MAX($P$8:P183)+1,"") -> 176
A185: =IF(COUNTIF(B$8:B184,B185)>0,"",MAX(A$8:A184)+1) -> 177 | E185: =IF(COUNTIF(F$8:F184,F185)>0,"",MAX(E$8:E184)+1) -> 177 | H185: =IFERROR(VLOOKUP(bd_expos[[#This Row],[Numéro CAS]],Tableau2[#All],2,FALSE),"") ->  | I185: =IFERROR(VLOOKUP(bd_expos[[#This Row],[Numéro CAS]],Tableau2[#All],3,FALSE),"") ->  | J185: =IFERROR(VLOOKUP(bd_expos[[#This Row],[Numéro CAS]],Tableau2[#All],4,FALSE),"") ->  | P185: =IF('Liste nominative CMR'!B185='Fiche individuelle CMR'!$C$8,MAX($P$8:P184)+1,"") -> 177
A186: =IF(COUNTIF(B$8:B185,B186)>0,"",MAX(A$8:A185)+1) -> 178 | E186: =IF(COUNTIF(F$8:F185,F186)>0,"",MAX(E$8:E185)+1) -> 178 | H186: =IFERROR(VLOOKUP(bd_expos[[#This Row],[Numéro CAS]],Tableau2[#All],2,FALSE),"") ->  | I186: =IFERROR(VLOOKUP(bd_expos[[#This Row],[Numéro CAS]],Tableau2[#All],3,FALSE),"") ->  | J186: =IFERROR(VLOOKUP(bd_expos[[#This Row],[Numéro CAS]],Tableau2[#All],4,FALSE),"") ->  | P186: =IF('Liste nominative CMR'!B186='Fiche individuelle CMR'!$C$8,MAX($P$8:P185)+1,"") -> 178
A187: =IF(COUNTIF(B$8:B186,B187)>0,"",MAX(A$8:A186)+1) -> 179 | E187: =IF(COUNTIF(F$8:F186,F187)>0,"",MAX(E$8:E186)+1) -> 179 | H187: =IFERROR(VLOOKUP(bd_expos[[#This Row],[Numéro CAS]],Tableau2[#All],2,FALSE),"") ->  | I187: =IFERROR(VLOOKUP(bd_expos[[#This Row],[Numéro CAS]],Tableau2[#All],3,FALSE),"") ->  | J187: =IFERROR(VLOOKUP(bd_expos[[#This Row],[Numéro CAS]],Tableau2[#All],4,FALSE),"") ->  | P187: =IF('Liste nominative CMR'!B187='Fiche individuelle CMR'!$C$8,MAX($P$8:P186)+1,"") -> 179
A188: =IF(COUNTIF(B$8:B187,B188)>0,"",MAX(A$8:A187)+1) -> 180 | E188: =IF(COUNTIF(F$8:F187,F188)>0,"",MAX(E$8:E187)+1) -> 180 | H188: =IFERROR(VLOOKUP(bd_expos[[#This Row],[Numéro CAS]],Tableau2[#All],2,FALSE),"") ->  | I188: =IFERROR(VLOOKUP(bd_expos[[#This Row],[Numéro CAS]],Tableau2[#All],3,FALSE),"") ->  | J188: =IFERROR(VLOOKUP(bd_expos[[#This Row],[Numéro CAS]],Tableau2[#All],4,FALSE),"") ->  | P188: =IF('Liste nominative CMR'!B188='Fiche individuelle CMR'!$C$8,MAX($P$8:P187)+1,"") -> 180
A189: =IF(COUNTIF(B$8:B188,B189)>0,"",MAX(A$8:A188)+1) -> 181 | E189: =IF(COUNTIF(F$8:F188,F189)>0,"",MAX(E$8:E188)+1) -> 181 | H189: =IFERROR(VLOOKUP(bd_expos[[#This Row],[Numéro CAS]],Tableau2[#All],2,FALSE),"") ->  | I189: =IFERROR(VLOOKUP(bd_expos[[#This Row],[Numéro CAS]],Tableau2[#All],3,FALSE),"") ->  | J189: =IFERROR(VLOOKUP(bd_expos[[#This Row],[Numéro CAS]],Tableau2[#All],4,FALSE),"") ->  | P189: =IF('Liste nominative CMR'!B189='Fiche individuelle CMR'!$C$8,MAX($P$8:P188)+1,"") -> 181
A190: =IF(COUNTIF(B$8:B189,B190)>0,"",MAX(A$8:A189)+1) -> 182 | E190: =IF(COUNTIF(F$8:F189,F190)>0,"",MAX(E$8:E189)+1) -> 182 | H190: =IFERROR(VLOOKUP(bd_expos[[#This Row],[Numéro CAS]],Tableau2[#All],2,FALSE),"") ->  | I190: =IFERROR(VLOOKUP(bd_expos[[#This Row],[Numéro CAS]],Tableau2[#All],3,FALSE),"") ->  | J190: =IFERROR(VLOOKUP(bd_expos[[#This Row],[Numéro CAS]],Tableau2[#All],4,FALSE),"") ->  | P190: =IF('Liste nominative CMR'!B190='Fiche individuelle CMR'!$C$8,MAX($P$8:P189)+1,"") -> 182
A191: =IF(COUNTIF(B$8:B190,B191)>0,"",MAX(A$8:A190)+1) -> 183 | E191: =IF(COUNTIF(F$8:F190,F191)>0,"",MAX(E$8:E190)+1) -> 183 | H191: =IFERROR(VLOOKUP(bd_expos[[#This Row],[Numéro CAS]],Tableau2[#All],2,FALSE),"") ->  | I191: =IFERROR(VLOOKUP(bd_expos[[#This Row],[Numéro CAS]],Tableau2[#All],3,FALSE),"") ->  | J191: =IFERROR(VLOOKUP(bd_expos[[#This Row],[Numéro CAS]],Tableau2[#All],4,FALSE),"") ->  | P191: =IF('Liste nominative CMR'!B191='Fiche individuelle CMR'!$C$8,MAX($P$8:P190)+1,"") -> 183
A192: =IF(COUNTIF(B$8:B191,B192)>0,"",MAX(A$8:A191)+1) -> 184 | E192: =IF(COUNTIF(F$8:F191,F192)>0,"",MAX(E$8:E191)+1) -> 184 | H192: =IFERROR(VLOOKUP(bd_expos[[#This Row],[Numéro CAS]],Tableau2[#All],2,FALSE),"") ->  | I192: =IFERROR(VLOOKUP(bd_expos[[#This Row],[Numéro CAS]],Tableau2[#All],3,FALSE),"") ->  | J192: =IFERROR(VLOOKUP(bd_expos[[#This Row],[Numéro CAS]],Tableau2[#All],4,FALSE),"") ->  | P192: =IF('Liste nominative CMR'!B192='Fiche individuelle CMR'!$C$8,MAX($P$8:P191)+1,"") -> 184
A193: =IF(COUNTIF(B$8:B192,B193)>0,"",MAX(A$8:A192)+1) -> 185 | E193: =IF(COUNTIF(F$8:F192,F193)>0,"",MAX(E$8:E192)+1) -> 185 | H193: =IFERROR(VLOOKUP(bd_expos[[#This Row],[Numéro CAS]],Tableau2[#All],2,FALSE),"") ->  | I193: =IFERROR(VLOOKUP(bd_expos[[#This Row],[Numéro CAS]],Tableau2[#All],3,FALSE),"") ->  | J193: =IFERROR(VLOOKUP(bd_expos[[#This Row],[Numéro CAS]],Tableau2[#All],4,FALSE),"") ->  | P193: =IF('Liste nominative CMR'!B193='Fiche individuelle CMR'!$C$8,MAX($P$8:P192)+1,"") -> 185
A194: =IF(COUNTIF(B$8:B193,B194)>0,"",MAX(A$8:A193)+1) -> 186 | E194: =IF(COUNTIF(F$8:F193,F194)>0,"",MAX(E$8:E193)+1) -> 186 | H194: =IFERROR(VLOOKUP(bd_expos[[#This Row],[Numéro CAS]],Tableau2[#All],2,FALSE),"") ->  | I194: =IFERROR(VLOOKUP(bd_expos[[#This Row],[Numéro CAS]],Tableau2[#All],3,FALSE),"") ->  | J194: =IFERROR(VLOOKUP(bd_expos[[#This Row],[Numéro CAS]],Tableau2[#All],4,FALSE),"") ->  | P194: =IF('Liste nominative CMR'!B194='Fiche individuelle CMR'!$C$8,MAX($P$8:P193)+1,"") -> 186
A195: =IF(COUNTIF(B$8:B194,B195)>0,"",MAX(A$8:A194)+1) -> 187 | E195: =IF(COUNTIF(F$8:F194,F195)>0,"",MAX(E$8:E194)+1) -> 187 | H195: =IFERROR(VLOOKUP(bd_expos[[#This Row],[Numéro CAS]],Tableau2[#All],2,FALSE),"") ->  | I195: =IFERROR(VLOOKUP(bd_expos[[#This Row],[Numéro CAS]],Tableau2[#All],3,FALSE),"") ->  | J195: =IFERROR(VLOOKUP(bd_expos[[#This Row],[Numéro CAS]],Tableau2[#All],4,FALSE),"") ->  | P195: =IF('Liste nominative CMR'!B195='Fiche individuelle CMR'!$C$8,MAX($P$8:P194)+1,"") -> 187
A196: =IF(COUNTIF(B$8:B195,B196)>0,"",MAX(A$8:A195)+1) -> 188 | E196: =IF(COUNTIF(F$8:F195,F196)>0,"",MAX(E$8:E195)+1) -> 188 | H196: =IFERROR(VLOOKUP(bd_expos[[#This Row],[Numéro CAS]],Tableau2[#All],2,FALSE),"") ->  | I196: =IFERROR(VLOOKUP(bd_expos[[#This Row],[Numéro CAS]],Tableau2[#All],3,FALSE),"") ->  | J196: =IFERROR(VLOOKUP(bd_expos[[#This Row],[Numéro CAS]],Tableau2[#All],4,FALSE),"") ->  | P196: =IF('Liste nominative CMR'!B196='Fiche individuelle CMR'!$C$8,MAX($P$8:P195)+1,"") -> 188
A197: =IF(COUNTIF(B$8:B196,B197)>0,"",MAX(A$8:A196)+1) -> 189 | E197: =IF(COUNTIF(F$8:F196,F197)>0,"",MAX(E$8:E196)+1) -> 189 | H197: =IFERROR(VLOOKUP(bd_expos[[#This Row],[Numéro CAS]],Tableau2[#All],2,FALSE),"") ->  | I197: =IFERROR(VLOOKUP(bd_expos[[#This Row],[Numéro CAS]],Tableau2[#All],3,FALSE),"") ->  | J197: =IFERROR(VLOOKUP(bd_expos[[#This Row],[Numéro CAS]],Tableau2[#All],4,FALSE),"") ->  | P197: =IF('Liste nominative CMR'!B197='Fiche individuelle CMR'!$C$8,MAX($P$8:P196)+1,"") -> 189
A198: =IF(COUNTIF(B$8:B197,B198)>0,"",MAX(A$8:A197)+1) -> 190 | E198: =IF(COUNTIF(F$8:F197,F198)>0,"",MAX(E$8:E197)+1) -> 190 | H198: =IFERROR(VLOOKUP(bd_expos[[#This Row],[Numéro CAS]],Tableau2[#All],2,FALSE),"") ->  | I198: =IFERROR(VLOOKUP(bd_expos[[#This Row],[Numéro CAS]],Tableau2[#All],3,FALSE),"") ->  | J198: =IFERROR(VLOOKUP(bd_expos[[#This Row],[Numéro CAS]],Tableau2[#All],4,FALSE),"") ->  | P198: =IF('Liste nominative CMR'!B198='Fiche individuelle CMR'!$C$8,MAX($P$8:P197)+1,"") -> 190
A199: =IF(COUNTIF(B$8:B198,B199)>0,"",MAX(A$8:A198)+1) -> 191 | E199: =IF(COUNTIF(F$8:F198,F199)>0,"",MAX(E$8:E198)+1) -> 191 | H199: =IFERROR(VLOOKUP(bd_expos[[#This Row],[Numéro CAS]],Tableau2[#All],2,FALSE),"") ->  | I199: =IFERROR(VLOOKUP(bd_expos[[#This Row],[Numéro CAS]],Tableau2[#All],3,FALSE),"") ->  | J199: =IFERROR(VLOOKUP(bd_expos[[#This Row],[Numéro CAS]],Tableau2[#All],4,FALSE),"") ->  | P199: =IF('Liste nominative CMR'!B199='Fiche individuelle CMR'!$C$8,MAX($P$8:P198)+1,"") -> 191
A200: =IF(COUNTIF(B$8:B199,B200)>0,"",MAX(A$8:A199)+1) -> 192 | E200: =IF(COUNTIF(F$8:F199,F200)>0,"",MAX(E$8:E199)+1) -> 192 | H200: =IFERROR(VLOOKUP(bd_expos[[#This Row],[Numéro CAS]],Tableau2[#All],2,FALSE),"") ->  | I200: =IFERROR(VLOOKUP(bd_expos[[#This Row],[Numéro CAS]],Tableau2[#All],3,FALSE),"") ->  | J200: =IFERROR(VLOOKUP(bd_expos[[#This Row],[Numéro CAS]],Tableau2[#All],4,FALSE),"") ->  | P200: =IF('Liste nominative CMR'!B200='Fiche individuelle CMR'!$C$8,MAX($P$8:P199)+1,"") -> 192
A201: =IF(COUNTIF(B$8:B200,B201)>0,"",MAX(A$8:A200)+1) -> 193 | E201: =IF(COUNTIF(F$8:F200,F201)>0,"",MAX(E$8:E200)+1) -> 193 | H201: =IFERROR(VLOOKUP(bd_expos[[#This Row],[Numéro CAS]],Tableau2[#All],2,FALSE),"") ->  | I201: =IFERROR(VLOOKUP(bd_expos[[#This Row],[Numéro CAS]],Tableau2[#All],3,FALSE),"") ->  | J201: =IFERROR(VLOOKUP(bd_expos[[#This Row],[Numéro CAS]],Tableau2[#All],4,FALSE),"") ->  | P201: =IF('Liste nominative CMR'!B201='Fiche individuelle CMR'!$C$8,MAX($P$8:P200)+1,"") -> 193
A202: =IF(COUNTIF(B$8:B201,B202)>0,"",MAX(A$8:A201)+1) -> 194 | E202: =IF(COUNTIF(F$8:F201,F202)>0,"",MAX(E$8:E201)+1) -> 194 | H202: =IFERROR(VLOOKUP(bd_expos[[#This Row],[Numéro CAS]],Tableau2[#All],2,FALSE),"") ->  | I202: =IFERROR(VLOOKUP(bd_expos[[#This Row],[Numéro CAS]],Tableau2[#All],3,FALSE),"") ->  | J202: =IFERROR(VLOOKUP(bd_expos[[#This Row],[Numéro CAS]],Tableau2[#All],4,FALSE),"") ->  | P202: =IF('Liste nominative CMR'!B202='Fiche individuelle CMR'!$C$8,MAX($P$8:P201)+1,"") -> 194
A203: =IF(COUNTIF(B$8:B202,B203)>0,"",MAX(A$8:A202)+1) -> 195 | E203: =IF(COUNTIF(F$8:F202,F203)>0,"",MAX(E$8:E202)+1) -> 195 | H203: =IFERROR(VLOOKUP(bd_expos[[#This Row],[Numéro CAS]],Tableau2[#All],2,FALSE),"") ->  | I203: =IFERROR(VLOOKUP(bd_expos[[#This Row],[Numéro CAS]],Tableau2[#All],3,FALSE),"") ->  | J203: =IFERROR(VLOOKUP(bd_expos[[#This Row],[Numéro CAS]],Tableau2[#All],4,FALSE),"") ->  | P203: =IF('Liste nominative CMR'!B203='Fiche individuelle CMR'!$C$8,MAX($P$8:P202)+1,"") -> 195
A204: =IF(COUNTIF(B$8:B203,B204)>0,"",MAX(A$8:A203)+1) -> 196 | E204: =IF(COUNTIF(F$8:F203,F204)>0,"",MAX(E$8:E203)+1) -> 196 | H204: =IFERROR(VLOOKUP(bd_expos[[#This Row],[Numéro CAS]],Tableau2[#All],2,FALSE),"") ->  | I204: =IFERROR(VLOOKUP(bd_expos[[#This Row],[Numéro CAS]],Tableau2[#All],3,FALSE),"") ->  | J204: =IFERROR(VLOOKUP(bd_expos[[#This Row],[Numéro CAS]],Tableau2[#All],4,FALSE),"") ->  | P204: =IF('Liste nominative CMR'!B204='Fiche individuelle CMR'!$C$8,MAX($P$8:P203)+1,"") -> 196
... 47 more rows

Sheet Liste anonymisée CMR
A1: Expositions aux Cancérogènes, Mutagènes et Reprotoxiques anonymisées
B5: Raison sociale : | C5: ='Liste nominative CMR'!D5 -> 0 | D5: Numéro Adhérent : | E5: ='Liste nominative CMR'!K5 -> 0 | F5: Date de création : | G5: ='Liste nominative CMR'!N5 -> 00:00:00
F6: Date de mise à jour : | G6: ='Liste nominative CMR'!N6 -> 00:00:00
B10: =bd_expos[[#Headers],[Numéro CAS]] -> Numéro CAS | C10: =bd_expos[[#Headers],[Nom du CMR]] -> Nom du CMR | D10: =bd_expos[[#Headers],[Procédés]] -> Procédés | E10: Nature d'exposition (si connu) | F10: =bd_expos[[#Headers],[Durée d''exposition (si connu)]] -> Durée d'exposition (si connu) | G10: =bd_expos[[#Headers],[Degré d''exposition ( si connue) ]] -> Degré d'exposition ( si connue)
B11: =bd_expos[Numéro CAS] -> 0 | C11: =bd_expos[Nom du CMR] ->  | D11: =bd_expos[Procédés] -> 0 | E11: =bd_expos[Nature d''exposition (si connu)] -> 0 | F11: =bd_expos[Durée d''exposition (si connu)] -> 0 | G11: =bd_expos[Degré d''exposition ( si connue) ] -> 0
B12: 0 | D12: 0 | E12: 0 | F12: 0 | G12: 0
B13: 0 | D13: 0 | E13: 0 | F13: 0 | G13: 0
B14: 0 | D14: 0 | E14: 0 | F14: 0 | G14: 0
B15: 0 | D15: 0 | E15: 0 | F15: 0 | G15: 0
B16: 0 | D16: 0 | E16: 0 | F16: 0 | G16: 0
B17: 0 | D17: 0 | E17: 0 | F17: 0 | G17: 0
B18: 0 | D18: 0 | E18: 0 | F18: 0 | G18: 0
B19: 0 | D19: 0 | E19: 0 | F19: 0 | G19: 0
B20: 0 | D20: 0 | E20: 0 | F20: 0 | G20: 0
B21: 0 | D21: 0 | E21: 0 | F21: 0 | G21: 0
B22: 0 | D22: 0 | E22: 0 | F22: 0 | G22: 0
B23: 0 | D23: 0 | E23: 0 | F23: 0 | G23: 0
B24: 0 | D24: 0 | E24: 0 | F24: 0 | G24: 0
B25: 0 | D25: 0 | E25: 0 | F25: 0 | G25: 0
B26: 0 | D26: 0 | E26: 0 | F26: 0 | G26: 0
B27: 0 | D27: 0 | E27: 0 | F27: 0 | G27: 0
B28: 0 | D28: 0 | E28: 0 | F28: 0 | G28: 0
B29: 0 | D29: 0 | E29: 0 | F29: 0 | G29: 0
B30: 0 | D30: 0 | E30: 0 | F30: 0 | G30: 0
B31: 0 | D31: 0 | E31: 0 | F31: 0 | G31: 0
B32: 0 | D32: 0 | E32: 0 | F32: 0 | G32: 0
B33: 0 | D33: 0 | E33: 0 | F33: 0 | G33: 0
B34: 0 | D34: 0 | E34: 0 | F34: 0 | G34: 0
B35: 0 | D35: 0 | E35: 0 | F35: 0 | G35: 0
B36: 0 | D36: 0 | E36: 0 | F36: 0 | G36: 0
B37: 0 | D37: 0 | E37: 0 | F37: 0 | G37: 0
B38: 0 | D38: 0 | E38: 0 | F38: 0 | G38: 0
B39: 0 | D39: 0 | E39: 0 | F39: 0 | G39: 0
B40: 0 | D40: 0 | E40: 0 | F40: 0 | G40: 0
B41: 0 | D41: 0 | E41: 0 | F41: 0 | G41: 0
B42: 0 | D42: 0 | E42: 0 | F42: 0 | G42: 0
B43: 0 | D43: 0 | E43: 0 | F43: 0 | G43: 0
B44: 0 | D44: 0 | E44: 0 | F44: 0 | G44: 0
B45: 0 | D45: 0 | E45: 0 | F45: 0 | G45: 0
B46: 0 | D46: 0 | E46: 0 | F46: 0 | G46: 0
B47: 0 | D47: 0 | E47: 0 | F47: 0 | G47: 0
B48: 0 | D48: 0 | E48: 0 | F48: 0 | G48: 0
B49: 0 | D49: 0 | E49: 0 | F49: 0 | G49: 0
B50: 0 | D50: 0 | E50: 0 | F50: 0 | G50: 0
B51: 0 | D51: 0 | E51: 0 | F51: 0 | G51: 0
B52: 0 | D52: 0 | E52: 0 | F52: 0 | G52: 0
B53: 0 | D53: 0 | E53: 0 | F53: 0 | G53: 0
B54: 0 | D54: 0 | E54: 0 | F54: 0 | G54: 0
B55: 0 | D55: 0 | E55: 0 | F55: 0 | G55: 0
B56: 0 | D56: 0 | E56: 0 | F56: 0 | G56: 0
B57: 0 | D57: 0 | E57: 0 | F57: 0 | G57: 0
B58: 0 | D58: 0 | E58: 0 | F58: 0 | G58: 0
B59: 0 | D59: 0 | E59: 0 | F59: 0 | G59: 0
B60: 0 | D60: 0 | E60: 0 | F60: 0 | G60: 0
B61: 0 | D61: 0 | E61: 0 | F61: 0 | G61: 0
B62: 0 | D62: 0 | E62: 0 | F62: 0 | G62: 0
B63: 0 | D63: 0 | E63: 0 | F63: 0 | G63: 0
B64: 0 | D64: 0 | E64: 0 | F64: 0 | G64: 0
B65: 0 | D65: 0 | E65: 0 | F65: 0 | G65: 0
B66: 0 | D66: 0 | E66: 0 | F66: 0 | G66: 0
B67: 0 | D67: 0 | E67: 0 | F67: 0 | G67: 0
B68: 0 | D68: 0 | E68: 0 | F68: 0 | G68: 0
B69: 0 | D69: 0 | E69: 0 | F69: 0 | G69: 0
B70: 0 | D70: 0 | E70: 0 | F70: 0 | G70: 0
B71: 0 | D71: 0 | E71: 0 | F71: 0 | G71: 0
B72: 0 | D72: 0 | E72: 0 | F72: 0 | G72: 0
B73: 0 | D73: 0 | E73: 0 | F73: 0 | G73: 0
B74: 0 | D74: 0 | E74: 0 | F74: 0 | G74: 0
B75: 0 | D75: 0 | E75: 0 | F75: 0 | G75: 0
B76: 0 | D76: 0 | E76: 0 | F76: 0 | G76: 0
B77: 0 | D77: 0 | E77: 0 | F77: 0 | G77: 0
B78: 0 | D78: 0 | E78: 0 | F78: 0 | G78: 0
B79: 0 | D79: 0 | E79: 0 | F79: 0 | G79: 0
B80: 0 | D80: 0 | E80: 0 | F80: 0 | G80: 0
B81: 0 | D81: 0 | E81: 0 | F81: 0 | G81: 0
B82: 0 | D82: 0 | E82: 0 | F82: 0 | G82: 0
B83: 0 | D83: 0 | E83: 0 | F83: 0 | G83: 0
B84: 0 | D84: 0 | E84: 0 | F84: 0 | G84: 0
B85: 0 | D85: 0 | E85: 0 | F85: 0 | G85: 0
B86: 0 | D86: 0 | E86: 0 | F86: 0 | G86: 0
B87: 0 | D87: 0 | E87: 0 | F87: 0 | G87: 0
B88: 0 | D88: 0 | E88: 0 | F88: 0 | G88: 0
B89: 0 | D89: 0 | E89: 0 | F89: 0 | G89: 0
B90: 0 | D90: 0 | E90: 0 | F90: 0 | G90: 0
B91: 0 | D91: 0 | E91: 0 | F91: 0 | G91: 0
B92: 0 | D92: 0 | E92: 0 | F92: 0 | G92: 0
B93: 0 | D93: 0 | E93: 0 | F93: 0 | G93: 0
B94: 0 | D94: 0 | E94: 0 | F94: 0 | G94: 0
B95: 0 | D95: 0 | E95: 0 | F95: 0 | G95: 0
B96: 0 | D96: 0 | E96: 0 | F96: 0 | G96: 0
B97: 0 | D97: 0 | E97: 0 | F97: 0 | G97: 0
B98: 0 | D98: 0 | E98: 0 | F98: 0 | G98: 0
B99: 0 | D99: 0 | E99: 0 | F99: 0 | G99: 0
B100: 0 | D100: 0 | E100: 0 | F100: 0 | G100: 0
B101: 0 | D101: 0 | E101: 0 | F101: 0 | G101: 0
B102: 0 | D102: 0 | E102: 0 | F102: 0 | G102: 0
B103: 0 | D103: 0 | E103: 0 | F103: 0 | G103: 0
B104: 0 | D104: 0 | E104: 0 | F104: 0 | G104: 0
B105: 0 | D105: 0 | E105: 0 | F105: 0 | G105: 0
B106: 0 | D106: 0 | E106: 0 | F106: 0 | G106: 0
B107: 0 | D107: 0 | E107: 0 | F107: 0 | G107: 0
B108: 0 | D108: 0 | E108: 0 | F108: 0 | G108: 0
B109: 0 | D109: 0 | E109: 0 | F109: 0 | G109: 0
B110: 0 | D110: 0 | E110: 0 | F110: 0 | G110: 0
B111: 0 | D111: 0 | E111: 0 | F111: 0 | G111: 0
B112: 0 | D112: 0 | E112: 0 | F112: 0 | G112: 0
B113: 0 | D113: 0 | E113: 0 | F113: 0 | G113: 0
B114: 0 | D114: 0 | E114: 0 | F114: 0 | G114: 0
B115: 0 | D115: 0 | E115: 0 | F115: 0 | G115: 0
B116: 0 | D116: 0 | E116: 0 | F116: 0 | G116: 0
B117: 0 | D117: 0 | E117: 0 | F117: 0 | G117: 0
B118: 0 | D118: 0 | E118: 0 | F118: 0 | G118: 0
B119: 0 | D119: 0 | E119: 0 | F119: 0 | G119: 0
B120: 0 | D120: 0 | E120: 0 | F120: 0 | G120: 0
B121: 0 | D121: 0 | E121: 0 | F121: 0 | G121: 0
B122: 0 | D122: 0 | E122: 0 | F122: 0 | G122: 0
B123: 0 | D123: 0 | E123: 0 | F123: 0 | G123: 0
B124: 0 | D124: 0 | E124: 0 | F124: 0 | G124: 0
B125: 0 | D125: 0 | E125: 0 | F125: 0 | G125: 0
B126: 0 | D126: 0 | E126: 0 | F126: 0 | G126: 0
B127: 0 | D127: 0 | E127: 0 | F127: 0 | G127: 0
B128: 0 | D128: 0 | E128: 0 | F128: 0 | G128: 0
B129: 0 | D129: 0 | E129: 0 | F129: 0 | G129: 0
B130: 0 | D130: 0 | E130: 0 | F130: 0 | G130: 0
B131: 0 | D131: 0 | E131: 0 | F131: 0 | G131: 0
B132: 0 | D132: 0 | E132: 0 | F132: 0 | G132: 0
B133: 0 | D133: 0 | E133: 0 | F133: 0 | G133: 0
B134: 0 | D134: 0 | E134: 0 | F134: 0 | G134: 0
B135: 0 | D135: 0 | E135: 0 | F135: 0 | G135: 0
B136: 0 | D136: 0 | E136: 0 | F136: 0 | G136: 0
B137: 0 | D137: 0 | E137: 0 | F137: 0 | G137: 0
B138: 0 | D138: 0 | E138: 0 | F138: 0 | G138: 0
B139: 0 | D139: 0 | E139: 0 | F139: 0 | G139: 0
B140: 0 | D140: 0 | E140: 0 | F140: 0 | G140: 0
B141: 0 | D141: 0 | E141: 0 | F141: 0 | G141: 0
B142: 0 | D142: 0 | E142: 0 | F142: 0 | G142: 0
B143: 0 | D143: 0 | E143: 0 | F143: 0 | G143: 0
B144: 0 | D144: 0 | E144: 0 | F144: 0 | G144: 0
B145: 0 | D145: 0 | E145: 0 | F145: 0 | G145: 0
B146: 0 | D146: 0 | E146: 0 | F146: 0 | G146: 0
B147: 0 | D147: 0 | E147: 0 | F147: 0 | G147: 0
B148: 0 | D148: 0 | E148: 0 | F148: 0 | G148: 0
B149: 0 | D149: 0 | E149: 0 | F149: 0 | G149: 0
B150: 0 | D150: 0 | E150: 0 | F150: 0 | G150: 0
B151: 0 | D151: 0 | E151: 0 | F151: 0 | G151: 0
B152: 0 | D152: 0 | E152: 0 | F152: 0 | G152: 0
B153: 0 | D153: 0 | E153: 0 | F153: 0 | G153: 0
B154: 0 | D154: 0 | E154: 0 | F154: 0 | G154: 0
B155: 0 | D155: 0 | E155: 0 | F155: 0 | G155: 0
B156: 0 | D156: 0 | E156: 0 | F156: 0 | G156: 0
B157: 0 | D157: 0 | E157: 0 | F157: 0 | G157: 0
B158: 0 | D158: 0 | E158: 0 | F158: 0 | G158: 0
B159: 0 | D159: 0 | E159: 0 | F159: 0 | G159: 0
B160: 0 | D160: 0 | E160: 0 | F160: 0 | G160: 0
B161: 0 | D161: 0 | E161: 0 | F161: 0 | G161: 0
B162: 0 | D162: 0 | E162: 0 | F162: 0 | G162: 0
B163: 0 | D163: 0 | E163: 0 | F163: 0 | G163: 0
B164: 0 | D164: 0 | E164: 0 | F164: 0 | G164: 0
B165: 0 | D165: 0 | E165: 0 | F165: 0 | G165: 0
B166: 0 | D166: 0 | E166: 0 | F166: 0 | G166: 0
B167: 0 | D167: 0 | E167: 0 | F167: 0 | G167: 0
B168: 0 | D168: 0 | E168: 0 | F168: 0 | G168: 0
B169: 0 | D169: 0 | E169: 0 | F169: 0 | G169: 0
B170: 0 | D170: 0 | E170: 0 | F170: 0 | G170: 0
B171: 0 | D171: 0 | E171: 0 | F171: 0 | G171: 0
B172: 0 | D172: 0 | E172: 0 | F172: 0 | G172: 0
B173: 0 | D173: 0 | E173: 0 | F173: 0 | G173: 0
B174: 0 | D174: 0 | E174: 0 | F174: 0 | G174: 0
B175: 0 | D175: 0 | E175: 0 | F175: 0 | G175: 0
B176: 0 | D176: 0 | E176: 0 | F176: 0 | G176: 0
B177: 0 | D177: 0 | E177: 0 | F177: 0 | G177: 0
B178: 0 | D178: 0 | E178: 0 | F178: 0 | G178: 0
B179: 0 | D179: 0 | E179: 0 | F179: 0 | G179: 0
B180: 0 | D180: 0 | E180: 0 | F180: 0 | G180: 0
B181: 0 | D181: 0 | E181: 0 | F181: 0 | G181: 0
B182: 0 | D182: 0 | E182: 0 | F182: 0 | G182: 0
B183: 0 | D183: 0 | E183: 0 | F183: 0 | G183: 0
B184: 0 | D184: 0 | E184: 0 | F184: 0 | G184: 0
B185: 0 | D185: 0 | E185: 0 | F185: 0 | G185: 0
B186: 0 | D186: 0 | E186: 0 | F186: 0 | G186: 0
B187: 0 | D187: 0 | E187: 0 | F187: 0 | G187: 0
B188: 0 | D188: 0 | E188: 0 | F188: 0 | G188: 0
B189: 0 | D189: 0 | E189: 0 | F189: 0 | G189: 0
B190: 0 | D190: 0 | E190: 0 | F190: 0 | G190: 0
B191: 0 | D191: 0 | E191: 0 | F191: 0 | G191: 0
B192: 0 | D192: 0 | E192: 0 | F192: 0 | G192: 0
B193: 0 | D193: 0 | E193: 0 | F193: 0 | G193: 0
B194: 0 | D194: 0 | E194: 0 | F194: 0 | G194: 0
B195: 0 | D195: 0 | E195: 0 | F195: 0 | G195: 0
B196: 0 | D196: 0 | E196: 0 | F196: 0 | G196: 0
B197: 0 | D197: 0 | E197: 0 | F197: 0 | G197: 0
B198: 0 | D198: 0 | E198: 0 | F198: 0 | G198: 0
B199: 0 | D199: 0 | E199: 0 | F199: 0 | G199: 0
B200: 0 | D200: 0 | E200: 0 | F200: 0 | G200: 0
B201: 0 | D201: 0 | E201: 0 | F201: 0 | G201: 0
B202: 0 | D202: 0 | E202: 0 | F202: 0 | G202: 0
B203: 0 | D203: 0 | E203: 0 | F203: 0 | G203: 0
B204: 0 | D204: 0 | E204: 0 | F204: 0 | G204: 0
B205: 0 | D205: 0 | E205: 0 | F205: 0 | G205: 0
B206: 0 | D206: 0 | E206: 0 | F206: 0 | G206: 0
... 47 more rows

Sheet Fiche individuelle CMR
A1: Fiche individuelle d'expositions aux CMR
A5: Raison sociale : | B5: ='Liste nominative CMR'!D5 -> 0 | C5: Numéro Adhérent : | D5: ='Liste nominative CMR'!K5 -> 0 | F5: Date de création : | G5: ='Liste nominative CMR'!N5 -> 00:00:00
F6: Date de mise à jour : | G6: ='Liste nominative CMR'!N6 -> 00:00:00
C7: Travailleur :
A11: Numéro CAS | B11: Nom du CMR | C11: Procédés | D11: Nature d'exposition (si connu) | E11: Durée d'exposition (si connu) | F11: Degré d'exposition ( si connue)
A12: =_xlfn.CHOOSECOLS(_xlfn._xlws.FILTER(bd_expos[],bd_expos[NOM et Prénom du travailleur]=$C$8,""),7,10,11,12,13,14) -> 0 | C12: 0 | D12: 0 | E12: 0 | F12: 0
A13: 0 | C13: 0 | D13: 0 | E13: 0 | F13: 0
A14: 0 | C14: 0 | D14: 0 | E14: 0 | F14: 0
A15: 0 | C15: 0 | D15: 0 | E15: 0 | F15: 0
A16: 0 | C16: 0 | D16: 0 | E16: 0 | F16: 0
A17: 0 | C17: 0 | D17: 0 | E17: 0 | F17: 0
A18: 0 | C18: 0 | D18: 0 | E18: 0 | F18: 0
A19: 0 | C19: 0 | D19: 0 | E19: 0 | F19: 0
A20: 0 | C20: 0 | D20: 0 | E20: 0 | F20: 0
A21: 0 | C21: 0 | D21: 0 | E21: 0 | F21: 0
A22: 0 | C22: 0 | D22: 0 | E22: 0 | F22: 0
A23: 0 | C23: 0 | D23: 0 | E23: 0 | F23: 0
A24: 0 | C24: 0 | D24: 0 | E24: 0 | F24: 0
A25: 0 | C25: 0 | D25: 0 | E25: 0 | F25: 0
A26: 0 | C26: 0 | D26: 0 | E26: 0 | F26: 0
A27: 0 | C27: 0 | D27: 0 | E27: 0 | F27: 0
A28: 0 | C28: 0 | D28: 0 | E28: 0 | F28: 0
A29: 0 | C29: 0 | D29: 0 | E29: 0 | F29: 0
A30: 0 | C30: 0 | D30: 0 | E30: 0 | F30: 0
A31: 0 | C31: 0 | D31: 0 | E31: 0 | F31: 0
A32: 0 | C32: 0 | D32: 0 | E32: 0 | F32: 0
A33: 0 | C33: 0 | D33: 0 | E33: 0 | F33: 0
A34: 0 | C34: 0 | D34: 0 | E34: 0 | F34: 0
A35: 0 | C35: 0 | D35: 0 | E35: 0 | F35: 0
A36: 0 | C36: 0 | D36: 0 | E36: 0 | F36: 0
A37: 0 | C37: 0 | D37: 0 | E37: 0 | F37: 0
A38: 0 | C38: 0 | D38: 0 | E38: 0 | F38: 0
A39: 0 | C39: 0 | D39: 0 | E39: 0 | F39: 0
A40: 0 | C40: 0 | D40: 0 | E40: 0 | F40: 0
A41: 0 | C41: 0 | D41: 0 | E41: 0 | F41: 0
A42: 0 | C42: 0 | D42: 0 | E42: 0 | F42: 0
A43: 0 | C43: 0 | D43: 0 | E43: 0 | F43: 0
A44: 0 | C44: 0 | D44: 0 | E44: 0 | F44: 0
A45: 0 | C45: 0 | D45: 0 | E45: 0 | F45: 0
A46: 0 | C46: 0 | D46: 0 | E46: 0 | F46: 0
A47: 0 | C47: 0 | D47: 0 | E47: 0 | F47: 0
A48: 0 | C48: 0 | D48: 0 | E48: 0 | F48: 0
A49: 0 | C49: 0 | D49: 0 | E49: 0 | F49: 0
A50: 0 | C50: 0 | D50: 0 | E50: 0 | F50: 0
A51: 0 | C51: 0 | D51: 0 | E51: 0 | F51: 0
A52: 0 | C52: 0 | D52: 0 | E52: 0 | F52: 0
A53: 0 | C53: 0 | D53: 0 | E53: 0 | F53: 0
A54: 0 | C54: 0 | D54: 0 | E54: 0 | F54: 0
A55: 0 | C55: 0 | D55: 0 | E55: 0 | F55: 0
A56: 0 | C56: 0 | D56: 0 | E56: 0 | F56: 0
A57: 0 | C57: 0 | D57: 0 | E57: 0 | F57: 0
A58: 0 | C58: 0 | D58: 0 | E58: 0 | F58: 0
A59: 0 | C59: 0 | D59: 0 | E59: 0 | F59: 0
A60: 0 | C60: 0 | D60: 0 | E60: 0 | F60: 0
A61: 0 | C61: 0 | D61: 0 | E61: 0 | F61: 0
A62: 0 | C62: 0 | D62: 0 | E62: 0 | F62: 0
A63: 0 | C63: 0 | D63: 0 | E63: 0 | F63: 0
A64: 0 | C64: 0 | D64: 0 | E64: 0 | F64: 0
A65: 0 | C65: 0 | D65: 0 | E65: 0 | F65: 0
A66: 0 | C66: 0 | D66: 0 | E66: 0 | F66: 0
A67: 0 | C67: 0 | D67: 0 | E67: 0 | F67: 0
A68: 0 | C68: 0 | D68: 0 | E68: 0 | F68: 0
A69: 0 | C69: 0 | D69: 0 | E69: 0 | F69: 0
A70: 0 | C70: 0 | D70: 0 | E70: 0 | F70: 0
A71: 0 | C71: 0 | D71: 0 | E71: 0 | F71: 0
A72: 0 | C72: 0 | D72: 0 | E72: 0 | F72: 0
A73: 0 | C73: 0 | D73: 0 | E73: 0 | F73: 0
A74: 0 | C74: 0 | D74: 0 | E74: 0 | F74: 0
A75: 0 | C75: 0 | D75: 0 | E75: 0 | F75: 0
A76: 0 | C76: 0 | D76: 0 | E76: 0 | F76: 0
A77: 0 | C77: 0 | D77: 0 | E77: 0 | F77: 0
A78: 0 | C78: 0 | D78: 0 | E78: 0 | F78: 0
A79: 0 | C79: 0 | D79: 0 | E79: 0 | F79: 0
A80: 0 | C80: 0 | D80: 0 | E80: 0 | F80: 0
A81: 0 | C81: 0 | D81: 0 | E81: 0 | F81: 0
A82: 0 | C82: 0 | D82: 0 | E82: 0 | F82: 0
A83: 0 | C83: 0 | D83: 0 | E83: 0 | F83: 0
A84: 0 | C84: 0 | D84: 0 | E84: 0 | F84: 0
A85: 0 | C85: 0 | D85: 0 | E85: 0 | F85: 0
A86: 0 | C86: 0 | D86: 0 | E86: 0 | F86: 0
A87: 0 | C87: 0 | D87: 0 | E87: 0 | F87: 0
A88: 0 | C88: 0 | D88: 0 | E88: 0 | F88: 0
A89: 0 | C89: 0 | D89: 0 | E89: 0 | F89: 0
A90: 0 | C90: 0 | D90: 0 | E90: 0 | F90: 0
A91: 0 | C91: 0 | D91: 0 | E91: 0 | F91: 0
A92: 0 | C92: 0 | D92: 0 | E92: 0 | F92: 0
A93: 0 | C93: 0 | D93: 0 | E93: 0 | F93: 0
A94: 0 | C94: 0 | D94: 0 | E94: 0 | F94: 0
A95: 0 | C95: 0 | D95: 0 | E95: 0 | F95: 0
A96: 0 | C96: 0 | D96: 0 | E96: 0 | F96: 0
A97: 0 | C97: 0 | D97: 0 | E97: 0 | F97: 0
A98: 0 | C98: 0 | D98: 0 | E98: 0 | F98: 0
A99: 0 | C99: 0 | D99: 0 | E99: 0 | F99: 0
A100: 0 | C100: 0 | D100: 0 | E100: 0 | F100: 0
A101: 0 | C101: 0 | D101: 0 | E101: 0 | F101: 0
A102: 0 | C102: 0 | D102: 0 | E102: 0 | F102: 0
A103: 0 | C103: 0 | D103: 0 | E103: 0 | F103: 0
A104: 0 | C104: 0 | D104: 0 | E104: 0 | F104: 0
A105: 0 | C105: 0 | D105: 0 | E105: 0 | F105: 0
A106: 0 | C106: 0 | D106: 0 | E106: 0 | F106: 0
A107: 0 | C107: 0 | D107: 0 | E107: 0 | F107: 0
A108: 0 | C108: 0 | D108: 0 | E108: 0 | F108: 0
A109: 0 | C109: 0 | D109: 0 | E109: 0 | F109: 0
A110: 0 | C110: 0 | D110: 0 | E110: 0 | F110: 0
A111: 0 | C111: 0 | D111: 0 | E111: 0 | F111: 0
A112: 0 | C112: 0 | D112: 0 | E112: 0 | F112: 0
A113: 0 | C113: 0 | D113: 0 | E113: 0 | F113: 0
A114: 0 | C114: 0 | D114: 0 | E114: 0 | F114: 0
A115: 0 | C115: 0 | D115: 0 | E115: 0 | F115: 0
A116: 0 | C116: 0 | D116: 0 | E116: 0 | F116: 0
A117: 0 | C117: 0 | D117: 0 | E117: 0 | F117: 0
A118: 0 | C118: 0 | D118: 0 | E118: 0 | F118: 0
A119: 0 | C119: 0 | D119: 0 | E119: 0 | F119: 0
A120: 0 | C120: 0 | D120: 0 | E120: 0 | F120: 0
A121: 0 | C121: 0 | D121: 0 | E121: 0 | F121: 0
A122: 0 | C122: 0 | D122: 0 | E122: 0 | F122: 0
A123: 0 | C123: 0 | D123: 0 | E123: 0 | F123: 0
A124: 0 | C124: 0 | D124: 0 | E124: 0 | F124: 0
A125: 0 | C125: 0 | D125: 0 | E125: 0 | F125: 0
A126: 0 | C126: 0 | D126: 0 | E126: 0 | F126: 0
A127: 0 | C127: 0 | D127: 0 | E127: 0 | F127: 0
A128: 0 | C128: 0 | D128: 0 | E128: 0 | F128: 0
A129: 0 | C129: 0 | D129: 0 | E129: 0 | F129: 0
A130: 0 | C130: 0 | D130: 0 | E130: 0 | F130: 0
A131: 0 | C131: 0 | D131: 0 | E131: 0 | F131: 0
A132: 0 | C132: 0 | D132: 0 | E132: 0 | F132: 0
A133: 0 | C133: 0 | D133: 0 | E133: 0 | F133: 0
A134: 0 | C134: 0 | D134: 0 | E134: 0 | F134: 0
A135: 0 | C135: 0 | D135: 0 | E135: 0 | F135: 0
A136: 0 | C136: 0 | D136: 0 | E136: 0 | F136: 0
A137: 0 | C137: 0 | D137: 0 | E137: 0 | F137: 0
A138: 0 | C138: 0 | D138: 0 | E138: 0 | F138: 0
A139: 0 | C139: 0 | D139: 0 | E139: 0 | F139: 0
A140: 0 | C140: 0 | D140: 0 | E140: 0 | F140: 0
A141: 0 | C141: 0 | D141: 0 | E141: 0 | F141: 0
A142: 0 | C142: 0 | D142: 0 | E142: 0 | F142: 0
A143: 0 | C143: 0 | D143: 0 | E143: 0 | F143: 0
A144: 0 | C144: 0 | D144: 0 | E144: 0 | F144: 0
A145: 0 | C145: 0 | D145: 0 | E145: 0 | F145: 0
A146: 0 | C146: 0 | D146: 0 | E146: 0 | F146: 0
A147: 0 | C147: 0 | D147: 0 | E147: 0 | F147: 0
A148: 0 | C148: 0 | D148: 0 | E148: 0 | F148: 0
A149: 0 | C149: 0 | D149: 0 | E149: 0 | F149: 0
A150: 0 | C150: 0 | D150: 0 | E150: 0 | F150: 0
A151: 0 | C151: 0 | D151: 0 | E151: 0 | F151: 0
A152: 0 | C152: 0 | D152: 0 | E152: 0 | F152: 0
A153: 0 | C153: 0 | D153: 0 | E153: 0 | F153: 0
A154: 0 | C154: 0 | D154: 0 | E154: 0 | F154: 0
A155: 0 | C155: 0 | D155: 0 | E155: 0 | F155: 0
A156: 0 | C156: 0 | D156: 0 | E156: 0 | F156: 0
A157: 0 | C157: 0 | D157: 0 | E157: 0 | F157: 0
A158: 0 | C158: 0 | D158: 0 | E158: 0 | F158: 0
A159: 0 | C159: 0 | D159: 0 | E159: 0 | F159: 0
A160: 0 | C160: 0 | D160: 0 | E160: 0 | F160: 0
A161: 0 | C161: 0 | D161: 0 | E161: 0 | F161: 0
A162: 0 | C162: 0 | D162: 0 | E162: 0 | F162: 0
A163: 0 | C163: 0 | D163: 0 | E163: 0 | F163: 0
A164: 0 | C164: 0 | D164: 0 | E164: 0 | F164: 0
A165: 0 | C165: 0 | D165: 0 | E165: 0 | F165: 0
A166: 0 | C166: 0 | D166: 0 | E166: 0 | F166: 0
A167: 0 | C167: 0 | D167: 0 | E167: 0 | F167: 0
A168: 0 | C168: 0 | D168: 0 | E168: 0 | F168: 0
A169: 0 | C169: 0 | D169: 0 | E169: 0 | F169: 0
A170: 0 | C170: 0 | D170: 0 | E170: 0 | F170: 0
A171: 0 | C171: 0 | D171: 0 | E171: 0 | F171: 0
A172: 0 | C172: 0 | D172: 0 | E172: 0 | F172: 0
A173: 0 | C173: 0 | D173: 0 | E173: 0 | F173: 0
A174: 0 | C174: 0 | D174: 0 | E174: 0 | F174: 0
A175: 0 | C175: 0 | D175: 0 | E175: 0 | F175: 0
A176: 0 | C176: 0 | D176: 0 | E176: 0 | F176: 0
A177: 0 | C177: 0 | D177: 0 | E177: 0 | F177: 0
A178: 0 | C178: 0 | D178: 0 | E178: 0 | F178: 0
A179: 0 | C179: 0 | D179: 0 | E179: 0 | F179: 0
A180: 0 | C180: 0 | D180: 0 | E180: 0 | F180: 0
A181: 0 | C181: 0 | D181: 0 | E181: 0 | F181: 0
A182: 0 | C182: 0 | D182: 0 | E182: 0 | F182: 0
A183: 0 | C183: 0 | D183: 0 | E183: 0 | F183: 0
A184: 0 | C184: 0 | D184: 0 | E184: 0 | F184: 0
A185: 0 | C185: 0 | D185: 0 | E185: 0 | F185: 0
A186: 0 | C186: 0 | D186: 0 | E186: 0 | F186: 0
A187: 0 | C187: 0 | D187: 0 | E187: 0 | F187: 0
A188: 0 | C188: 0 | D188: 0 | E188: 0 | F188: 0
A189: 0 | C189: 0 | D189: 0 | E189: 0 | F189: 0
A190: 0 | C190: 0 | D190: 0 | E190: 0 | F190: 0
A191: 0 | C191: 0 | D191: 0 | E191: 0 | F191: 0
A192: 0 | C192: 0 | D192: 0 | E192: 0 | F192: 0
A193: 0 | C193: 0 | D193: 0 | E193: 0 | F193: 0
A194: 0 | C194: 0 | D194: 0 | E194: 0 | F194: 0
A195: 0 | C195: 0 | D195: 0 | E195: 0 | F195: 0
A196: 0 | C196: 0 | D196: 0 | E196: 0 | F196: 0
A197: 0 | C197: 0 | D197: 0 | E197: 0 | F197: 0
A198: 0 | C198: 0 | D198: 0 | E198: 0 | F198: 0
A199: 0 | C199: 0 | D199: 0 | E199: 0 | F199: 0
A200: 0 | C200: 0 | D200: 0 | E200: 0 | F200: 0
A201: 0 | C201: 0 | D201: 0 | E201: 0 | F201: 0
A202: 0 | C202: 0 | D202: 0 | E202: 0 | F202: 0
A203: 0 | C203: 0 | D203: 0 | E203: 0 | F203: 0
A204: 0 | C204: 0 | D204: 0 | E204: 0 | F204: 0
A205: 0 | C205: 0 | D205: 0 | E205: 0 | F205: 0
A206: 0 | C206: 0 | D206: 0 | E206: 0 | F206: 0
... 48 more rows

Sheet Fiche intérimaires CMR
C1: Fiche individuelle d'expositions aux CMR - intérimaires
B5: Raison sociale : | C5: ='Liste nominative CMR'!D5 -> 0 | H5: Date de création : | I5: ='Liste nominative CMR'!N5 -> 00:00:00
H6: Date de mise à jour : | I6: ='Liste nominative CMR'!N6 -> 00:00:00
E7: Agence d'interim :
B11: NOM et Prénom du travailleur | C11: Numéro CAS | D11: Nom du CMR | E11: Procédés | F11: Nature d'exposition (si connu) | G11: Durée d'exposition (si connue) | H11: Degré d'exposition (si connu)
B12: =_xlfn.CHOOSECOLS(_xlfn._xlws.FILTER(bd_expos[],bd_expos[Nom de l''agence d''interim]=$E$8,""),2,7,10,11,12,13,14) -> 0 | C12: 0 | E12: 0 | F12: 0 | G12: 0 | H12: 0
B13: 0 | C13: 0 | E13: 0 | F13: 0 | G13: 0 | H13: 0
B14: 0 | C14: 0 | E14: 0 | F14: 0 | G14: 0 | H14: 0
B15: 0 | C15: 0 | E15: 0 | F15: 0 | G15: 0 | H15: 0
B16: 0 | C16: 0 | E16: 0 | F16: 0 | G16: 0 | H16: 0
B17: 0 | C17: 0 | E17: 0 | F17: 0 | G17: 0 | H17: 0
B18: 0 | C18: 0 | E18: 0 | F18: 0 | G18: 0 | H18: 0
B19: 0 | C19: 0 | E19: 0 | F19: 0 | G19: 0 | H19: 0
B20: 0 | C20: 0 | E20: 0 | F20: 0 | G20: 0 | H20: 0
B21: 0 | C21: 0 | E21: 0 | F21: 0 | G21: 0 | H21: 0
B22: 0 | C22: 0 | E22: 0 | F22: 0 | G22: 0 | H22: 0
B23: 0 | C23: 0 | E23: 0 | F23: 0 | G23: 0 | H23: 0
B24: 0 | C24: 0 | E24: 0 | F24: 0 | G24: 0 | H24: 0
B25: 0 | C25: 0 | E25: 0 | F25: 0 | G25: 0 | H25: 0
B26: 0 | C26: 0 | E26: 0 | F26: 0 | G26: 0 | H26: 0
B27: 0 | C27: 0 | E27: 0 | F27: 0 | G27: 0 | H27: 0
B28: 0 | C28: 0 | E28: 0 | F28: 0 | G28: 0 | H28: 0
B29: 0 | C29: 0 | E29: 0 | F29: 0 | G29: 0 | H29: 0
B30: 0 | C30: 0 | E30: 0 | F30: 0 | G30: 0 | H30: 0
B31: 0 | C31: 0 | E31: 0 | F31: 0 | G31: 0 | H31: 0
B32: 0 | C32: 0 | E32: 0 | F32: 0 | G32: 0 | H32: 0
B33: 0 | C33: 0 | E33: 0 | F33: 0 | G33: 0 | H33: 0
B34: 0 | C34: 0 | E34: 0 | F34: 0 | G34: 0 | H34: 0
B35: 0 | C35: 0 | E35: 0 | F35: 0 | G35: 0 | H35: 0
B36: 0 | C36: 0 | E36: 0 | F36: 0 | G36: 0 | H36: 0
B37: 0 | C37: 0 | E37: 0 | F37: 0 | G37: 0 | H37: 0
B38: 0 | C38: 0 | E38: 0 | F38: 0 | G38: 0 | H38: 0
B39: 0 | C39: 0 | E39: 0 | F39: 0 | G39: 0 | H39: 0
B40: 0 | C40: 0 | E40: 0 | F40: 0 | G40: 0 | H40: 0
B41: 0 | C41: 0 | E41: 0 | F41: 0 | G41: 0 | H41: 0
B42: 0 | C42: 0 | E42: 0 | F42: 0 | G42: 0 | H42: 0
B43: 0 | C43: 0 | E43: 0 | F43: 0 | G43: 0 | H43: 0
B44: 0 | C44: 0 | E44: 0 | F44: 0 | G44: 0 | H44: 0
B45: 0 | C45: 0 | E45: 0 | F45: 0 | G45: 0 | H45: 0
B46: 0 | C46: 0 | E46: 0 | F46: 0 | G46: 0 | H46: 0
B47: 0 | C47: 0 | E47: 0 | F47: 0 | G47: 0 | H47: 0
B48: 0 | C48: 0 | E48: 0 | F48: 0 | G48: 0 | H48: 0
B49: 0 | C49: 0 | E49: 0 | F49: 0 | G49: 0 | H49: 0
B50: 0 | C50: 0 | E50: 0 | F50: 0 | G50: 0 | H50: 0
B51: 0 | C51: 0 | E51: 0 | F51: 0 | G51: 0 | H51: 0
B52: 0 | C52: 0 | E52: 0 | F52: 0 | G52: 0 | H52: 0
B53: 0 | C53: 0 | E53: 0 | F53: 0 | G53: 0 | H53: 0
B54: 0 | C54: 0 | E54: 0 | F54: 0 | G54: 0 | H54: 0
B55: 0 | C55: 0 | E55: 0 | F55: 0 | G55: 0 | H55: 0
B56: 0 | C56: 0 | E56: 0 | F56: 0 | G56: 0 | H56: 0
B57: 0 | C57: 0 | E57: 0 | F57: 0 | G57: 0 | H57: 0
B58: 0 | C58: 0 | E58: 0 | F58: 0 | G58: 0 | H58: 0
B59: 0 | C59: 0 | E59: 0 | F59: 0 | G59: 0 | H59: 0
B60: 0 | C60: 0 | E60: 0 | F60: 0 | G60: 0 | H60: 0
B61: 0 | C61: 0 | E61: 0 | F61: 0 | G61: 0 | H61: 0
B62: 0 | C62: 0 | E62: 0 | F62: 0 | G62: 0 | H62: 0
B63: 0 | C63: 0 | E63: 0 | F63: 0 | G63: 0 | H63: 0
B64: 0 | C64: 0 | E64: 0 | F64: 0 | G64: 0 | H64: 0
B65: 0 | C65: 0 | E65: 0 | F65: 0 | G65: 0 | H65: 0
B66: 0 | C66: 0 | E66: 0 | F66: 0 | G66: 0 | H66: 0
B67: 0 | C67: 0 | E67: 0 | F67: 0 | G67: 0 | H67: 0
B68: 0 | C68: 0 | E68: 0 | F68: 0 | G68: 0 | H68: 0
B69: 0 | C69: 0 | E69: 0 | F69: 0 | G69: 0 | H69: 0
B70: 0 | C70: 0 | E70: 0 | F70: 0 | G70: 0 | H70: 0
B71: 0 | C71: 0 | E71: 0 | F71: 0 | G71: 0 | H71: 0
B72: 0 | C72: 0 | E72: 0 | F72: 0 | G72: 0 | H72: 0
B73: 0 | C73: 0 | E73: 0 | F73: 0 | G73: 0 | H73: 0
B74: 0 | C74: 0 | E74: 0 | F74: 0 | G74: 0 | H74: 0
B75: 0 | C75: 0 | E75: 0 | F75: 0 | G75: 0 | H75: 0
B76: 0 | C76: 0 | E76: 0 | F76: 0 | G76: 0 | H76: 0
B77: 0 | C77: 0 | E77: 0 | F77: 0 | G77: 0 | H77: 0
B78: 0 | C78: 0 | E78: 0 | F78: 0 | G78: 0 | H78: 0
B79: 0 | C79: 0 | E79: 0 | F79: 0 | G79: 0 | H79: 0
B80: 0 | C80: 0 | E80: 0 | F80: 0 | G80: 0 | H80: 0
B81: 0 | C81: 0 | E81: 0 | F81: 0 | G81: 0 | H81: 0
B82: 0 | C82: 0 | E82: 0 | F82: 0 | G82: 0 | H82: 0
B83: 0 | C83: 0 | E83: 0 | F83: 0 | G83: 0 | H83: 0
B84: 0 | C84: 0 | E84: 0 | F84: 0 | G84: 0 | H84: 0
B85: 0 | C85: 0 | E85: 0 | F85: 0 | G85: 0 | H85: 0
B86: 0 | C86: 0 | E86: 0 | F86: 0 | G86: 0 | H86: 0
B87: 0 | C87: 0 | E87: 0 | F87: 0 | G87: 0 | H87: 0
B88: 0 | C88: 0 | E88: 0 | F88: 0 | G88: 0 | H88: 0
B89: 0 | C89: 0 | E89: 0 | F89: 0 | G89: 0 | H89: 0
B90: 0 | C90: 0 | E90: 0 | F90: 0 | G90: 0 | H90: 0
B91: 0 | C91: 0 | E91: 0 | F91: 0 | G91: 0 | H91: 0
B92: 0 | C92: 0 | E92: 0 | F92: 0 | G92: 0 | H92: 0
B93: 0 | C93: 0 | E93: 0 | F93: 0 | G93: 0 | H93: 0
B94: 0 | C94: 0 | E94: 0 | F94: 0 | G94: 0 | H94: 0
B95: 0 | C95: 0 | E95: 0 | F95: 0 | G95: 0 | H95: 0
B96: 0 | C96: 0 | E96: 0 | F96: 0 | G96: 0 | H96: 0
B97: 0 | C97: 0 | E97: 0 | F97: 0 | G97: 0 | H97: 0
B98: 0 | C98: 0 | E98: 0 | F98: 0 | G98: 0 | H98: 0
B99: 0 | C99: 0 | E99: 0 | F99: 0 | G99: 0 | H99: 0
B100: 0 | C100: 0 | E100: 0 | F100: 0 | G100: 0 | H100: 0
B101: 0 | C101: 0 | E101: 0 | F101: 0 | G101: 0 | H101: 0
B102: 0 | C102: 0 | E102: 0 | F102: 0 | G102: 0 | H102: 0
B103: 0 | C103: 0 | E103: 0 | F103: 0 | G103: 0 | H103: 0
B104: 0 | C104: 0 | E104: 0 | F104: 0 | G104: 0 | H104: 0
B105: 0 | C105: 0 | E105: 0 | F105: 0 | G105: 0 | H105: 0
B106: 0 | C106: 0 | E106: 0 | F106: 0 | G106: 0 | H106: 0
B107: 0 | C107: 0 | E107: 0 | F107: 0 | G107: 0 | H107: 0
B108: 0 | C108: 0 | E108: 0 | F108: 0 | G108: 0 | H108: 0
B109: 0 | C109: 0 | E109: 0 | F109: 0 | G109: 0 | H109: 0
B110: 0 | C110: 0 | E110: 0 | F110: 0 | G110: 0 | H110: 0
B111: 0 | C111: 0 | E111: 0 | F111: 0 | G111: 0 | H111: 0
B112: 0 | C112: 0 | E112: 0 | F112: 0 | G112: 0 | H112: 0
B113: 0 | C113: 0 | E113: 0 | F113: 0 | G113: 0 | H113: 0
B114: 0 | C114: 0 | E114: 0 | F114: 0 | G114: 0 | H114: 0
B115: 0 | C115: 0 | E115: 0 | F115: 0 | G115: 0 | H115: 0
B116: 0 | C116: 0 | E116: 0 | F116: 0 | G116: 0 | H116: 0
B117: 0 | C117: 0 | E117: 0 | F117: 0 | G117: 0 | H117: 0
B118: 0 | C118: 0 | E118: 0 | F118: 0 | G118: 0 | H118: 0
B119: 0 | C119: 0 | E119: 0 | F119: 0 | G119: 0 | H119: 0
B120: 0 | C120: 0 | E120: 0 | F120: 0 | G120: 0 | H120: 0
B121: 0 | C121: 0 | E121: 0 | F121: 0 | G121: 0 | H121: 0
B122: 0 | C122: 0 | E122: 0 | F122: 0 | G122: 0 | H122: 0
B123: 0 | C123: 0 | E123: 0 | F123: 0 | G123: 0 | H123: 0
B124: 0 | C124: 0 | E124: 0 | F124: 0 | G124: 0 | H124: 0
B125: 0 | C125: 0 | E125: 0 | F125: 0 | G125: 0 | H125: 0
B126: 0 | C126: 0 | E126: 0 | F126: 0 | G126: 0 | H126: 0
B127: 0 | C127: 0 | E127: 0 | F127: 0 | G127: 0 | H127: 0
B128: 0 | C128: 0 | E128: 0 | F128: 0 | G128: 0 | H128: 0
B129: 0 | C129: 0 | E129: 0 | F129: 0 | G129: 0 | H129: 0
B130: 0 | C130: 0 | E130: 0 | F130: 0 | G130: 0 | H130: 0
B131: 0 | C131: 0 | E131: 0 | F131: 0 | G131: 0 | H131: 0
B132: 0 | C132: 0 | E132: 0 | F132: 0 | G132: 0 | H132: 0
B133: 0 | C133: 0 | E133: 0 | F133: 0 | G133: 0 | H133: 0
B134: 0 | C134: 0 | E134: 0 | F134: 0 | G134: 0 | H134: 0
B135: 0 | C135: 0 | E135: 0 | F135: 0 | G135: 0 | H135: 0
B136: 0 | C136: 0 | E136: 0 | F136: 0 | G136: 0 | H136: 0
B137: 0 | C137: 0 | E137: 0 | F137: 0 | G137: 0 | H137: 0
B138: 0 | C138: 0 | E138: 0 | F138: 0 | G138: 0 | H138: 0
B139: 0 | C139: 0 | E139: 0 | F139: 0 | G139: 0 | H139: 0
B140: 0 | C140: 0 | E140: 0 | F140: 0 | G140: 0 | H140: 0
B141: 0 | C141: 0 | E141: 0 | F141: 0 | G141: 0 | H141: 0
B142: 0 | C142: 0 | E142: 0 | F142: 0 | G142: 0 | H142: 0
B143: 0 | C143: 0 | E143: 0 | F143: 0 | G143: 0 | H143: 0
B144: 0 | C144: 0 | E144: 0 | F144: 0 | G144: 0 | H144: 0
B145: 0 | C145: 0 | E145: 0 | F145: 0 | G145: 0 | H145: 0
B146: 0 | C146: 0 | E146: 0 | F146: 0 | G146: 0 | H146: 0
B147: 0 | C147: 0 | E147: 0 | F147: 0 | G147: 0 | H147: 0
B148: 0 | C148: 0 | E148: 0 | F148: 0 | G148: 0 | H148: 0
B149: 0 | C149: 0 | E149: 0 | F149: 0 | G149: 0 | H149: 0
B150: 0 | C150: 0 | E150: 0 | F150: 0 | G150: 0 | H150: 0
B151: 0 | C151: 0 | E151: 0 | F151: 0 | G151: 0 | H151: 0
B152: 0 | C152: 0 | E152: 0 | F152: 0 | G152: 0 | H152: 0
B153: 0 | C153: 0 | E153: 0 | F153: 0 | G153: 0 | H153: 0
B154: 0 | C154: 0 | E154: 0 | F154: 0 | G154: 0 | H154: 0
B155: 0 | C155: 0 | E155: 0 | F155: 0 | G155: 0 | H155: 0
B156: 0 | C156: 0 | E156: 0 | F156: 0 | G156: 0 | H156: 0
B157: 0 | C157: 0 | E157: 0 | F157: 0 | G157: 0 | H157: 0
B158: 0 | C158: 0 | E158: 0 | F158: 0 | G158: 0 | H158: 0
B159: 0 | C159: 0 | E159: 0 | F159: 0 | G159: 0 | H159: 0
B160: 0 | C160: 0 | E160: 0 | F160: 0 | G160: 0 | H160: 0
B161: 0 | C161: 0 | E161: 0 | F161: 0 | G161: 0 | H161: 0
B162: 0 | C162: 0 | E162: 0 | F162: 0 | G162: 0 | H162: 0
B163: 0 | C163: 0 | E163: 0 | F163: 0 | G163: 0 | H163: 0
B164: 0 | C164: 0 | E164: 0 | F164: 0 | G164: 0 | H164: 0
B165: 0 | C165: 0 | E165: 0 | F165: 0 | G165: 0 | H165: 0
B166: 0 | C166: 0 | E166: 0 | F166: 0 | G166: 0 | H166: 0
B167: 0 | C167: 0 | E167: 0 | F167: 0 | G167: 0 | H167: 0
B168: 0 | C168: 0 | E168: 0 | F168: 0 | G168: 0 | H168: 0
B169: 0 | C169: 0 | E169: 0 | F169: 0 | G169: 0 | H169: 0
B170: 0 | C170: 0 | E170: 0 | F170: 0 | G170: 0 | H170: 0
B171: 0 | C171: 0 | E171: 0 | F171: 0 | G171: 0 | H171: 0
B172: 0 | C172: 0 | E172: 0 | F172: 0 | G172: 0 | H172: 0
B173: 0 | C173: 0 | E173: 0 | F173: 0 | G173: 0 | H173: 0
B174: 0 | C174: 0 | E174: 0 | F174: 0 | G174: 0 | H174: 0
B175: 0 | C175: 0 | E175: 0 | F175: 0 | G175: 0 | H175: 0
B176: 0 | C176: 0 | E176: 0 | F176: 0 | G176: 0 | H176: 0
B177: 0 | C177: 0 | E177: 0 | F177: 0 | G177: 0 | H177: 0
B178: 0 | C178: 0 | E178: 0 | F178: 0 | G178: 0 | H178: 0
B179: 0 | C179: 0 | E179: 0 | F179: 0 | G179: 0 | H179: 0
B180: 0 | C180: 0 | E180: 0 | F180: 0 | G180: 0 | H180: 0
B181: 0 | C181: 0 | E181: 0 | F181: 0 | G181: 0 | H181: 0
B182: 0 | C182: 0 | E182: 0 | F182: 0 | G182: 0 | H182: 0
B183: 0 | C183: 0 | E183: 0 | F183: 0 | G183: 0 | H183: 0
B184: 0 | C184: 0 | E184: 0 | F184: 0 | G184: 0 | H184: 0
B185: 0 | C185: 0 | E185: 0 | F185: 0 | G185: 0 | H185: 0
B186: 0 | C186: 0 | E186: 0 | F186: 0 | G186: 0 | H186: 0
B187: 0 | C187: 0 | E187: 0 | F187: 0 | G187: 0 | H187: 0
B188: 0 | C188: 0 | E188: 0 | F188: 0 | G188: 0 | H188: 0
B189: 0 | C189: 0 | E189: 0 | F189: 0 | G189: 0 | H189: 0
B190: 0 | C190: 0 | E190: 0 | F190: 0 | G190: 0 | H190: 0
B191: 0 | C191: 0 | E191: 0 | F191: 0 | G191: 0 | H191: 0
B192: 0 | C192: 0 | E192: 0 | F192: 0 | G192: 0 | H192: 0
B193: 0 | C193: 0 | E193: 0 | F193: 0 | G193: 0 | H193: 0
B194: 0 | C194: 0 | E194: 0 | F194: 0 | G194: 0 | H194: 0
B195: 0 | C195: 0 | E195: 0 | F195: 0 | G195: 0 | H195: 0
B196: 0 | C196: 0 | E196: 0 | F196: 0 | G196: 0 | H196: 0
B197: 0 | C197: 0 | E197: 0 | F197: 0 | G197: 0 | H197: 0
B198: 0 | C198: 0 | E198: 0 | F198: 0 | G198: 0 | H198: 0
B199: 0 | C199: 0 | E199: 0 | F199: 0 | G199: 0 | H199: 0
B200: 0 | C200: 0 | E200: 0 | F200: 0 | G200: 0 | H200: 0
B201: 0 | C201: 0 | E201: 0 | F201: 0 | G201: 0 | H201: 0
B202: 0 | C202: 0 | E202: 0 | F202: 0 | G202: 0 | H202: 0
B203: 0 | C203: 0 | E203: 0 | F203: 0 | G203: 0 | H203: 0
B204: 0 | C204: 0 | E204: 0 | F204: 0 | G204: 0 | H204: 0
B205: 0 | C205: 0 | E205: 0 | F205: 0 | G205: 0 | H205: 0
B206: 0 | C206: 0 | E206: 0 | F206: 0 | G206: 0 | H206: 0
... 48 more rows

Sheet Références (hidden)
D2: Référence Substances | K2: Référence Durée d'exposition
B4: CAS No | C4: EC No | D4: Index No | E4: International Chemical Identification | F4: Mention(s) de danger CMR1A/1B | H4: Salarié Unique | I4: Colonne1 | K4: DUREE | L4: Libellé | N4: Agence unique | O4: Colonne1
B5: 7440-41-7 | C5: 231-150-7 | D5: 004-001-00-7 | E5: beryllium | F5: H350i | H5: =IFERROR(VLOOKUP(ROW(H1),'Liste nominative CMR'!A:B,2,FALSE),"") -> 0 | I5: =IF(H5<>"",ROW(H5),"") -> 5 | K5: Très souvent ou régulièrement / permanente | L5: >70% ou >6 heures par jour ou >3 jours par semaine ou >15 jours par mois ou >5 mois par an | N5: =IFERROR(VLOOKUP(ROW(N1),'Liste nominative CMR'!E:F,2,FALSE),"") -> 0 | O5: =IF(N5<>"",ROW(N5),"") -> 5
B6: - | C6: - | D6: 004-002-00-2 | E6: beryllium compounds with the exception of aluminium beryllium silicates, and with those specified elsewhere in this Annex | F6: H350i | H6: =IFERROR(VLOOKUP(ROW(H2),'Liste nominative CMR'!A:B,2,FALSE),"") -> 0 | I6: =IF(H6<>"",ROW(H6),"") -> 6 | K6: Souvent / fréquente | L6: >30% ou >2heures par jour ou >1 jours par semaine ou >6 jours par mois ou >2 mois par an | N6: =IFERROR(VLOOKUP(ROW(N2),'Liste nominative CMR'!E:F,2,FALSE),"") -> 0 | O6: 6
B7: 1304-56-9 | C7: 215-133-1 | D7: 004-003-00-8 | E7: beryllium oxide | F7: H350i | H7: =IFERROR(VLOOKUP(ROW(H3),'Liste nominative CMR'!A:B,2,FALSE),"") -> 0 | I7: 7 | K7: Peu souvent / intermittente | L7: >5% ou >30 minutes par jour ou >2 heures par semaine ou >1 jour par mois ou >15 jours par an | N7: =IFERROR(VLOOKUP(ROW(N3),'Liste nominative CMR'!E:F,2,FALSE),"") -> 0 | O7: 7
B8: 75113-37-0 | C8: 401-040-5 | D8: 005-006-00-7 | E8: dibutyltin hydrogen borate | F8: H360FD | H8: =IFERROR(VLOOKUP(ROW(H4),'Liste nominative CMR'!A:B,2,FALSE),"") -> 0 | I8: 8 | K8: Rare / occasionelle | L8: <5% ou <30 minutes par jour ou <2heures par semaine ou <1 jour par mois ou <15 jours par an | N8: =IFERROR(VLOOKUP(ROW(N4),'Liste nominative CMR'!E:F,2,FALSE),"") -> 0 | O8: 8
B9: 10043-35-3 | C9: 233-139-2 | D9: 005-007-00-2 | E9: boric acid | F9: H360FD | H9: =IFERROR(VLOOKUP(ROW(H5),'Liste nominative CMR'!A:B,2,FALSE),"") -> 0 | I9: 9 | N9: =IFERROR(VLOOKUP(ROW(N5),'Liste nominative CMR'!E:F,2,FALSE),"") -> 0 | O9: 9
B10: 11113-50-1 | C10: 234-343-4 | D10: 005-007-00-2 | E10: boric acid | F10: H360FD | H10: =IFERROR(VLOOKUP(ROW(H6),'Liste nominative CMR'!A:B,2,FALSE),"") -> 0 | I10: 10 | N10: =IFERROR(VLOOKUP(ROW(N6),'Liste nominative CMR'!E:F,2,FALSE),"") -> 0 | O10: 10
B11: 1303-86-2 | C11: 215-125-8 | D11: 005-008-00-8 | E11: diboron trioxide | F11: H360FD | H11: =IFERROR(VLOOKUP(ROW(H7),'Liste nominative CMR'!A:B,2,FALSE),"") -> 0 | I11: 11 | N11: =IFERROR(VLOOKUP(ROW(N7),'Liste nominative CMR'!E:F,2,FALSE),"") -> 0 | O11: 11
B12: 12267-73-1 | C12: 235-541-3 | D12: 005-011-00-4 | E12: tetraboron disodium heptaoxide, hydrate | F12: H360FD | H12: =IFERROR(VLOOKUP(ROW(H8),'Liste nominative CMR'!A:B,2,FALSE),"") -> 0 | I12: 12 | K12: Liste des procédés | N12: =IFERROR(VLOOKUP(ROW(N8),'Liste nominative CMR'!E:F,2,FALSE),"") -> 0 | O12: 12
B13: 1330-43-4 | C13: 215-540-4 | D13: 005-011-00-4 | E13: disodium tetraborate, anhydrous | F13: H360FD | H13: =IFERROR(VLOOKUP(ROW(H9),'Liste nominative CMR'!A:B,2,FALSE),"") -> 0 | I13: 13 | N13: =IFERROR(VLOOKUP(ROW(N9),'Liste nominative CMR'!E:F,2,FALSE),"") -> 0 | O13: 13
B14: 13840-56-7 | C14: 237-560-2 | D14: 005-011-00-4 | E14: orthoboric acid, sodium salt | F14: H360FD | H14: =IFERROR(VLOOKUP(ROW(H10),'Liste nominative CMR'!A:B,2,FALSE),"") -> 0 | I14: 14 | K14: fabrication d'auramine | N14: =IFERROR(VLOOKUP(ROW(N10),'Liste nominative CMR'!E:F,2,FALSE),"") -> 0 | O14: 14
B15: 1303-96-4 | C15: 215-540-4 | D15: 005-011-00-4 | E15: disodium tetraborate decahydrate | F15: H360FD | H15: =IFERROR(VLOOKUP(ROW(H11),'Liste nominative CMR'!A:B,2,FALSE),"") -> 0 | I15: 15 | K15: travaux exposant aux hydrocarbures polycycliques aromatiques présents dans la suie, le goudron, la poix, la fumée ou les poussières de la houille | N15: =IFERROR(VLOOKUP(ROW(N11),'Liste nominative CMR'!E:F,2,FALSE),"") -> 0 | O15: 15
B16: 12179-04-3 | C16: 215-540-4 | D16: 005-011-00-4 | E16: disodium tetraborate pentahydrate | F16: H360FD | H16: =IFERROR(VLOOKUP(ROW(H12),'Liste nominative CMR'!A:B,2,FALSE),"") -> 0 | I16: 16 | K16: travaux exposant aux poussières, fumées ou brouillards produits lors du grillage et de l'électroraffinage des mattes de nickel | N16: =IFERROR(VLOOKUP(ROW(N12),'Liste nominative CMR'!E:F,2,FALSE),"") -> 0 | O16: 16
B17: 15120-21-5 | C17: 239-172-9 | D17: 005-017-00-7 | E17: sodium perborate; [containing = 0,1 % (w/w) of particles with an aerodynamic diameter of below 50 µm] | F17: H360Df | H17: =IFERROR(VLOOKUP(ROW(H13),'Liste nominative CMR'!A:B,2,FALSE),"") -> 0 | I17: 17 | K17: procédé à l'acide fort dans la fabrication d'alcool isopropylique | N17: =IFERROR(VLOOKUP(ROW(N13),'Liste nominative CMR'!E:F,2,FALSE),"") -> 0 | O17: 17
B18: 7632-04-4 | C18: 231-556-4 | D18: 005-017-00-7 | E18: sodium peroxometaborate; sodium peroxoborate; [containing = 0,1 % (w/w) of particles with an aerodynamic diameter of below 50 µm] | F18: H360Df | H18: =IFERROR(VLOOKUP(ROW(H14),'Liste nominative CMR'!A:B,2,FALSE),"") -> 0 | I18: 18 | K18: travaux exposant aux poussières de bois inhalables | N18: =IFERROR(VLOOKUP(ROW(N14),'Liste nominative CMR'!E:F,2,FALSE),"") -> 0 | O18: 18
B19: 15120-21-5 | C19: 239-172-9 | D19: 005-017-01-4 | E19: sodium perborate; [containing = 0,1 % (w/w) of particles with an aerodynamic diameter of below 50 µm] | F19: H360Df | H19: =IFERROR(VLOOKUP(ROW(H15),'Liste nominative CMR'!A:B,2,FALSE),"") -> 0 | I19: 19 | K19: travaux exposant au formaldéhyde | N19: =IFERROR(VLOOKUP(ROW(N15),'Liste nominative CMR'!E:F,2,FALSE),"") -> 0 | O19: 19
B20: 7632-04-4 | C20: 231-556-4 | D20: 005-017-01-4 | E20: sodium peroxometaborate; sodium peroxoborate; [containing < 0,1 % (w/w) of particles with an aerodynamic diameter of below 50 µm] | F20: H360Df | H20: =IFERROR(VLOOKUP(ROW(H16),'Liste nominative CMR'!A:B,2,FALSE),"") -> 0 | I20: 20 | K20: travaux exposant à la poussière de silice cristalline alvéolaire issue de procédés de travail | N20: =IFERROR(VLOOKUP(ROW(N16),'Liste nominative CMR'!E:F,2,FALSE),"") -> 0 | O20: 20
B21: 13517-20-9 | C21: 239-172-9 | D21: 005-018-00-2 | E21: perboric acid (H3BO2(O2)), monosodium salt trihydrate; [containing < 0,1 % (w/w) of particles with an aerodynamic diameter of below 50 µm] | F21: H360Df | H21: =IFERROR(VLOOKUP(ROW(H17),'Liste nominative CMR'!A:B,2,FALSE),"") -> 0 | I21: 21 | K21: travaux entraînant une exposition cutanée à des huiles minérales qui ont été auparavant utilisées dans des moteurs à combustion interne pour lubrifier et refroidir les pièces mobiles du moteur | N21: =IFERROR(VLOOKUP(ROW(N17),'Liste nominative CMR'!E:F,2,FALSE),"") -> 0 | O21: 21
B22: 37244-98-7 | C22: 234-390-0 | D22: 005-018-00-2 | E22: perboric acid, sodium salt, tetrahydrate; [containing < 0,1 % (w/w) of particles with an aerodynamic diameter of below 50 µm] | F22: H360Df | H22: =IFERROR(VLOOKUP(ROW(H18),'Liste nominative CMR'!A:B,2,FALSE),"") -> 0 | I22: 22 | K22: travaux exposant aux émissions d'échappement de moteurs Diesel | N22: =IFERROR(VLOOKUP(ROW(N18),'Liste nominative CMR'!E:F,2,FALSE),"") -> 0 | O22: 22
B23: 10486-00-7 | C23: 231-556-4 | D23: 005-018-00-2 | E23: perboric acid (HBO(O2)), sodium salt, tetrahydrate sodium peroxoborate hexahydrate; [containing < 0,1 % (w/w) of particles with an aerodynamic diameter of below 50 µm] | F23: H360Df | H23: =IFERROR(VLOOKUP(ROW(H19),'Liste nominative CMR'!A:B,2,FALSE),"") -> 0 | I23: 23 | N23: =IFERROR(VLOOKUP(ROW(N19),'Liste nominative CMR'!E:F,2,FALSE),"") -> 0 | O23: 23
B24: 13517-20-9 | C24: 239-172-9 | D24: 005-018-01-X | E24: perboric acid (H3BO2(O2)), monosodium salt, trihydrate | F24: H360Df | H24: =IFERROR(VLOOKUP(ROW(H20),'Liste nominative CMR'!A:B,2,FALSE),"") -> 0 | I24: 24 | N24: =IFERROR(VLOOKUP(ROW(N20),'Liste nominative CMR'!E:F,2,FALSE),"") -> 0 | O24: 24
B25: 37244-98-7 | C25: 234-390-0 | D25: 005-018-01-X | E25: perboric acid, sodium salt, tetrahydrate | F25: H360Df | H25: =IFERROR(VLOOKUP(ROW(H21),'Liste nominative CMR'!A:B,2,FALSE),"") -> 0 | I25: 25 | N25: =IFERROR(VLOOKUP(ROW(N21),'Liste nominative CMR'!E:F,2,FALSE),"") -> 0 | O25: 25
B26: 10486-00-7 | C26: 231-556-4 | D26: 005-018-01-X | E26: perboric acid (HBO(O2)), sodium salt, tetrahydrate | F26: H360Df | H26: =IFERROR(VLOOKUP(ROW(H22),'Liste nominative CMR'!A:B,2,FALSE),"") -> 0 | I26: 26 | N26: =IFERROR(VLOOKUP(ROW(N22),'Liste nominative CMR'!E:F,2,FALSE),"") -> 0 | O26: 26
B27: 11138-47-9 | C27: 234-390-0 | D27: 005-019-00-8 | E27: perboric acid, sodium salt; [containing < 0,1 % (w/w) of particles with an aerodynamic diameter of below 50 µm] | F27: H360Df | H27: =IFERROR(VLOOKUP(ROW(H23),'Liste nominative CMR'!A:B,2,FALSE),"") -> 0 | I27: 27 | N27: =IFERROR(VLOOKUP(ROW(N23),'Liste nominative CMR'!E:F,2,FALSE),"") -> 0 | O27: 27
B28: 12040-72-1 | C28: 234-390-0 | D28: 005-019-00-8 | E28: perboric acid, sodium salt, monohydrate; [containing < 0,1 % (w/w) of particles with an aerodynamic diameter of below 50 µm] | F28: H360Df | H28: =IFERROR(VLOOKUP(ROW(H24),'Liste nominative CMR'!A:B,2,FALSE),"") -> 0 | I28: 28 | K28: Salariés Unique | N28: =IFERROR(VLOOKUP(ROW(N24),'Liste nominative CMR'!E:F,2,FALSE),"") -> 0 | O28: 28
B29: 10332-33-9 | C29: 231-556-4 | D29: 005-019-00-8 | E29: perboric acid (HBO(O2)), sodium salt, monohydrate; sodium peroxoborate; [containing < 0,1 % (w/w) of particles with an aerodynamic diameter of below 50 µm] | F29: H360Df | H29: =IFERROR(VLOOKUP(ROW(H25),'Liste nominative CMR'!A:B,2,FALSE),"") -> 0 | I29: 29 | K29: =H ->  | N29: =IFERROR(VLOOKUP(ROW(N25),'Liste nominative CMR'!E:F,2,FALSE),"") -> 0 | O29: 29
B30: 11138-47-9 | C30: 234-390-0 | D30: 005-019-01-5 | E30: perboric acid, sodium salt | F30: H360Df | H30: =IFERROR(VLOOKUP(ROW(H26),'Liste nominative CMR'!A:B,2,FALSE),"") -> 0 | I30: 30 | K30: =IFERROR(VLOOKUP(ROW(K2),'Liste nominative CMR'!A:B,2,FALSE),"") -> 0 | N30: =IFERROR(VLOOKUP(ROW(N26),'Liste nominative CMR'!E:F,2,FALSE),"") -> 0 | O30: 30
B31: 12040-72-1 | C31: 234-390-0 | D31: 005-019-01-5 | E31: perboric acid, sodium salt, monohydrate; [containing = 0,1 % (w/w) of particles with an aerodynamic diameter of below 50 µm] | F31: H360Df | H31: =IFERROR(VLOOKUP(ROW(H27),'Liste nominative CMR'!A:B,2,FALSE),"") -> 0 | I31: 31 | K31: =IFERROR(VLOOKUP(ROW(K3),'Liste nominative CMR'!A:B,2,FALSE),"") -> 0 | N31: =IFERROR(VLOOKUP(ROW(N27),'Liste nominative CMR'!E:F,2,FALSE),"") -> 0 | O31: 31
B32: 10332-33-9 | C32: 231-556-4 | D32: 005-019-01-5 | E32: perboric acid (HBO(O2)), sodium salt, monohydrate; sodium peroxoborate; [containing = 0,1 % (w/w) of particles with an aerodynamic diameter of below 50 µm] | F32: H360Df | H32: =IFERROR(VLOOKUP(ROW(H28),'Liste nominative CMR'!A:B,2,FALSE),"") -> 0 | I32: 32 | N32: =IFERROR(VLOOKUP(ROW(N28),'Liste nominative CMR'!E:F,2,FALSE),"") -> 0 | O32: 32
B33: 12008-41-2 | C33: 234-541-0 | D33: 005-020-00-3 | E33: disodium octaborate anhydrous | F33: H360FD | H33: =IFERROR(VLOOKUP(ROW(H29),'Liste nominative CMR'!A:B,2,FALSE),"") -> 0 | I33: 33 | N33: =IFERROR(VLOOKUP(ROW(N29),'Liste nominative CMR'!E:F,2,FALSE),"") -> 0 | O33: 33
B34: 12280-03-4 | C34: 234-541-0 | D34: 005-020-00-3 | E34: disodium octaborate tetrahydrate | F34: H360FD | H34: =IFERROR(VLOOKUP(ROW(H30),'Liste nominative CMR'!A:B,2,FALSE),"") -> 0 | I34: 34 | N34: =IFERROR(VLOOKUP(ROW(N30),'Liste nominative CMR'!E:F,2,FALSE),"") -> 0 | O34: 34
B35: 630-08-0 | C35: 211-128-3 | D35: 006-001-00-2 | E35: carbon monoxide | F35: H360D | H35: =IFERROR(VLOOKUP(ROW(H31),'Liste nominative CMR'!A:B,2,FALSE),"") -> 0 | I35: 35 | N35: =IFERROR(VLOOKUP(ROW(N31),'Liste nominative CMR'!E:F,2,FALSE),"") -> 0 | O35: 35
B36: 330-55-2 | C36: 206-356-5 | D36: 006-021-00-1 | E36: linuron (ISO); 3-(3,4-dichlorophenyl)-1-methoxy-1-methylurea | F36: H360Df | H36: =IFERROR(VLOOKUP(ROW(H32),'Liste nominative CMR'!A:B,2,FALSE),"") -> 0 | I36: 36 | N36: =IFERROR(VLOOKUP(ROW(N32),'Liste nominative CMR'!E:F,2,FALSE),"") -> 0 | O36: 36
B37: 95-06-7 | C37: 202-388-9 | D37: 006-038-00-4 | E37: sulfallate (ISO); 2-chloroallyl N,N-dimethyldithiocarbamate | F37: H350 | H37: =IFERROR(VLOOKUP(ROW(H33),'Liste nominative CMR'!A:B,2,FALSE),"") -> 0 | I37: =IF(H37<>"",ROW(H37),"") -> 37 | N37: =IFERROR(VLOOKUP(ROW(N33),'Liste nominative CMR'!E:F,2,FALSE),"") -> 0 | O37: 37
B38: 79-44-7 | C38: 201-208-6 | D38: 006-041-00-0 | E38: dimethylcarbamoyl chloride | F38: H350 | H38: =IFERROR(VLOOKUP(ROW(H34),'Liste nominative CMR'!A:B,2,FALSE),"") -> 0 | I38: 38 | N38: =IFERROR(VLOOKUP(ROW(N34),'Liste nominative CMR'!E:F,2,FALSE),"") -> 0 | O38: 38
B39: 334-88-3 | C39: 206-382-7 | D39: 006-068-00-8 | E39: diazomethane | F39: H350 | H39: =IFERROR(VLOOKUP(ROW(H35),'Liste nominative CMR'!A:B,2,FALSE),"") -> 0 | I39: 39 | N39: =IFERROR(VLOOKUP(ROW(N35),'Liste nominative CMR'!E:F,2,FALSE),"") -> 0 | O39: 39
B40: 8018-01-7 | C40: - | D40: 006-076-00-1 | E40: mancozeb (ISO); manganese ethylenebis(dithiocarbamate) (polymeric) complex with zinc salt | F40: H360D | H40: =IFERROR(VLOOKUP(ROW(H36),'Liste nominative CMR'!A:B,2,FALSE),"") -> 0 | I40: 40 | N40: =IFERROR(VLOOKUP(ROW(N36),'Liste nominative CMR'!E:F,2,FALSE),"") -> 0 | O40: 40
B41: 103122-66-3 | C41: 434-350-4 | D41: 006-094-00-X | E41: O-isobutyl-N-ethoxy carbonylthiocarbamate | F41: H350 H340 | H41: =IFERROR(VLOOKUP(ROW(H37),'Liste nominative CMR'!A:B,2,FALSE),"") -> 0 | I41: 41 | N41: =IFERROR(VLOOKUP(ROW(N37),'Liste nominative CMR'!E:F,2,FALSE),"") -> 0 | O41: 41
B42: - | C42: 432-750-3 | D42: 006-102-00-1 | E42: O-hexyl-N-ethoxycarbonylthiocarbamate | F42: H350 H340 | H42: =IFERROR(VLOOKUP(ROW(H38),'Liste nominative CMR'!A:B,2,FALSE),"") -> 0 | I42: 42 | N42: =IFERROR(VLOOKUP(ROW(N38),'Liste nominative CMR'!E:F,2,FALSE),"") -> 0 | O42: 42
B43: 302-01-2 | C43: 206-114-9 | D43: 007-008-00-3 | E43: hydrazine | F43: H350 | H43: =IFERROR(VLOOKUP(ROW(H39),'Liste nominative CMR'!A:B,2,FALSE),"") -> 0 | I43: 43 | N43: =IFERROR(VLOOKUP(ROW(N39),'Liste nominative CMR'!E:F,2,FALSE),"") -> 0 | O43: 43
B44: 57-14-7 | C44: 200-316-0 | D44: 007-012-00-5 | E44: N,N-dimethylhydrazine | F44: H350 | H44: =IFERROR(VLOOKUP(ROW(H40),'Liste nominative CMR'!A:B,2,FALSE),"") -> 0 | I44: 44 | N44: =IFERROR(VLOOKUP(ROW(N40),'Liste nominative CMR'!E:F,2,FALSE),"") -> 0 | O44: 44
B45: 540-73-8 | C45: - | D45: 007-013-00-0 | E45: 1,2-dimethylhydrazine | F45: H350 | H45: =IFERROR(VLOOKUP(ROW(H41),'Liste nominative CMR'!A:B,2,FALSE),"") -> 0 | I45: 45 | N45: =IFERROR(VLOOKUP(ROW(N41),'Liste nominative CMR'!E:F,2,FALSE),"") -> 0 | O45: 45
B46: - | C46: - | D46: 007-014-00-6 | E46: salts of hydrazine | F46: H350 | H46: =IFERROR(VLOOKUP(ROW(H42),'Liste nominative CMR'!A:B,2,FALSE),"") -> 0 | I46: 46 | N46: =IFERROR(VLOOKUP(ROW(N42),'Liste nominative CMR'!E:F,2,FALSE),"") -> 0 | O46: 46
B47: 542-56-3 | C47: 208-819-7 | D47: 007-017-00-2 | E47: isobutyl nitrite | F47: H350 | H47: =IFERROR(VLOOKUP(ROW(H43),'Liste nominative CMR'!A:B,2,FALSE),"") -> 0 | I47: 47 | N47: =IFERROR(VLOOKUP(ROW(N43),'Liste nominative CMR'!E:F,2,FALSE),"") -> 0 | O47: 47
B48: 122-66-7 | C48: 204-563-5 | D48: 007-021-00-4 | E48: hydrazobenzene; 1,2-diphenylhydrazine | F48: H350 | H48: =IFERROR(VLOOKUP(ROW(H44),'Liste nominative CMR'!A:B,2,FALSE),"") -> 0 | I48: 48 | N48: =IFERROR(VLOOKUP(ROW(N44),'Liste nominative CMR'!E:F,2,FALSE),"") -> 0 | O48: 48
B49: - | C49: 405-030-1 | D49: 007-022-00-X | E49: hydrazine bis(3-carboxy-4-hydroxybenzensulfonate) | F49: H350 | H49: =IFERROR(VLOOKUP(ROW(H45),'Liste nominative CMR'!A:B,2,FALSE),"") -> 0 | I49: 49 | N49: =IFERROR(VLOOKUP(ROW(N45),'Liste nominative CMR'!E:F,2,FALSE),"") -> 0 | O49: 49
B50: 25808-74-6 | C50: 247-278-1 | D50: 009-014-00-1 | E50: lead hexafluorosilicate | F50: H360Df | H50: =IFERROR(VLOOKUP(ROW(H46),'Liste nominative CMR'!A:B,2,FALSE),"") -> 0 | I50: 50 | N50: =IFERROR(VLOOKUP(ROW(N46),'Liste nominative CMR'!E:F,2,FALSE),"") -> 0 | O50: 50
B51: 37894-46-5 | C51: 253-704-7 | D51: 014-014-00-X | E51: etacelasil (ISO); 6-(2-chloroethyl)-6-(2-methoxyethoxy)-2,5,7,10-tetraoxa-6-silaundecane | F51: H360D | H51: =IFERROR(VLOOKUP(ROW(H47),'Liste nominative CMR'!A:B,2,FALSE),"") -> 0 | I51: 51 | N51: =IFERROR(VLOOKUP(ROW(N47),'Liste nominative CMR'!E:F,2,FALSE),"") -> 0 | O51: 51
B52: 85509-19-9 | C52: - | D52: 014-017-00-6 | E52: flusilazole (ISO); bis(4-fluorophenyl)(methyl)(1H-1,2,4-triazol-1-ylmethyl)silane | F52: H360D | H52: =IFERROR(VLOOKUP(ROW(H48),'Liste nominative CMR'!A:B,2,FALSE),"") -> 0 | I52: 52 | N52: =IFERROR(VLOOKUP(ROW(N48),'Liste nominative CMR'!E:F,2,FALSE),"") -> 0 | O52: 52
B53: - | C53: 403-250-2 | D53: 014-019-00-7 | E53: reaction mass of: 4-[[bis-(4-fluorophenyl)methylsilyl]methyl]-4H-1,2,4-triazole; 1-[[bis-(4-fluorophenyl)methylsilyl]methyl]-1H-1,2,4-triazole | F53: H360D | H53: =IFERROR(VLOOKUP(ROW(H49),'Liste nominative CMR'!A:B,2,FALSE),"") -> 0 | I53: 53 | N53: =IFERROR(VLOOKUP(ROW(N49),'Liste nominative CMR'!E:F,2,FALSE),"") -> 0 | O53: 53
B54: 105024-66-6 | C54: 405-020-7 | D54: 014-036-00-X | E54: (4-ethoxyphenyl)(3-(4-fluoro-3-phenoxyphenyl)propyl)dimethylsilane | F54: H360F | H54: =IFERROR(VLOOKUP(ROW(H50),'Liste nominative CMR'!A:B,2,FALSE),"") -> 0 | I54: 54 | N54: =IFERROR(VLOOKUP(ROW(N50),'Liste nominative CMR'!E:F,2,FALSE),"") -> 0 | O54: 54
B55: - | C55: - | D55: 014-046-00-4 | E55: e-glass microfibres of representative composition; [Calcium-aluminium-silicate fibres with random orientation with the following representative composition (% given by weight): SiO2 50,0-56,0 %, Al2O3 13,0-16,0 %, B2O3 5,8-10,0 %, Na2O < 0,6 %, K2O < 0,4 %, CaO 15,0-24,0 %, MgO < 5,5 %, Fe2O3 < 0,5 %, F2 < 1,0 %. Process: typically produced by flame attenuation and rotary process. (Additional individual elements may be present at low levels; the process list does not preclude innovation).] | F55: H350i | H55: =IFERROR(VLOOKUP(ROW(H51),'Liste nominative CMR'!A:B,2,FALSE),"") -> 0 | I55: 55 | N55: =IFERROR(VLOOKUP(ROW(N51),'Liste nominative CMR'!E:F,2,FALSE),"") -> 0 | O55: 55
B56: 409-21-2 | C56: 206-991-8 | D56: 014-048-00-5 | E56: silicon carbide fibres (with diameter < 3 μm, length > 5 μm and as­pect ratio ≥ 3:1) | F56: H350i | H56: =IFERROR(VLOOKUP(ROW(H52),'Liste nominative CMR'!A:B,2,FALSE),"") -> 0 | I56: 56 | N56: =IFERROR(VLOOKUP(ROW(N52),'Liste nominative CMR'!E:F,2,FALSE),"") -> 0 | O56: 56
B57: 1067-53-4 | C57: 213-934-0 | D57: 014-050-00-6 | E57: tris(2-methoxyethoxy) vinylsilane; 6-(2-methoxyethoxy)- 6-vinyl-2,5,7,10-tetra­oxa-6-silaundecane | F57: H360FD | H57: =IFERROR(VLOOKUP(ROW(H53),'Liste nominative CMR'!A:B,2,FALSE),"") -> 0 | I57: 57 | N57: =IFERROR(VLOOKUP(ROW(N53),'Liste nominative CMR'!E:F,2,FALSE),"") -> 0 | O57: 57
B58: 115-96-8 | C58: 204-118-5 | D58: 015-102-00-0 | E58: tris(2-chloroethyl)phosphate | F58: H360F | H58: =IFERROR(VLOOKUP(ROW(H54),'Liste nominative CMR'!A:B,2,FALSE),"") -> 0 | I58: 58 | N58: =IFERROR(VLOOKUP(ROW(N54),'Liste nominative CMR'!E:F,2,FALSE),"") -> 0 | O58: 58
B59: 680-31-9 | C59: 211-653-8 | D59: 015-106-00-2 | E59: hexamethylphosphoric triamide; hexamethylphosphoramide | F59: H350 H340 | H59: =IFERROR(VLOOKUP(ROW(H55),'Liste nominative CMR'!A:B,2,FALSE),"") -> 0 | I59: 59 | N59: =IFERROR(VLOOKUP(ROW(N55),'Liste nominative CMR'!E:F,2,FALSE),"") -> 0 | O59: 59
B60: 77182-82-2 | C60: 278-636-5 | D60: 015-155-00-X | E60: glufosinate ammonium (ISO); ammonium 2-amino-4-(hydroxymethylphosphinyl)butyrate | F60: H360Fd | H60: =IFERROR(VLOOKUP(ROW(H56),'Liste nominative CMR'!A:B,2,FALSE),"") -> 0 | I60: 60 | N60: =IFERROR(VLOOKUP(ROW(N56),'Liste nominative CMR'!E:F,2,FALSE),"") -> 0 | O60: 60
B61: - | C61: 435-960-3 | D61: 015-196-00-3 | E61: reaction mass of: dimethyl (2-(hydroxymethylcarbamoyl)ethyl)phosphonate; diethyl (2-(hydroxymethylcarbamoyl)ethyl)phosphonate; methyl ethyl (2-(hydroxymethylcarbamoyl)ethyl)phosphonate | F61: H350 H340 | H61: =IFERROR(VLOOKUP(ROW(H57),'Liste nominative CMR'!A:B,2,FALSE),"") -> 0 | I61: 61 | N61: =IFERROR(VLOOKUP(ROW(N57),'Liste nominative CMR'!E:F,2,FALSE),"") -> 0 | O61: 61
B62: 22398-80-7 | C62: 244-959-5 | D62: 015-200-00-3 | E62: indium phosphide | F62: H350 | H62: =IFERROR(VLOOKUP(ROW(H58),'Liste nominative CMR'!A:B,2,FALSE),"") -> 0 | I62: 62 | N62: =IFERROR(VLOOKUP(ROW(N58),'Liste nominative CMR'!E:F,2,FALSE),"") -> 0 | O62: 62
B63: 25155-23-1 | C63: 246-677-8 | D63: 015-201-00-9 | E63: trixylyl phosphate | F63: H360F | H63: =IFERROR(VLOOKUP(ROW(H59),'Liste nominative CMR'!A:B,2,FALSE),"") -> 0 | I63: 63 | N63: =IFERROR(VLOOKUP(ROW(N59),'Liste nominative CMR'!E:F,2,FALSE),"") -> 0 | O63: 63
B64: 77-78-1 | C64: 201-058-1 | D64: 016-023-00-4 | E64: dimethyl sulphate | F64: H350 | H64: =IFERROR(VLOOKUP(ROW(H60),'Liste nominative CMR'!A:B,2,FALSE),"") -> 0 | I64: 64 | N64: =IFERROR(VLOOKUP(ROW(N60),'Liste nominative CMR'!E:F,2,FALSE),"") -> 0 | O64: 64
B65: 64-67-5 | C65: 200-589-6 | D65: 016-027-00-6 | E65: diethyl sulphate | F65: H350 H340 | H65: =IFERROR(VLOOKUP(ROW(H61),'Liste nominative CMR'!A:B,2,FALSE),"") -> 0 | I65: 65 | N65: =IFERROR(VLOOKUP(ROW(N61),'Liste nominative CMR'!E:F,2,FALSE),"") -> 0 | O65: 65
B66: 1120-71-4 | C66: 214-317-9 | D66: 016-032-00-3 | E66: 1,3-propanesultone; 1,2-oxathiolane 2,2-dioxide | F66: H350 | H66: =IFERROR(VLOOKUP(ROW(H62),'Liste nominative CMR'!A:B,2,FALSE),"") -> 0 | I66: 66 | N66: =IFERROR(VLOOKUP(ROW(N62),'Liste nominative CMR'!E:F,2,FALSE),"") -> 0 | O66: 66
B67: 13360-57-1 | C67: 236-412-4 | D67: 016-033-00-9 | E67: dimethylsulfamoylchloride | F67: H350 | H67: =IFERROR(VLOOKUP(ROW(H63),'Liste nominative CMR'!A:B,2,FALSE),"") -> 0 | I67: 67 | N67: =IFERROR(VLOOKUP(ROW(N63),'Liste nominative CMR'!E:F,2,FALSE),"") -> 0 | O67: 67
B68: 1314-62-1 | C68: 215-239-8 | D68: 023-001-00-8 | E68: divanadium pentaoxide; vanadium pentoxide | F68: H350 | H68: =IFERROR(VLOOKUP(ROW(H64),'Liste nominative CMR'!A:B,2,FALSE),"") -> 0 | I68: 68 | N68: =IFERROR(VLOOKUP(ROW(N64),'Liste nominative CMR'!E:F,2,FALSE),"") -> 0 | O68: 68
B69: 1333-82-0 | C69: 215-607-8 | D69: 024-001-00-0 | E69: chromium (VI) trioxide | F69: H350 H340 | H69: =IFERROR(VLOOKUP(ROW(H65),'Liste nominative CMR'!A:B,2,FALSE),"") -> 0 | I69: =IF(H69<>"",ROW(H69),"") -> 69 | N69: =IFERROR(VLOOKUP(ROW(N65),'Liste nominative CMR'!E:F,2,FALSE),"") -> 0 | O69: =IF(N69<>"",ROW(N69),"") -> 69
B70: 7778-50-9 | C70: 231-906-6 | D70: 024-002-00-6 | E70: potassium dichromate | F70: H350 H340 H360FD | H70: =IFERROR(VLOOKUP(ROW(H66),'Liste nominative CMR'!A:B,2,FALSE),"") -> 0 | I70: 70 | N70: =IFERROR(VLOOKUP(ROW(N66),'Liste nominative CMR'!E:F,2,FALSE),"") -> 0 | O70: 70
B71: 7789-09-5 | C71: 232-143-1 | D71: 024-003-00-1 | E71: ammonium dichromate | F71: H350 H340 H360FD | H71: =IFERROR(VLOOKUP(ROW(H67),'Liste nominative CMR'!A:B,2,FALSE),"") -> 0 | I71: 71 | N71: =IFERROR(VLOOKUP(ROW(N67),'Liste nominative CMR'!E:F,2,FALSE),"") -> 0 | O71: 71
B72: 10588-01-9 | C72: 234-190-3 | D72: 024-004-00-7 | E72: sodium dichromate | F72: H350 H340 H360FD | H72: =IFERROR(VLOOKUP(ROW(H68),'Liste nominative CMR'!A:B,2,FALSE),"") -> 0 | I72: 72 | N72: =IFERROR(VLOOKUP(ROW(N68),'Liste nominative CMR'!E:F,2,FALSE),"") -> 0 | O72: 72
B73: 14977-61-8 | C73: 239-056-8 | D73: 024-005-00-2 | E73: chromyl dichloride; chromic oxychloride | F73: H350i H340 | H73: =IFERROR(VLOOKUP(ROW(H69),'Liste nominative CMR'!A:B,2,FALSE),"") -> 0 | I73: 73 | N73: =IFERROR(VLOOKUP(ROW(N69),'Liste nominative CMR'!E:F,2,FALSE),"") -> 0 | O73: 73
B74: 7789-00-6 | C74: 232-140-5 | D74: 024-006-00-8 | E74: potassium chromate | F74: H350i H340 | H74: =IFERROR(VLOOKUP(ROW(H70),'Liste nominative CMR'!A:B,2,FALSE),"") -> 0 | I74: 74 | N74: =IFERROR(VLOOKUP(ROW(N70),'Liste nominative CMR'!E:F,2,FALSE),"") -> 0 | O74: 74
B75: - | C75: - | D75: 024-007-00-3 | E75: zinc chromates including zinc potassium chromate | F75: H350 | H75: =IFERROR(VLOOKUP(ROW(H71),'Liste nominative CMR'!A:B,2,FALSE),"") -> 0 | I75: 75 | N75: =IFERROR(VLOOKUP(ROW(N71),'Liste nominative CMR'!E:F,2,FALSE),"") -> 0 | O75: 75
B76: 13765-19-0 | C76: 237-366-8 | D76: 024-008-00-9 | E76: calcium chromate | F76: H350 | H76: =IFERROR(VLOOKUP(ROW(H72),'Liste nominative CMR'!A:B,2,FALSE),"") -> 0 | I76: 76 | N76: =IFERROR(VLOOKUP(ROW(N72),'Liste nominative CMR'!E:F,2,FALSE),"") -> 0 | O76: 76
B77: 7789-06-2 | C77: 232-142-6 | D77: 024-009-00-4 | E77: strontium chromate | F77: H350 | H77: =IFERROR(VLOOKUP(ROW(H73),'Liste nominative CMR'!A:B,2,FALSE),"") -> 0 | I77: 77 | N77: =IFERROR(VLOOKUP(ROW(N73),'Liste nominative CMR'!E:F,2,FALSE),"") -> 0 | O77: 77
B78: 24613-89-6 | C78: 246-356-2 | D78: 024-010-00-X | E78: dichromium tris(chromate); chromium III chromate; chromic chromate | F78: H350 | H78: =IFERROR(VLOOKUP(ROW(H74),'Liste nominative CMR'!A:B,2,FALSE),"") -> 0 | I78: 78 | N78: =IFERROR(VLOOKUP(ROW(N74),'Liste nominative CMR'!E:F,2,FALSE),"") -> 0 | O78: 78
B79: - | C79: - | D79: 024-017-00-8 | E79: Chromium (VI) compounds, with the exception of barium chromate and of compounds specified elsewhere in this Annex | F79: H350i | H79: =IFERROR(VLOOKUP(ROW(H75),'Liste nominative CMR'!A:B,2,FALSE),"") -> 0 | I79: 79 | N79: =IFERROR(VLOOKUP(ROW(N75),'Liste nominative CMR'!E:F,2,FALSE),"") -> 0 | O79: 79
B80: 7775-11-3 | C80: 231-889-5 | D80: 024-018-00-3 | E80: sodium chromate | F80: H350 H340 H360FD | H80: =IFERROR(VLOOKUP(ROW(H76),'Liste nominative CMR'!A:B,2,FALSE),"") -> 0 | I80: 80 | N80: =IFERROR(VLOOKUP(ROW(N76),'Liste nominative CMR'!E:F,2,FALSE),"") -> 0 | O80: 80
B81: 7440-48-4 | C81: 231-158-0 | D81: 027-001-00-9 | E81: cobalt | F81: H350 H360F | H81: =IFERROR(VLOOKUP(ROW(H77),'Liste nominative CMR'!A:B,2,FALSE),"") -> 0 | I81: 81 | N81: =IFERROR(VLOOKUP(ROW(N77),'Liste nominative CMR'!E:F,2,FALSE),"") -> 0 | O81: 81
B82: 7646-79-9 | C82: 231-589-4 | D82: 027-004-00-5 | E82: cobalt dichloride | F82: H350i H360F | H82: =IFERROR(VLOOKUP(ROW(H78),'Liste nominative CMR'!A:B,2,FALSE),"") -> 0 | I82: 82 | N82: =IFERROR(VLOOKUP(ROW(N78),'Liste nominative CMR'!E:F,2,FALSE),"") -> 0 | O82: 82
B83: 10124-43-3 | C83: 233-334-2 | D83: 027-005-00-0 | E83: cobalt sulfate | F83: H350i H360F | H83: =IFERROR(VLOOKUP(ROW(H79),'Liste nominative CMR'!A:B,2,FALSE),"") -> 0 | I83: 83 | N83: =IFERROR(VLOOKUP(ROW(N79),'Liste nominative CMR'!E:F,2,FALSE),"") -> 0 | O83: 83
B84: 71-48-7 | C84: 200-755-8 | D84: 027-006-00-6 | E84: cobalt di(acetate) | F84: H350i H360F | H84: =IFERROR(VLOOKUP(ROW(H80),'Liste nominative CMR'!A:B,2,FALSE),"") -> 0 | I84: 84 | N84: =IFERROR(VLOOKUP(ROW(N80),'Liste nominative CMR'!E:F,2,FALSE),"") -> 0 | O84: 84
B85: 10141-05-6 | C85: 233-402-1 | D85: 027-009-00-2 | E85: cobalt dinitrate | F85: H350i H360F | H85: =IFERROR(VLOOKUP(ROW(H81),'Liste nominative CMR'!A:B,2,FALSE),"") -> 0 | I85: 85 | N85: =IFERROR(VLOOKUP(ROW(N81),'Liste nominative CMR'!E:F,2,FALSE),"") -> 0 | O85: 85
B86: 513-79-1 | C86: 208-169-4 | D86: 027-010-00-8 | E86: cobalt carbonate | F86: H350i H360F | H86: =IFERROR(VLOOKUP(ROW(H82),'Liste nominative CMR'!A:B,2,FALSE),"") -> 0 | I86: 86 | N86: =IFERROR(VLOOKUP(ROW(N82),'Liste nominative CMR'!E:F,2,FALSE),"") -> 0 | O86: 86
B87: 13463-39-3 | C87: 236-669-2 | D87: 028-001-00-1 | E87: tetracarbonylnickel; nickel tetracarbonyl | F87: H360D | H87: =IFERROR(VLOOKUP(ROW(H83),'Liste nominative CMR'!A:B,2,FALSE),"") -> 0 | I87: 87 | N87: =IFERROR(VLOOKUP(ROW(N83),'Liste nominative CMR'!E:F,2,FALSE),"") -> 0 | O87: 87
B88: 1313-99-1 | C88: 215-215-7 | D88: 028-003-00-2 | E88: nickel monoxide | F88: H350i | H88: =IFERROR(VLOOKUP(ROW(H84),'Liste nominative CMR'!A:B,2,FALSE),"") -> 0 | I88: 88 | N88: =IFERROR(VLOOKUP(ROW(N84),'Liste nominative CMR'!E:F,2,FALSE),"") -> 0 | O88: 88
B89: 11099-02-8 | C89: 234-323-5 | D89: 028-003-00-2 | E89: nickel oxide | F89: H350i | H89: =IFERROR(VLOOKUP(ROW(H85),'Liste nominative CMR'!A:B,2,FALSE),"") -> 0 | I89: 89 | N89: =IFERROR(VLOOKUP(ROW(N85),'Liste nominative CMR'!E:F,2,FALSE),"") -> 0 | O89: 89
B90: 34492-97-2 | C90: - | D90: 028-003-00-2 | E90: bunsenite | F90: H350i | H90: =IFERROR(VLOOKUP(ROW(H86),'Liste nominative CMR'!A:B,2,FALSE),"") -> 0 | I90: 90 | N90: =IFERROR(VLOOKUP(ROW(N86),'Liste nominative CMR'!E:F,2,FALSE),"") -> 0 | O90: 90
B91: 12035-36-8 | C91: 234-823-3 | D91: 028-004-00-8 | E91: nickel dioxide | F91: H350i | H91: =IFERROR(VLOOKUP(ROW(H87),'Liste nominative CMR'!A:B,2,FALSE),"") -> 0 | I91: 91 | N91: =IFERROR(VLOOKUP(ROW(N87),'Liste nominative CMR'!E:F,2,FALSE),"") -> 0 | O91: 91
B92: 1314-06-3 | C92: 215-217-8 | D92: 028-005-00-3 | E92: dinickel trioxide | F92: H350i | H92: =IFERROR(VLOOKUP(ROW(H88),'Liste nominative CMR'!A:B,2,FALSE),"") -> 0 | I92: 92 | N92: =IFERROR(VLOOKUP(ROW(N88),'Liste nominative CMR'!E:F,2,FALSE),"") -> 0 | O92: 92
B93: 16812-54-7 | C93: 240-841-2 | D93: 028-006-00-9 | E93: nickel (II) sulfide | F93: H350i | H93: =IFERROR(VLOOKUP(ROW(H89),'Liste nominative CMR'!A:B,2,FALSE),"") -> 0 | I93: 93 | N93: =IFERROR(VLOOKUP(ROW(N89),'Liste nominative CMR'!E:F,2,FALSE),"") -> 0 | O93: 93
B94: 11113-75-0 | C94: 234-349-7 | D94: 028-006-00-9 | E94: nickel sulfide | F94: H350i | H94: =IFERROR(VLOOKUP(ROW(H90),'Liste nominative CMR'!A:B,2,FALSE),"") -> 0 | I94: 94 | N94: =IFERROR(VLOOKUP(ROW(N90),'Liste nominative CMR'!E:F,2,FALSE),"") -> 0 | O94: 94
B95: 1314-04-1 | C95: - | D95: 028-006-00-9 | E95: millerite | F95: H350i | H95: =IFERROR(VLOOKUP(ROW(H91),'Liste nominative CMR'!A:B,2,FALSE),"") -> 0 | I95: 95 | N95: =IFERROR(VLOOKUP(ROW(N91),'Liste nominative CMR'!E:F,2,FALSE),"") -> 0 | O95: 95
B96: 12035-72-2 | C96: 234-829-6 | D96: 028-007-00-4 | E96: trinickel disulphide; nickel subsulfide | F96: H350i | H96: =IFERROR(VLOOKUP(ROW(H92),'Liste nominative CMR'!A:B,2,FALSE),"") -> 0 | I96: 96 | N96: =IFERROR(VLOOKUP(ROW(N92),'Liste nominative CMR'!E:F,2,FALSE),"") -> 0 | O96: 96
B97: 12035-71-1 | C97: - | D97: 028-007-00-4 | E97: heazlewoodite | F97: H350i | H97: =IFERROR(VLOOKUP(ROW(H93),'Liste nominative CMR'!A:B,2,FALSE),"") -> 0 | I97: 97 | N97: =IFERROR(VLOOKUP(ROW(N93),'Liste nominative CMR'!E:F,2,FALSE),"") -> 0 | O97: 97
B98: 12054-48-7 | C98: 235-008-5 | D98: 028-008-00-X | E98: nickel dihydroxide | F98: H350i H360D | H98: =IFERROR(VLOOKUP(ROW(H94),'Liste nominative CMR'!A:B,2,FALSE),"") -> 0 | I98: 98 | N98: =IFERROR(VLOOKUP(ROW(N94),'Liste nominative CMR'!E:F,2,FALSE),"") -> 0 | O98: 98
B99: 11113-74-9 | C99: 234-348-1 | D99: 028-008-00-X | E99: nickel hydroxide | F99: H350i H360D | H99: =IFERROR(VLOOKUP(ROW(H95),'Liste nominative CMR'!A:B,2,FALSE),"") -> 0 | I99: 99 | N99: =IFERROR(VLOOKUP(ROW(N95),'Liste nominative CMR'!E:F,2,FALSE),"") -> 0 | O99: 99
B100: 7786-81-4 | C100: 232-104-9 | D100: 028-009-00-5 | E100: nickel sulfate | F100: H350i H360D | H100: =IFERROR(VLOOKUP(ROW(H96),'Liste nominative CMR'!A:B,2,FALSE),"") -> 0 | I100: 100 | N100: =IFERROR(VLOOKUP(ROW(N96),'Liste nominative CMR'!E:F,2,FALSE),"") -> 0 | O100: 100
B101: 3333-67-3 | C101: 222-068-2 | D101: 028-010-00-0 | E101: nickel carbonate; basic nickel carbonate; carbonic acid, nickel (2+) salt | F101: H350i H360D | H101: =IFERROR(VLOOKUP(ROW(H97),'Liste nominative CMR'!A:B,2,FALSE),"") -> 0 | I101: =IF(H101<>"",ROW(H101),"") -> 101 | N101: =IFERROR(VLOOKUP(ROW(N97),'Liste nominative CMR'!E:F,2,FALSE),"") -> 0 | O101: 101
B102: 16337-84-1 | C102: 240-408-8 | D102: 028-010-00-0 | E102: carbonic acid, nickel salt | F102: H350i H360D | H102: =IFERROR(VLOOKUP(ROW(H98),'Liste nominative CMR'!A:B,2,FALSE),"") -> 0 | I102: 102 | N102: =IFERROR(VLOOKUP(ROW(N98),'Liste nominative CMR'!E:F,2,FALSE),"") -> 0 | O102: 102
B103: 65405-96-1 | C103: 265-748-4 | D103: 028-010-00-0 | E103: [µ-[carbonato(2-)-O:O’]] dihydroxy trinickel | F103: H350i H360D | H103: =IFERROR(VLOOKUP(ROW(H99),'Liste nominative CMR'!A:B,2,FALSE),"") -> 0 | I103: 103 | N103: =IFERROR(VLOOKUP(ROW(N99),'Liste nominative CMR'!E:F,2,FALSE),"") -> 0 | O103: 103
B104: 12607-70-4 | C104: 235-715-9 | D104: 028-010-00-0 | E104: [carbonato(2-)] tetrahydroxytrinickel | F104: H350i H360D | H104: =IFERROR(VLOOKUP(ROW(H100),'Liste nominative CMR'!A:B,2,FALSE),"") -> 0 | I104: 104 | N104: =IFERROR(VLOOKUP(ROW(N100),'Liste nominative CMR'!E:F,2,FALSE),"") -> 0 | O104: 104
B105: 7718-54-9 | C105: 231-743-0 | D105: 028-011-00-6 | E105: nickel dichloride | F105: H350i H360D | H105: =IFERROR(VLOOKUP(ROW(H101),'Liste nominative CMR'!A:B,2,FALSE),"") -> 0 | I105: 105 | N105: =IFERROR(VLOOKUP(ROW(N101),'Liste nominative CMR'!E:F,2,FALSE),"") -> 0 | O105: 105
B106: 13138-45-9 | C106: 236-068-5 | D106: 028-012-00-1 | E106: nickel dinitrate | F106: H350i H360D | H106: =IFERROR(VLOOKUP(ROW(H102),'Liste nominative CMR'!A:B,2,FALSE),"") -> 0 | I106: 106 | N106: =IFERROR(VLOOKUP(ROW(N102),'Liste nominative CMR'!E:F,2,FALSE),"") -> 0 | O106: 106
B107: 14216-75-2 | C107: 238-076-4 | D107: 028-012-00-1 | E107: nitric acid, nickel salt | F107: H350i H360D | H107: =IFERROR(VLOOKUP(ROW(H103),'Liste nominative CMR'!A:B,2,FALSE),"") -> 0 | I107: 107 | N107: =IFERROR(VLOOKUP(ROW(N103),'Liste nominative CMR'!E:F,2,FALSE),"") -> 0 | O107: 107
B108: 69012-50-6 | C108: 273-749-6 | D108: 028-013-00-7 | E108: nickel matte | F108: H350i | H108: =IFERROR(VLOOKUP(ROW(H104),'Liste nominative CMR'!A:B,2,FALSE),"") -> 0 | I108: 108 | N108: =IFERROR(VLOOKUP(ROW(N104),'Liste nominative CMR'!E:F,2,FALSE),"") -> 0 | O108: 108
B109: 92129-57-2 | C109: 295-859-3 | D109: 028-014-00-2 | E109: slimes and sludges, copper electrolytic refining, decopperised, nickel sulfate | F109: H350i H360D | H109: =IFERROR(VLOOKUP(ROW(H105),'Liste nominative CMR'!A:B,2,FALSE),"") -> 0 | I109: 109 | N109: =IFERROR(VLOOKUP(ROW(N105),'Liste nominative CMR'!E:F,2,FALSE),"") -> 0 | O109: 109
B110: 94551-87-8 | C110: 305-433-1 | D110: 028-015-00-8 | E110: slimes and sludges, copper electrolyte refining, decopperised | F110: H350i H360D | H110: =IFERROR(VLOOKUP(ROW(H106),'Liste nominative CMR'!A:B,2,FALSE),"") -> 0 | I110: 110 | N110: =IFERROR(VLOOKUP(ROW(N106),'Liste nominative CMR'!E:F,2,FALSE),"") -> 0 | O110: 110
B111: 13637-71-3 | C111: 237-124-1 | D111: 028-016-00-3 | E111: nickel diperchlorate; perchloric acid, nickel(II) salt | F111: H350i H360D | H111: =IFERROR(VLOOKUP(ROW(H107),'Liste nominative CMR'!A:B,2,FALSE),"") -> 0 | I111: 111 | N111: =IFERROR(VLOOKUP(ROW(N107),'Liste nominative CMR'!E:F,2,FALSE),"") -> 0 | O111: 111
B112: 13842-46-1 | C112: 237-563-9 | D112: 028-017-00-9 | E112: nickel dipotassium bis(sulfate) | F112: H350i H360D | H112: =IFERROR(VLOOKUP(ROW(H108),'Liste nominative CMR'!A:B,2,FALSE),"") -> 0 | I112: 112 | N112: =IFERROR(VLOOKUP(ROW(N108),'Liste nominative CMR'!E:F,2,FALSE),"") -> 0 | O112: 112
B113: 15699-18-0 | C113: 239-793-5 | D113: 028-017-00-9 | E113: diammonium nickel bis(sulfate) | F113: H350i H360D | H113: =IFERROR(VLOOKUP(ROW(H109),'Liste nominative CMR'!A:B,2,FALSE),"") -> 0 | I113: 113 | N113: =IFERROR(VLOOKUP(ROW(N109),'Liste nominative CMR'!E:F,2,FALSE),"") -> 0 | O113: 113
B114: 13770-89-3 | C114: 237-396-1 | D114: 028-018-00-4 | E114: nickel bis(sulfamidate); nickel sulfamate | F114: H350i H360D | H114: =IFERROR(VLOOKUP(ROW(H110),'Liste nominative CMR'!A:B,2,FALSE),"") -> 0 | I114: 114 | N114: =IFERROR(VLOOKUP(ROW(N110),'Liste nominative CMR'!E:F,2,FALSE),"") -> 0 | O114: 114
B115: 14708-14-6 | C115: 238-753-4 | D115: 028-019-00-X | E115: nickel bis(tetrafluoroborate) | F115: H350i H360D | H115: =IFERROR(VLOOKUP(ROW(H111),'Liste nominative CMR'!A:B,2,FALSE),"") -> 0 | I115: 115 | N115: =IFERROR(VLOOKUP(ROW(N111),'Liste nominative CMR'!E:F,2,FALSE),"") -> 0 | O115: 115
B116: 3349-06-2 | C116: 222-101-0 | D116: 028-021-00-0 | E116: nickel diformate | F116: H350i H360D | H116: =IFERROR(VLOOKUP(ROW(H112),'Liste nominative CMR'!A:B,2,FALSE),"") -> 0 | I116: 116 | N116: =IFERROR(VLOOKUP(ROW(N112),'Liste nominative CMR'!E:F,2,FALSE),"") -> 0 | O116: 116
B117: 15843-02-4 | C117: 239-946-6 | D117: 028-021-00-0 | E117: formic acid, nickel salt | F117: H350i H360D | H117: =IFERROR(VLOOKUP(ROW(H113),'Liste nominative CMR'!A:B,2,FALSE),"") -> 0 | I117: 117 | N117: =IFERROR(VLOOKUP(ROW(N113),'Liste nominative CMR'!E:F,2,FALSE),"") -> 0 | O117: 117
B118: 68134-59-8 | C118: 268-755-0 | D118: 028-021-00-0 | E118: formic acid, copper nickel salt | F118: H350i H360D | H118: =IFERROR(VLOOKUP(ROW(H114),'Liste nominative CMR'!A:B,2,FALSE),"") -> 0 | I118: 118 | N118: =IFERROR(VLOOKUP(ROW(N114),'Liste nominative CMR'!E:F,2,FALSE),"") -> 0 | O118: 118
B119: 373-02-4 | C119: 206-761-7 | D119: 028-022-00-6 | E119: nickel di(acetate) | F119: H350i H360D | H119: =IFERROR(VLOOKUP(ROW(H115),'Liste nominative CMR'!A:B,2,FALSE),"") -> 0 | I119: 119 | N119: =IFERROR(VLOOKUP(ROW(N115),'Liste nominative CMR'!E:F,2,FALSE),"") -> 0 | O119: 119
B120: 14998-37-9 | C120: 239-086-1 | D120: 028-022-00-6 | E120: nickel acetate | F120: H350i H360D | H120: =IFERROR(VLOOKUP(ROW(H116),'Liste nominative CMR'!A:B,2,FALSE),"") -> 0 | I120: 120 | N120: =IFERROR(VLOOKUP(ROW(N116),'Liste nominative CMR'!E:F,2,FALSE),"") -> 0 | O120: 120
B121: 553-71-9 | C121: 209-046-8 | D121: 028-024-00-7 | E121: nickel dibenzoate | F121: H350i H360D | H121: =IFERROR(VLOOKUP(ROW(H117),'Liste nominative CMR'!A:B,2,FALSE),"") -> 0 | I121: 121 | N121: =IFERROR(VLOOKUP(ROW(N117),'Liste nominative CMR'!E:F,2,FALSE),"") -> 0 | O121: 121
B122: 3906-55-6 | C122: 223-463-2 | D122: 028-025-00-2 | E122: nickel bis(4-cyclohexylbutyrate) | F122: H350i H360D | H122: =IFERROR(VLOOKUP(ROW(H118),'Liste nominative CMR'!A:B,2,FALSE),"") -> 0 | I122: 122 | N122: =IFERROR(VLOOKUP(ROW(N118),'Liste nominative CMR'!E:F,2,FALSE),"") -> 0 | O122: 122
B123: 2223-95-2 | C123: 218-744-1 | D123: 028-026-00-8 | E123: nickel(II) stearate; nickel(II) octadecanoate | F123: H350i H360D | H123: =IFERROR(VLOOKUP(ROW(H119),'Liste nominative CMR'!A:B,2,FALSE),"") -> 0 | I123: 123 | N123: =IFERROR(VLOOKUP(ROW(N119),'Liste nominative CMR'!E:F,2,FALSE),"") -> 0 | O123: 123
B124: 16039-61-5 | C124: - | D124: 028-027-00-3 | E124: nickel dilactate | F124: H350i H360D | H124: =IFERROR(VLOOKUP(ROW(H120),'Liste nominative CMR'!A:B,2,FALSE),"") -> 0 | I124: 124 | N124: =IFERROR(VLOOKUP(ROW(N120),'Liste nominative CMR'!E:F,2,FALSE),"") -> 0 | O124: 124
B125: 4995-91-9 | C125: 225-656-7 | D125: 028-028-00-9 | E125: nickel(II) octanoate | F125: H350i H360D | H125: =IFERROR(VLOOKUP(ROW(H121),'Liste nominative CMR'!A:B,2,FALSE),"") -> 0 | I125: 125 | N125: =IFERROR(VLOOKUP(ROW(N121),'Liste nominative CMR'!E:F,2,FALSE),"") -> 0 | O125: 125
B126: 10028-18-9 | C126: 233-071-3 | D126: 028-029-00-4 | E126: nickel difluoride | F126: H350i H360D | H126: =IFERROR(VLOOKUP(ROW(H122),'Liste nominative CMR'!A:B,2,FALSE),"") -> 0 | I126: 126 | N126: =IFERROR(VLOOKUP(ROW(N122),'Liste nominative CMR'!E:F,2,FALSE),"") -> 0 | O126: 126
B127: 13462-88-9 | C127: 236-665-0 | D127: 028-029-00-4 | E127: nickel dibromide | F127: H350i H360D | H127: =IFERROR(VLOOKUP(ROW(H123),'Liste nominative CMR'!A:B,2,FALSE),"") -> 0 | I127: 127 | N127: =IFERROR(VLOOKUP(ROW(N123),'Liste nominative CMR'!E:F,2,FALSE),"") -> 0 | O127: 127
B128: 13462-90-3 | C128: 236-666-6 | D128: 028-029-00-4 | E128: nickel diiodide | F128: H350i H360D | H128: =IFERROR(VLOOKUP(ROW(H124),'Liste nominative CMR'!A:B,2,FALSE),"") -> 0 | I128: 128 | N128: =IFERROR(VLOOKUP(ROW(N124),'Liste nominative CMR'!E:F,2,FALSE),"") -> 0 | O128: 128
B129: 11132-10-8 | C129: - | D129: 028-029-00-4 | E129: nickel potassium fluoride | F129: H350i H360D | H129: =IFERROR(VLOOKUP(ROW(H125),'Liste nominative CMR'!A:B,2,FALSE),"") -> 0 | I129: 129 | N129: =IFERROR(VLOOKUP(ROW(N125),'Liste nominative CMR'!E:F,2,FALSE),"") -> 0 | O129: 129
B130: 26043-11-8 | C130: 247-430-7 | D130: 028-030-00-X | E130: nickel hexafluorosilicate | F130: H350i H360D | H130: =IFERROR(VLOOKUP(ROW(H126),'Liste nominative CMR'!A:B,2,FALSE),"") -> 0 | I130: 130 | N130: =IFERROR(VLOOKUP(ROW(N126),'Liste nominative CMR'!E:F,2,FALSE),"") -> 0 | O130: 130
B131: 15060-62-5 | C131: 239-125-2 | D131: 028-031-00-5 | E131: nickel selenate | F131: H350i H360D | H131: =IFERROR(VLOOKUP(ROW(H127),'Liste nominative CMR'!A:B,2,FALSE),"") -> 0 | I131: 131 | N131: =IFERROR(VLOOKUP(ROW(N127),'Liste nominative CMR'!E:F,2,FALSE),"") -> 0 | O131: 131
B132: 14332-34-4 | C132: 238-278-2 | D132: 028-032-00-0 | E132: nickel hydrogen phosphate | F132: H350i | H132: =IFERROR(VLOOKUP(ROW(H128),'Liste nominative CMR'!A:B,2,FALSE),"") -> 0 | I132: 132 | N132: =IFERROR(VLOOKUP(ROW(N128),'Liste nominative CMR'!E:F,2,FALSE),"") -> 0 | O132: 132
B133: 18718-11-1 | C133: 242-522-3 | D133: 028-032-00-0 | E133: nickel bis(dihydrogen phosphate) | F133: H350i | H133: =IFERROR(VLOOKUP(ROW(H129),'Liste nominative CMR'!A:B,2,FALSE),"") -> 0 | I133: =IF(H133<>"",ROW(H133),"") -> 133 | N133: =IFERROR(VLOOKUP(ROW(N129),'Liste nominative CMR'!E:F,2,FALSE),"") -> 0 | O133: =IF(N133<>"",ROW(N133),"") -> 133
B134: 10381-36-9 | C134: 233-844-5 | D134: 028-032-00-0 | E134: trinickel bis(orthophosphate) | F134: H350i | H134: =IFERROR(VLOOKUP(ROW(H130),'Liste nominative CMR'!A:B,2,FALSE),"") -> 0 | I134: 134 | N134: =IFERROR(VLOOKUP(ROW(N130),'Liste nominative CMR'!E:F,2,FALSE),"") -> 0 | O134: 134
B135: 14448-18-1 | C135: 238-426-6 | D135: 028-032-00-0 | E135: dinickel diphosphate | F135: H350i | H135: =IFERROR(VLOOKUP(ROW(H131),'Liste nominative CMR'!A:B,2,FALSE),"") -> 0 | I135: 135 | N135: =IFERROR(VLOOKUP(ROW(N131),'Liste nominative CMR'!E:F,2,FALSE),"") -> 0 | O135: 135
B136: 14507-36-9 | C136: 238-511-8 | D136: 028-032-00-0 | E136: nickel bis(phosphinate) | F136: H350i | H136: =IFERROR(VLOOKUP(ROW(H132),'Liste nominative CMR'!A:B,2,FALSE),"") -> 0 | I136: 136 | N136: =IFERROR(VLOOKUP(ROW(N132),'Liste nominative CMR'!E:F,2,FALSE),"") -> 0 | O136: 136
B137: 36026-88-7 | C137: 252-840-4 | D137: 028-032-00-0 | E137: nickel phosphinate | F137: H350i | H137: =IFERROR(VLOOKUP(ROW(H133),'Liste nominative CMR'!A:B,2,FALSE),"") -> 0 | I137: 137 | N137: =IFERROR(VLOOKUP(ROW(N133),'Liste nominative CMR'!E:F,2,FALSE),"") -> 0 | O137: 137
B138: 17169-61-8 | C138: - | D138: 028-032-00-0 | E138: phosphoric acid, calcium nickel salt | F138: H350i | H138: =IFERROR(VLOOKUP(ROW(H134),'Liste nominative CMR'!A:B,2,FALSE),"") -> 0 | I138: 138 | N138: =IFERROR(VLOOKUP(ROW(N134),'Liste nominative CMR'!E:F,2,FALSE),"") -> 0 | O138: 138
B139: 19372-20-4 | C139: - | D139: 028-032-00-0 | E139: diphosphoric acid, nickel(II) salt | F139: H350i | H139: =IFERROR(VLOOKUP(ROW(H135),'Liste nominative CMR'!A:B,2,FALSE),"") -> 0 | I139: 139 | N139: =IFERROR(VLOOKUP(ROW(N135),'Liste nominative CMR'!E:F,2,FALSE),"") -> 0 | O139: 139
B140: 74195-78-1 | C140: - | D140: 028-033-00-6 | E140: diammonium nickel hexacyanoferrate | F140: H350i | H140: =IFERROR(VLOOKUP(ROW(H136),'Liste nominative CMR'!A:B,2,FALSE),"") -> 0 | I140: 140 | N140: =IFERROR(VLOOKUP(ROW(N136),'Liste nominative CMR'!E:F,2,FALSE),"") -> 0 | O140: 140
B141: 557-19-7 | C141: 209-160-8 | D141: 028-034-00-1 | E141: nickel dicyanide | F141: H350i | H141: =IFERROR(VLOOKUP(ROW(H137),'Liste nominative CMR'!A:B,2,FALSE),"") -> 0 | I141: 141 | N141: =IFERROR(VLOOKUP(ROW(N137),'Liste nominative CMR'!E:F,2,FALSE),"") -> 0 | O141: 141
B142: 14721-18-7 | C142: 238-766-5 | D142: 028-035-00-7 | E142: nickel chromate | F142: H350i | H142: =IFERROR(VLOOKUP(ROW(H138),'Liste nominative CMR'!A:B,2,FALSE),"") -> 0 | I142: 142 | N142: =IFERROR(VLOOKUP(ROW(N138),'Liste nominative CMR'!E:F,2,FALSE),"") -> 0 | O142: 142
B143: 21784-78-1 | C143: 244-578-4 | D143: 028-036-00-2 | E143: nickel(II) silicate | F143: H350i | H143: =IFERROR(VLOOKUP(ROW(H139),'Liste nominative CMR'!A:B,2,FALSE),"") -> 0 | I143: 143 | N143: =IFERROR(VLOOKUP(ROW(N139),'Liste nominative CMR'!E:F,2,FALSE),"") -> 0 | O143: 143
B144: 13775-54-7 | C144: 237-411-1 | D144: 028-036-00-2 | E144: dinickel orthosilicate | F144: H350i | H144: =IFERROR(VLOOKUP(ROW(H140),'Liste nominative CMR'!A:B,2,FALSE),"") -> 0 | I144: 144 | N144: =IFERROR(VLOOKUP(ROW(N140),'Liste nominative CMR'!E:F,2,FALSE),"") -> 0 | O144: 144
B145: 31748-25-1 | C145: 250-788-7 | D145: 028-036-00-2 | E145: nickel silicate (3:4) | F145: H350i | H145: =IFERROR(VLOOKUP(ROW(H141),'Liste nominative CMR'!A:B,2,FALSE),"") -> 0 | I145: 145 | N145: =IFERROR(VLOOKUP(ROW(N141),'Liste nominative CMR'!E:F,2,FALSE),"") -> 0 | O145: 145
B146: 37321-15-6 | C146: 253-461-7 | D146: 028-036-00-2 | E146: silicic acid, nickel salt | F146: H350i | H146: =IFERROR(VLOOKUP(ROW(H142),'Liste nominative CMR'!A:B,2,FALSE),"") -> 0 | I146: 146 | N146: =IFERROR(VLOOKUP(ROW(N142),'Liste nominative CMR'!E:F,2,FALSE),"") -> 0 | O146: 146
B147: 12519-85-6 | C147: 235-688-3 | D147: 028-036-00-2 | E147: trihydrogen hydroxybis[orthosilicato(4-)]trinickelate(3-) | F147: H350i | H147: =IFERROR(VLOOKUP(ROW(H143),'Liste nominative CMR'!A:B,2,FALSE),"") -> 0 | I147: 147 | N147: =IFERROR(VLOOKUP(ROW(N143),'Liste nominative CMR'!E:F,2,FALSE),"") -> 0 | O147: 147
B148: 14874-78-3 | C148: 238-946-3 | D148: 028-037-00-8 | E148: dinickel hexacyanoferrate | F148: H350i | H148: =IFERROR(VLOOKUP(ROW(H144),'Liste nominative CMR'!A:B,2,FALSE),"") -> 0 | I148: 148 | N148: =IFERROR(VLOOKUP(ROW(N144),'Liste nominative CMR'!E:F,2,FALSE),"") -> 0 | O148: 148
B149: 13477-70-8 | C149: 236-771-7 | D149: 028-038-00-3 | E149: trinickel bis(arsenate); nickel(II) arsenate | F149: H350 | H149: =IFERROR(VLOOKUP(ROW(H145),'Liste nominative CMR'!A:B,2,FALSE),"") -> 0 | I149: 149 | N149: =IFERROR(VLOOKUP(ROW(N145),'Liste nominative CMR'!E:F,2,FALSE),"") -> 0 | O149: 149
B150: 547-67-1 | C150: 208-933-7 | D150: 028-039-00-9 | E150: nickel oxalate | F150: H350i | H150: =IFERROR(VLOOKUP(ROW(H146),'Liste nominative CMR'!A:B,2,FALSE),"") -> 0 | I150: 150 | N150: =IFERROR(VLOOKUP(ROW(N146),'Liste nominative CMR'!E:F,2,FALSE),"") -> 0 | O150: 150
B151: 20543-06-0 | C151: 243-867-2 | D151: 028-039-00-9 | E151: oxalic acid, nickel salt | F151: H350i | H151: =IFERROR(VLOOKUP(ROW(H147),'Liste nominative CMR'!A:B,2,FALSE),"") -> 0 | I151: 151 | N151: =IFERROR(VLOOKUP(ROW(N147),'Liste nominative CMR'!E:F,2,FALSE),"") -> 0 | O151: 151
B152: 12142-88-0 | C152: 235-260-6 | D152: 028-040-00-4 | E152: nickel telluride | F152: H350i | H152: =IFERROR(VLOOKUP(ROW(H148),'Liste nominative CMR'!A:B,2,FALSE),"") -> 0 | I152: 152 | N152: =IFERROR(VLOOKUP(ROW(N148),'Liste nominative CMR'!E:F,2,FALSE),"") -> 0 | O152: 152
B153: 12137-12-1 | C153: - | D153: 028-041-00-X | E153: trinickel tetrasulfide | F153: H350i | H153: =IFERROR(VLOOKUP(ROW(H149),'Liste nominative CMR'!A:B,2,FALSE),"") -> 0 | I153: 153 | N153: =IFERROR(VLOOKUP(ROW(N149),'Liste nominative CMR'!E:F,2,FALSE),"") -> 0 | O153: 153
B154: 74646-29-0 | C154: - | D154: 028-042-00-5 | E154: trinickel bis(arsenite) | F154: H350i | H154: =IFERROR(VLOOKUP(ROW(H150),'Liste nominative CMR'!A:B,2,FALSE),"") -> 0 | I154: 154 | N154: =IFERROR(VLOOKUP(ROW(N150),'Liste nominative CMR'!E:F,2,FALSE),"") -> 0 | O154: 154
B155: 68186-89-0 | C155: 269-051-6 | D155: 028-043-00-0 | E155: cobalt nickel gray periclase; C.I. Pigment Black 25; C.I. 77332 | F155: H350i | H155: =IFERROR(VLOOKUP(ROW(H151),'Liste nominative CMR'!A:B,2,FALSE),"") -> 0 | I155: 155 | N155: =IFERROR(VLOOKUP(ROW(N151),'Liste nominative CMR'!E:F,2,FALSE),"") -> 0 | O155: 155
B156: 58591-45-0 | C156: 261-346-8 | D156: 028-043-00-0 | E156: cobalt nickel dioxide | F156: H350i | H156: =IFERROR(VLOOKUP(ROW(H152),'Liste nominative CMR'!A:B,2,FALSE),"") -> 0 | I156: 156 | N156: =IFERROR(VLOOKUP(ROW(N152),'Liste nominative CMR'!E:F,2,FALSE),"") -> 0 | O156: 156
B157: 12737-30-3 | C157: - | D157: 028-043-00-0 | E157: cobalt nickel oxide | F157: H350i | H157: =IFERROR(VLOOKUP(ROW(H153),'Liste nominative CMR'!A:B,2,FALSE),"") -> 0 | I157: 157 | N157: =IFERROR(VLOOKUP(ROW(N153),'Liste nominative CMR'!E:F,2,FALSE),"") -> 0 | O157: 157
B158: 12035-38-0 | C158: 234-824-9 | D158: 028-044-00-6 | E158: nickel tin trioxide; nickel stannate | F158: H350i | H158: =IFERROR(VLOOKUP(ROW(H154),'Liste nominative CMR'!A:B,2,FALSE),"") -> 0 | I158: 158 | N158: =IFERROR(VLOOKUP(ROW(N154),'Liste nominative CMR'!E:F,2,FALSE),"") -> 0 | O158: 158
B159: 15780-33-3 | C159: 239-876-6 | D159: 028-045-00-1 | E159: nickel triuranium decaoxide | F159: H350i | H159: =IFERROR(VLOOKUP(ROW(H155),'Liste nominative CMR'!A:B,2,FALSE),"") -> 0 | I159: 159 | N159: =IFERROR(VLOOKUP(ROW(N155),'Liste nominative CMR'!E:F,2,FALSE),"") -> 0 | O159: 159
B160: 13689-92-4 | C160: 237-205-1 | D160: 028-046-00-7 | E160: nickel dithiocyanate | F160: H350i H360D | H160: =IFERROR(VLOOKUP(ROW(H156),'Liste nominative CMR'!A:B,2,FALSE),"") -> 0 | I160: 160 | N160: =IFERROR(VLOOKUP(ROW(N156),'Liste nominative CMR'!E:F,2,FALSE),"") -> 0 | O160: 160
B161: 15586-38-6 | C161: 239-646-5 | D161: 028-047-00-2 | E161: nickel dichromate | F161: H350i H360D | H161: =IFERROR(VLOOKUP(ROW(H157),'Liste nominative CMR'!A:B,2,FALSE),"") -> 0 | I161: 161 | N161: =IFERROR(VLOOKUP(ROW(N157),'Liste nominative CMR'!E:F,2,FALSE),"") -> 0 | O161: 161
B162: 10101-96-9 | C162: 233-263-7 | D162: 028-048-00-8 | E162: nickel(II) selenite | F162: H350i | H162: =IFERROR(VLOOKUP(ROW(H158),'Liste nominative CMR'!A:B,2,FALSE),"") -> 0 | I162: 162 | N162: =IFERROR(VLOOKUP(ROW(N158),'Liste nominative CMR'!E:F,2,FALSE),"") -> 0 | O162: 162
B163: 1314-05-2 | C163: 215-216-2 | D163: 028-049-00-3 | E163: nickel selenide | F163: H350i | H163: =IFERROR(VLOOKUP(ROW(H159),'Liste nominative CMR'!A:B,2,FALSE),"") -> 0 | I163: 163 | N163: =IFERROR(VLOOKUP(ROW(N159),'Liste nominative CMR'!E:F,2,FALSE),"") -> 0 | O163: 163
B164: 68130-19-8 | C164: - | D164: 028-050-00-9 | E164: silicic acid, lead nickel salt | F164: H350i H360Df | H164: =IFERROR(VLOOKUP(ROW(H160),'Liste nominative CMR'!A:B,2,FALSE),"") -> 0 | I164: 164 | N164: =IFERROR(VLOOKUP(ROW(N160),'Liste nominative CMR'!E:F,2,FALSE),"") -> 0 | O164: 164
B165: 12068-61-0 | C165: 235-103-1 | D165: 028-051-00-4 | E165: nickel diarsenide | F165: H350i | H165: =IFERROR(VLOOKUP(ROW(H161),'Liste nominative CMR'!A:B,2,FALSE),"") -> 0 | I165: =IF(H165<>"",ROW(H165),"") -> 165 | N165: =IFERROR(VLOOKUP(ROW(N161),'Liste nominative CMR'!E:F,2,FALSE),"") -> 0 | O165: 165
B166: 27016-75-7 | C166: 248-169-1 | D166: 028-051-00-4 | E166: nickel arsenide | F166: H350i | H166: =IFERROR(VLOOKUP(ROW(H162),'Liste nominative CMR'!A:B,2,FALSE),"") -> 0 | I166: 166 | N166: =IFERROR(VLOOKUP(ROW(N162),'Liste nominative CMR'!E:F,2,FALSE),"") -> 0 | O166: 166
B167: 68610-24-2 | C167: 271-853-6 | D167: 028-052-00-X | E167: nickel barium titanium primrose priderite; C.I. Pigment Yellow 157; C.I. 77900 | F167: H350i | H167: =IFERROR(VLOOKUP(ROW(H163),'Liste nominative CMR'!A:B,2,FALSE),"") -> 0 | I167: 167 | N167: =IFERROR(VLOOKUP(ROW(N163),'Liste nominative CMR'!E:F,2,FALSE),"") -> 0 | O167: 167
B168: 67952-43-6 | C168: 267-897-0 | D168: 028-053-00-5 | E168: nickel dichlorate | F168: H350i H360D | H168: =IFERROR(VLOOKUP(ROW(H164),'Liste nominative CMR'!A:B,2,FALSE),"") -> 0 | I168: 168 | N168: =IFERROR(VLOOKUP(ROW(N164),'Liste nominative CMR'!E:F,2,FALSE),"") -> 0 | O168: 168
B169: 14550-87-9 | C169: 238-596-1 | D169: 028-053-00-5 | E169: nickel dibromate | F169: H350i H360D | H169: =IFERROR(VLOOKUP(ROW(H165),'Liste nominative CMR'!A:B,2,FALSE),"") -> 0 | I169: 169 | N169: =IFERROR(VLOOKUP(ROW(N165),'Liste nominative CMR'!E:F,2,FALSE),"") -> 0 | O169: 169
B170: 71720-48-4 | C170: 275-897-7 | D170: 028-053-00-5 | E170: ethyl hydrogen sulfate, nickel(II) salt | F170: H350i H360D | H170: =IFERROR(VLOOKUP(ROW(H166),'Liste nominative CMR'!A:B,2,FALSE),"") -> 0 | I170: 170 | N170: =IFERROR(VLOOKUP(ROW(N166),'Liste nominative CMR'!E:F,2,FALSE),"") -> 0 | O170: 170
B171: 16083-14-0 | C171: 240-235-8 | D171: 028-054-00-0 | E171: nickel(II) trifluoroacetate | F171: H350i H360D | H171: =IFERROR(VLOOKUP(ROW(H167),'Liste nominative CMR'!A:B,2,FALSE),"") -> 0 | I171: 171 | N171: =IFERROR(VLOOKUP(ROW(N167),'Liste nominative CMR'!E:F,2,FALSE),"") -> 0 | O171: 171
B172: 3349-08-4 | C172: 222-102-6 | D172: 028-054-00-0 | E172: nickel(II) propionate | F172: H350i H360D | H172: =IFERROR(VLOOKUP(ROW(H168),'Liste nominative CMR'!A:B,2,FALSE),"") -> 0 | I172: 172 | N172: =IFERROR(VLOOKUP(ROW(N168),'Liste nominative CMR'!E:F,2,FALSE),"") -> 0 | O172: 172
B173: 39819-65-3 | C173: 254-642-3 | D173: 028-054-00-0 | E173: nickel bis(benzenesulfonate) | F173: H350i H360D | H173: =IFERROR(VLOOKUP(ROW(H169),'Liste nominative CMR'!A:B,2,FALSE),"") -> 0 | I173: 173 | N173: =IFERROR(VLOOKUP(ROW(N169),'Liste nominative CMR'!E:F,2,FALSE),"") -> 0 | O173: 173
B174: 18721-51-2 | C174: 242-533-3 | D174: 028-054-00-0 | E174: nickel(II) hydrogen citrate | F174: H350i H360D | H174: =IFERROR(VLOOKUP(ROW(H170),'Liste nominative CMR'!A:B,2,FALSE),"") -> 0 | I174: 174 | N174: =IFERROR(VLOOKUP(ROW(N170),'Liste nominative CMR'!E:F,2,FALSE),"") -> 0 | O174: 174
B175: 18283-82-4 | C175: 242-161-1 | D175: 028-054-00-0 | E175: citric acid, ammonium nickel salt | F175: H350i H360D | N175: =IFERROR(VLOOKUP(ROW(N171),'Liste nominative CMR'!E:F,2,FALSE),"") -> 0 | O175: 175
B176: 22605-92-1 | C176: 245-119-0 | D176: 028-054-00-0 | E176: citric acid, nickel salt | F176: H350i H360D | N176: =IFERROR(VLOOKUP(ROW(N172),'Liste nominative CMR'!E:F,2,FALSE),"") -> 0 | O176: 176
B177: 4454-16-4 | C177: 224-699-9 | D177: 028-054-00-0 | E177: nickel bis(2-ethylhexanoate) | F177: H350i H360D | N177: =IFERROR(VLOOKUP(ROW(N173),'Liste nominative CMR'!E:F,2,FALSE),"") -> 0 | O177: 177
B178: 7580-31-6 | C178: 231-480-1 | D178: 028-054-00-0 | E178: 2-ethylhexanoic acid, nickel salt | F178: H350i H360D | N178: =IFERROR(VLOOKUP(ROW(N174),'Liste nominative CMR'!E:F,2,FALSE),"") -> 0 | O178: 178
B179: 93983-68-7 | C179: 301-323-2 | D179: 028-054-00-0 | E179: dimethylhexanoic acid nickel salt | F179: H350i H360D | N179: =IFERROR(VLOOKUP(ROW(N175),'Liste nominative CMR'!E:F,2,FALSE),"") -> 0 | O179: 179
B180: 29317-63-3 | C180: 249-555-2 | D180: 028-054-00-0 | E180: nickel(II) isooctanoate | F180: H350i H360D | N180: =IFERROR(VLOOKUP(ROW(N176),'Liste nominative CMR'!E:F,2,FALSE),"") -> 0 | O180: 180
B181: 27637-46-3 | C181: 248-585-3 | D181: 028-054-00-0 | E181: nickel isooctanoate | F181: H350i H360D | N181: =IFERROR(VLOOKUP(ROW(N177),'Liste nominative CMR'!E:F,2,FALSE),"") -> 0 | O181: 181
B182: 84852-37-9 | C182: 284-349-6 | D182: 028-054-00-0 | E182: nickel bis(isononanoate) | F182: H350i H360D | N182: =IFERROR(VLOOKUP(ROW(N178),'Liste nominative CMR'!E:F,2,FALSE),"") -> 0 | O182: 182
B183: 93920-10-6 | C183: 300-094-6 | D183: 028-054-00-0 | E183: nickel(II) neononanoate | F183: H350i H360D | N183: =IFERROR(VLOOKUP(ROW(N179),'Liste nominative CMR'!E:F,2,FALSE),"") -> 0 | O183: 183
B184: 85508-43-6 | C184: 287-468-1 | D184: 028-054-00-0 | E184: nickel(II) isodecanoate | F184: H350i H360D | N184: =IFERROR(VLOOKUP(ROW(N180),'Liste nominative CMR'!E:F,2,FALSE),"") -> 0 | O184: 184
B185: 85508-44-7 | C185: 287-469-7 | D185: 028-054-00-0 | E185: nickel(II) neodecanoate | F185: H350i H360D | N185: =IFERROR(VLOOKUP(ROW(N181),'Liste nominative CMR'!E:F,2,FALSE),"") -> 0 | O185: 185
B186: 51818-56-5 | C186: 257-447-1 | D186: 028-054-00-0 | E186: neodecanoic acid, nickel salt | F186: H350i H360D | N186: =IFERROR(VLOOKUP(ROW(N182),'Liste nominative CMR'!E:F,2,FALSE),"") -> 0 | O186: 186
B187: 93920-09-3 | C187: 300-093-0 | D187: 028-054-00-0 | E187: nickel(II) neoundecanoate [17] | F187: H350i H360D | N187: =IFERROR(VLOOKUP(ROW(N183),'Liste nominative CMR'!E:F,2,FALSE),"") -> 0 | O187: 187
B188: 71957-07-8 | C188: 276-205-6 | D188: 028-054-00-0 | E188: bis(.sc.d.sc.-gluconato-O1,O2)nickel | F188: H350i H360D | N188: =IFERROR(VLOOKUP(ROW(N184),'Liste nominative CMR'!E:F,2,FALSE),"") -> 0 | O188: 188
B189: 52625-25-9 | C189: 258-051-1 | D189: 028-054-00-0 | E189: nickel 3,5-bis(tert-butyl)-4-hydroxybenzoate (1:2) | F189: H350i H360D | N189: =IFERROR(VLOOKUP(ROW(N185),'Liste nominative CMR'!E:F,2,FALSE),"") -> 0 | O189: 189
B190: 13654-40-5 | C190: 237-138-8 | D190: 028-054-00-0 | E190: nickel(II) palmitate [20] | F190: H350i H360D | N190: =IFERROR(VLOOKUP(ROW(N186),'Liste nominative CMR'!E:F,2,FALSE),"") -> 0 | O190: 190
B191: 85508-45-8 | C191: 287-470-2 | D191: 028-054-00-0 | E191: (2-ethylhexanoato-O)(isononanoato-O)nickel | F191: H350i H360D | N191: =IFERROR(VLOOKUP(ROW(N187),'Liste nominative CMR'!E:F,2,FALSE),"") -> 0 | O191: 191
B192: 85508-46-9 | C192: 287-471-8 | D192: 028-054-00-0 | E192: (isononanoato-O)(isooctanoato-O)nickel | F192: H350i H360D | N192: =IFERROR(VLOOKUP(ROW(N188),'Liste nominative CMR'!E:F,2,FALSE),"") -> 0 | O192: 192
B193: 84852-35-7 | C193: 284-347-5 | D193: 028-054-00-0 | E193: (isooctanoato-O)(neodecanoato-O)nickel | F193: H350i H360D | N193: =IFERROR(VLOOKUP(ROW(N189),'Liste nominative CMR'!E:F,2,FALSE),"") -> 0 | O193: 193
B194: 84852-39-1 | C194: 284-351-7 | D194: 028-054-00-0 | E194: (2-ethylhexanoato-O)(isodecanoato-O)nickel | F194: H350i H360D | N194: =IFERROR(VLOOKUP(ROW(N190),'Liste nominative CMR'!E:F,2,FALSE),"") -> 0 | O194: 194
B195: 85135-77-9 | C195: 285-698-7 | D195: 028-054-00-0 | E195: (2-ethylhexanoato-O)(neodecanoato-O)nickel | F195: H350i H360D | N195: =IFERROR(VLOOKUP(ROW(N191),'Liste nominative CMR'!E:F,2,FALSE),"") -> 0 | O195: 195
B196: 85166-19-4 | C196: 285-909-2 | D196: 028-054-00-0 | E196: (isodecanoato-O)(isooctanoato-O)nickel | F196: H350i H360D | N196: =IFERROR(VLOOKUP(ROW(N192),'Liste nominative CMR'!E:F,2,FALSE),"") -> 0 | O196: 196
B197: 84852-36-8 | C197: 284-348-0 | D197: 028-054-00-0 | E197: (isodecanoato-O)(isononanoato-O)nickel | F197: H350i H360D | N197: =IFERROR(VLOOKUP(ROW(N193),'Liste nominative CMR'!E:F,2,FALSE),"") -> 0 | O197: =IF(N197<>"",ROW(N197),"") -> 197
B198: 85551-28-6 | C198: 287-592-6 | D198: 028-054-00-0 | E198: (isononanoato-O)(neodecanoato-O)nickel | F198: H350i H360D | N198: =IFERROR(VLOOKUP(ROW(N194),'Liste nominative CMR'!E:F,2,FALSE),"") -> 0 | O198: 198
B199: 91697-41-5 | C199: 294-302-1 | D199: 028-054-00-0 | E199: fatty acids, C6-19-branched, nickel salts | F199: H350i H360D | N199: =IFERROR(VLOOKUP(ROW(N195),'Liste nominative CMR'!E:F,2,FALSE),"") -> 0 | O199: 199
B200: 84776-45-4 | C200: 283-972-0 | D200: 028-054-00-0 | E200: fatty acids, C8-18 and C18-unsaturated, nickel salts | F200: H350i H360D | N200: =IFERROR(VLOOKUP(ROW(N196),'Liste nominative CMR'!E:F,2,FALSE),"") -> 0 | O200: 200
B201: 72319-19-8 | C201: - | D201: 028-054-00-0 | E201: 2,7-naphthalenedisulfonic acid, nickel(II) salt | F201: H350i H360D | N201: =IFERROR(VLOOKUP(ROW(N197),'Liste nominative CMR'!E:F,2,FALSE),"") -> 0 | O201: 201
B202: 7757-95-1 | C202: 231-827-7 | D202: 028-055-00-6 | E202: nickel(II) sulfite | F202: H350i | N202: =IFERROR(VLOOKUP(ROW(N198),'Liste nominative CMR'!E:F,2,FALSE),"") -> 0 | O202: 202
... 1057 more rows
